{"text_format":"1","workbook":"xlsx","n_sheets":19,"sheets":["READ ME 1st","1. Signature Page","2. Contact Information","3. Maintenance of Effort","4. CCEIS","5. Voluntary CEIS","6. Equitable Services 240","7. M3 240","8. Narrative 240","9. Budget 240","10. Equitable Services 262","11. Narrative 262","12. Budget 262","Schedule A","Proshare.CEIS Data","DataLookupValues","LiaisonList","DataDistrList","dropdowns"],"not_rendered":{"charts":0,"images":0,"macros":1,"external_links":0,"defined_names":152,"comments":1,"pivot_tables":0},"unopened":[],"bounds":{"document_bytes":16777216,"sheet_cells":100000,"rows_first":2000,"rows_last":500,"rows_between":2000,"halvings":0,"cell_chars":16384,"cell_head_chars":4096},"cells_cut":0,"cells_raw":0,"read":"whole","date_system":"1900"}

{"sheet":"READ ME 1st","index":0,"n_rows":31,"n_cols":2,"rows_kept":31,"cut":false,"hidden":false,"merged":[[1,1,1,12],[28,1,28,12],[29,1,29,12],[30,1,30,12],[2,1,2,12],[14,1,14,12],[15,1,15,12],[16,1,23,12],[24,1,24,12],[26,1,26,12],[27,1,27,12],[3,1,3,12],[4,1,12,12],[13,1,13,12],[25,1,25,12]]}
[]
[null,"Massachusetts Department of Elementary & Secondary Education"]
[null,"FY21 Consolidated Individuals with Disabilities Education Act (IDEA) Application Workbook"]
[null,"Overview  "]
[null,"\nThe consolidated application allows local education agencies (LEAs, which are districts and other eligible entities, referred to in this application collectively as \"districts\") to apply for funding for any combination of the following two grants administered pursuant to the Individuals with Disabilities Education Act (IDEA):\n\n                                     • IDEA, Part B, Section 611, Formula Grants to States for students ages 3-21 (Fund Code 240)\n                                     • IDEA, Part B, Section 619, Formula Preschool Grants for students ages 3-5 (Fund Code 262)\n                                                                          \nYou may notice that some requirements of past applications have been omitted or are presented in a different way. However, all districts are still required to meet all statutory requirements for any program for which they receive funds. If you have questions about these requirements, please refer to our Federal Grant Programs web pages and/or contact the Federal Programs Specialist assigned to your district for guidance.\n\n"]
[]
[]
[]
[]
[]
[]
[]
[]
[null,"First Step:  Saving the File"]
[null,"Save this file to your computer (Important: ensure macros are enabled).  Rename the file by replacing the words 'leacode' in the file name with your 4-digit district code. For example, Abington (0001) would rename the file as 'FY21IDEACA-0001.xlsm'. Do not change the filename except for your district's 4-digit code. Users of Macintosh computers must save as a macro-enabled file (with an .xlsm extension) and then reopen for the workbook to function properly."]
[null,"Tips for Completing the Consolidated Application"]
[null,"  \n Workflow and printing:  \n    • Complete each tab that applies to your district in the order that they are numbered unless instructed otherwise.  If one of the \n      numbered tabs does not apply to your district, skip to the next set of numbered tab (for example, skip \"Tab 6. CEIS 240\"  if your   \n      district opts not to participate in the Coordinated Early Intervention Services (CEIS) program and go on to the next applicable tab).  \n\n    • Complete the steps on each tab in the order that they are numbered (for example, on Tab 7, begin with Step 7.1, then complete 7.2).\n      Note that some steps may not be required for your district and may be skipped. The Step number on each page will indicate which \n      districts must complete that step.\n\n   •  Budget worksheets appearing after the tabs for each Title narrative must be completed for each grant. They mirror the budget entry \n      page in EdGrants with the addition of checkboxes to indicate whether funds are used for private school services, as well as a summary\n      of reservations and individual spaces to indicate expenditures from reservations for equitable services for private school students,\n      CEIS, and Making Money Matter (M3). These budget worksheets are mandatory, as is entering budget information in EdGrants. \n\n   •  This workbook is structured to be completed in electronic format, zoomed to a scale of 100%. However, you can print a copy using  \n       Excel's print preview functions to set the appearance and paper orientation to best fit your completed application.  \n   \n  Color-coding and cell features:\n   •  Cells that appear in light yellow require districts to input information. Text may be pasted into these cells as long as the information\n      does not contain Excel formulas.  \n\n   •   Cells that appear in light gray will automatically populate based on either information your district supplies on other parts of the \n       application or from preloaded data already reported to the Department of Elementary and Secondary Education (DESE) (for example, \n       SIMS data). Do not cut and paste information from other pages or sources into gray cells! \n\n   •   Cells that appear in light orange offer a dropdown menu from which districts can choose a supplied response.  \n       Do not cut and paste information from other pages or sources into orange cells!\n\n   •  Throughout the tabs of this application you will find instruction boxes (gray), tip boxes (pink) to help avoid common mistakes, \n       and resource boxes (tan) that include links to materials outside the application with more detailed, grant-related information.\n"]
[]
[]
[]
[]
[]
[]
[]
[null,"\n   •  If boxes/cells containing text in some parts of the application appear to be cut off, please enlarge the \"view\" of that page using your \n      Zoom feature (usually a slide bar appearing in the lower corner of your Excel screen), which should solve the problem.  100% is best \n      in most cases.\n\n Preparing to Upload into EdGrants:\n   •  Signature Page (Tab 1) :  Once the application has been completed, print, sign, date (using date of submission), scan and upload \n      a signed copy of the signature page with each of the district's EdGrants submissions (one for each fund code).   We cannot approve\n      any grant without an uploaded, signed, and properly dated signature page for each fund code!  For example, a district with both FC 240\n      and 262 grants will upload the signature page and Excel consolidated workbook with its EdGrants FC 240 submission and just the 262 \n      signature page with its EdGrants 262 submission.\n\n   •  All tabs related to programs for which a district has received an allocation must be complete and budgets submitted in \n      EdGrants for each of those fund codes in order for an application to be  ready for review.  No partial submissions will be accepted.\n \n   •  A completed consolidated workbook should be submitted only once, as an attachment in EdGrants with each district's Fund Code 240\n      submission. It does not need to be submitted with your Fund Code 262 EdGrants submission, if your district receives that grant.  "]
[null,"  •  Note! Federal Grant Assurances Signature Page : Each district must review the FY21 Federal Grant Assurances and submit a signed, \n     scanned (pdf) Assurance signature page (in addition to Tab 1. Signature Page for this application) indicating such review and\n     assurance  of compliance with the requirements contained therein. Once the application has been completed, print, sign, date\n     (using date of submission), scan and upload as an attachment to its Title I Edgrants submission (Fund Code 305). If your district\n     does not receive a Title I grant, contact your district's DESE grant liaison for submission instructions.  We cannot approve any \n     federal entitlement grant without an uploaded, signed, and properly dated signature page from the Federal Grant Assurance document!"]
[null,"Submit the FY21 Consolidated IDEA Application Workbook with Fund Code 240 submission via EdGrants Front Office web page"]
[null,"\nEdGrants Submission Information:\nMost districts/applicants already have designated control users in EdGrants: Front Office, who have access to submit grant applications as well as to make payment requests.  Each district/applicant needs to ensure that it has an authorized control user prior to grant submission.  If a district waits until its grant submission is ready to submit before inquiring about a new user name/login, grant submissions may be delayed several business days waiting for control user set-up.  Please review the EdGrants Security Controls documents and/or contact DESE's Grants Management Office, 781-338-6595 or EdGrants@doe.mass.edu, regarding assigning your EdGrants: Front Office control users.  "]
[null,"The district/applicant control users will register each grant opportunity, create each grant project and enter contact information, budget, and required attachments in EdGrants. All districts' business offices have been contacted with information regarding training.  If you are unsure of who in your office is \na control user, please contact your business office.  The Consolidation Application Workbook must be uploaded with your Fund Code 240 budget in EdGrants.  If you do not receive a Fund Code 240 allocation, please contact the DESE liaison for your district for submission instructions."]
[null,"Applications are due by October 5, 2020. "]
[null,"NOTE ON SUBMISSION TIMELINE: \n    • Districts that submit near the due date should expect to wait a few weeks for review. Districts that submit early may see a shorter turnaround.   \n    • The start date for each grant is the date on which the district submits substantially approvable information and budget for that grant.  For example, \n       if the completed consolidated IDEA application is submitted on August 15 and all grant information but that for Fund Code 262 is substantially \n       approvable, the start date for Fund Code 240, but not Fund Code 262, will be August 15.  The start date for Fund Code 262 will be the date on which any \n       deficiency for that application has been rectified and it becomes substantially approvable.  However, no grant funds for either IDEA grant will be issued \n       until both of the grants contained within this consolidated application have been approved for those districts receiving both grants.  \n    •  Districts that fail to file by October 5, 2020 will receive last priority for review.    \n    •  Expenses incurred prior to the approval of a district's consolidated application and start date(s) are not payable/reimbursable with grant funds!\n    •  Responding quickly to requests for information can result in an earlier approval of your grant application.  \n    •  Grant payment notices will be available in EdGrants after the grant application has been approved and the initial payment is processed.\n"]

{"sheet":"1. Signature Page","index":1,"n_rows":33,"n_cols":17,"rows_kept":33,"cut":false,"hidden":false,"merged":[[32,1,32,19],[28,1,30,3],[28,4,28,8],[28,9,28,15],[28,16,28,19],[29,4,30,8],[29,9,29,12],[29,13,29,15],[29,16,30,19],[30,9,30,12],[30,13,30,15],[25,1,27,3],[25,4,25,8],[25,9,25,15],[25,16,25,19],[26,4,27,8],[26,9,26,12],[26,13,26,15],[26,16,27,19],[27,9,27,12],[27,13,27,15],[20,1,20,4],[20,5,20,10],[20,12,20,13],[20,14,20,18],[21,1,21,4],[21,5,21,10],[21,12,21,13],[21,14,21,18],[17,1,18,19],[1,1,2,19],[4,1,4,19],[5,1,5,19],[10,5,10,11],[11,5,11,11]]}
[]
[null,"Massachusetts Department of Elementary and Secondary Education\nSTANDARD CONTRACT FORM AND APPLICATION FOR PROGRAM GRANTS"]
[]
[]
[null,"UPLOAD A SCANNED, SIGNED, AND DATED COPY OF THIS PAGE TO EDGRANTS WITH THE BUDGET FOR EACH FUND CODE"]
[null,"District staff with the role of “control user” in EdGrants have been provided user log-in names and passwords and have been trained to submit a grant application via EdGrants. Provide all required application materials to your district control user with access to EdGrants to submit budgets and attachments  for each fund code for which the district is applying.                                                              \n                 Applications are due by October 5, 2020"]
[]
[]
[null,null,null,"District Name:",null,null,null,null,null,null,null,null,"Org Code:",null,{"$f":"valorg4code","v":"Org "}]
[]
[null,null,null,"Address: ",null,{"$f":"IF(valAddr2<>\"\", valAddr1&\", \"&valAddr2, valAddr1)","v":"Address Line 1, Address Line 2"},null,null,null,null,null,null,"DESE Federal Grant Liaison",null,{"$f":"valname","v":"Liaison's Name"}]
[null,null,null,null,null,{"$f":"valCtyStZip","v":"City, State Zip Code"},null,null,null,null,null,null,"Phone number:",null,{"$f":"valphonenum","v":"Liaison's Number"}]
[null,null,null,null,null,null,null,null,null,null,null,null,"Email:",null,{"$f":"valemail","v":"Liaison's Email"}]
[]
[]
[null,null,null,null,null,null,null,null,null,null,null,null,"`"]
[]
[null,"I CERTIFY THAT THE INFORMATION CONTAINED IN THIS APPLICATION IS CORRECT AND COMPLETE; THAT THE APPLICANT AGENCY HAS AUTHORIZED ME, AS ITS REPRESENTATIVE, TO FILE THIS APPLICATION; AND THAT I UNDERSTAND THAT FOR ANY FUNDS RECEIVED THROUGH THIS APPLICATION THE AGENCY AGREES TO COMPLY WITH ALL APPLICABLE STATE AND FEDERAL GRANT REQUIREMENTS COVERING BOTH THE PROGRAMMATIC AND FISCAL ADMINISTRATION OF GRANT FUNDS."]
[]
[]
[null,"AUTHORIZED SIGNATURE:",null,null,null,"    ",null,null,null,null,null,null,"TITLE:"]
[null,"PRINTED NAME:",null,null,null,null,null,null,null,null,null,null,"DATE:"]
[]
[]
[]
[null,"FY2021\nAllocation",null,null,"FEDERAL GRANT",null,null,null,null,"PROJECT DURATION",null,null,null,null,null,null,"TOTAL ALLOCATION"]
[null,null,null,null,"IDEA, Part B, Section 611\nFund Code 240",null,null,null,null,"FROM",null,null,null,"TO"]
[null,null,null,null,null,null,null,null,null,"UPON APPROVAL",null,null,null,"6/30/2021"]
[null,"FY2021 \nAllocation",null,null,"FEDERAL GRANT",null,null,null,null,"PROJECT DURATION",null,null,null,null,null,null,"TOTAL ALLOCATION"]
[null,null,null,null,"IDEA, Part B, Section 619\nFund Code 262",null,null,null,null,"FROM",null,null,null,"TO"]
[null,null,null,null,null,null,null,null,null,"UPON APPROVAL",null,null,null,"6/30/2021"]
[]
[null,"UPLOAD A SCANNED, SIGNED, AND DATED COPY OF THIS PAGE TO EDGRANTS WITH THE BUDGET FOR EACH FUND CODE\nBY October 5, 2020"]

{"sheet":"2. Contact Information","index":2,"n_rows":21,"n_cols":5,"rows_kept":21,"cut":false,"hidden":false,"merged":[[18,2,18,11],[19,2,19,11],[20,1,20,3],[20,4,20,11],[15,1,15,11],[16,1,16,3],[16,4,16,11],[17,1,17,2],[17,3,17,11],[11,1,11,2],[11,3,11,11],[12,2,12,11],[13,2,13,11],[14,4,14,11],[10,1,10,3],[10,4,10,11],[1,1,1,3],[2,1,2,11],[3,1,3,11],[4,1,4,3],[4,4,4,11],[5,1,5,2],[5,3,5,11],[6,2,6,11],[7,2,7,11],[8,1,8,3],[8,4,8,11],[9,1,9,11]]}
[]
[null,{"$f":"valDistrName","v":"OrgName"}]
[null,"District Contact Information by Program\nPlease provide information for primary district contact for this application"]
[null,"IDEA, Part B, Section 611, Special Education Entitlement Grant (Fund Code 240)"]
[null,"Name of Primary Contact:"]
[null,"Title:"]
[null,"Phone:"]
[null,"Email:"]
[null,"New to this program?  (Y/N)",null,null,"Select One"]
[null,"IDEA, Part B, Section 619, Early Childhood Special Education Grant (Fund Code 262)"]
[null,"Name of Primary Contact:\n        (if different from above)"]
[null,"Title:"]
[null,"Phone:"]
[null,"Email:"]
[null,"New to this program?  (Y/N)",null,null,"Select One"]
[null,"Business Office Contact (for Maintenance of Effort, fiscal information, if different from above)"]
[null,"Name of Primary Contact:"]
[null,"Title:"]
[null,"Phone:"]
[null,"Email:"]
[null,"New to these programs?  (Y/N)",null,null,"Select One"]

{"sheet":"3. Maintenance of Effort","index":3,"n_rows":46,"n_cols":30,"rows_kept":46,"cut":false,"hidden":false,"merged":[[45,2,45,5],[37,8,42,18],[38,2,38,6],[39,2,39,6],[40,2,40,6],[41,2,42,6],[43,2,43,6],[44,2,44,6],[37,1,38,1],[25,2,28,2],[1,1,1,3],[7,2,18,15],[22,4,22,5],[22,6,22,7],[23,4,23,5],[23,6,23,7],[7,1,10,1],[22,1,23,1],[5,1,5,15],[22,9,29,18],[37,2,37,5]]}
[]
[null,{"$f":"valDistrName","v":"OrgName"}]
[]
[null,"Maintenance of Effort (MOE):  Eligibility Standard  "]
[]
[null,"(See also, federal guidance:  IDEA Part B Supplemental Regulations Local Education Agency (LEA) Maintenance of Effort (MOE) (July 2015) and Massachusetts guidance:  \nIDEA Local Education Agency Maintenance of Effort Quick Reference Guide"]
[]
[null,"Step 3.1\nOverview of Maintenance of Effort\nAll Districts","What is MOE?\n\nThe Individuals with Disabilities Education Act of 2004 (IDEA) requires each local education agency (LEA) applying for IDEA grant funding (either Fund Code 240 or 262 or both) to meet two standards of maintenance of effort to ensure that each maintains the at least the same amount of local or state and local funds for the education of students with disabilities from year to year.  Maintenance of effort is one method of ensuring that IDEA funds are supplementing rather than supplanting funds that would be used for educational services to students with disabilities.\n  \nEligibility Standard:  This standard is a forward-looking measure of MOE. Meeting this standard ensures that a district has budgeted the same amount of state and local funds for educational services to students with disabilities through at least one of two methods (described below) as it did in the last year it met MOE using the same method.  If a district fails to meet the eligibility standard for MOE (after taking into any applicable exception or adjustment), the district will not be eligible to receive IDEA funds for that fiscal year.\n\nCompliance Standard:  This standard is a backward-looking measure of MOE.  Meeting this standard ensures that a district has actually spent the same amount of state and local funds for educational services to students with disabilities through one of four methods (described below) as it did in the last year it met MOE using the same method.\n\nMeeting the eligibility standard:   In order to be eligible to receive an IDEA grant, a district must provide sufficient information to DESE to demonstrate that it has budgeted at least the same amount of state and local funding for educational services to students with disabilities as it did in the most recent fiscal year for which information in available. Districts must supply, at a minimum information below in order to fulfill this requirement.\n\nMeeting the compliance standard:  DESE preliminarily reviews end-of-year financial reports to assess districts' compliance standard, using the combined state and local funding method described below. \n"]
[]
[]
[]
[]
[]
[]
[]
[]
[]
[]
[]
[]
[]
[]
[null,"Step 3.2\nDemonstrating Maintenance of Effort:  Eligibility Standard\nAll Districts",null,null,"Current year",null,"Comparison year",null,null,"\nInstructions:  How to demonstrate the MOE eligibility standard  \nSee 34 CFR §300.203 and IDEA Local Education Agency Maintenance of Effort QRG.\n\nMethods: Districts can use either one of these methods to meet its MOE eligibility standard regarding funds spent on the education of students with disabilities from year to year:  \n\n1) State and local funds combined; or\n2) State and local funds combined on a per-pupil basis.\n\nComparison year:  The comparison year for the MOE eligibility standard is the most recent fiscal year for which information is available and the LEA met MOE.  DESE preloads the last year that your district met MOE for each of the available methods.\n\nDistricts may use either method for demonstrating that it meets the MOE eligibility standard, regardless of the method it used in the prior year.  For instance, if in 2018-2019 an LEA wants to use state and local funds on a per-pupil basis to show MOE for the budgeted year, and in 2016-2017 (the most recent year for which final financial information is available) it used state and local funds in the aggregate to prove MOE.  If it also met MOE for 2016-2017 using state and local funds per pupil, even though that was not the method for proving MOE (districts may well meet MOE with more than one methodology).  The district may use 2016-2017 as its comparison year for proving MOE using state and local funds per pupil in 2018-2019.\n\nComparison year after failing to meet MOE:  If an LEA fails to meet MOE in a given year, in the next year an LEA must meet the level of expenditures that would have been required in the prior year in the absence of that failure, in order to use the failed year as a comparison year.  In other words, the LEA may not use the reduced amount of funding from the year it failed to meet MOE as a comparison in subsequent years. In practice, this requirement will mean that the LEA will use the amount in the last year it met MOE with the chosen method of meeting the MOE eligibility standard as its comparison, which is provided. \n"]
[null,null,null,null,"2020-2021\nBudgeted Amounts",null,"Actual expenditures from the last year that the district met MOE using this method",null,null,null,null,null,null,null,null,null,null,null,null,null,null,null,null,null,null,null,null,null,null,"  "]
[null,null,null,null,"Amount\n(whole dollars)","Meets MOE\n(Yes/No)","Amount","Comparison year (FY__)"]
[null,null," Methods of Calculation for MOE ","Local Funds",null,{"$f":"IF(AND(E26<>0, G26<>0), IF(E26>=G26, \"Yes\", \"No\"), \" \")","v":" "}]
[null,null,null,"Combination of State and Local Funds",null,{"$f":"IF(AND(E27<>0, G27<>0), IF(E27>=G27, \"Yes\", \"No\"), \" \")","v":" "},{"$f":"MOEAggAmt","v":"AggSLAmt"},{"$f":"MOEAggFY","v":"AggSLFY"}]
[null,null,null,"Local funds, per pupil",{"$f":"IF(AND(E26>0, E30>0), E26/E30, \"\")","v":""},{"$f":"IF(AND(E28<>0, E28<>\"\", G28<>0, G28<>\"\"), IF(E28>=G28, \"Yes\", \"No\"), \"\")","v":""},{"$f":"IF(AND(G26>0, G30>0), G26/G30,\"\")","v":""}]
[null,null,null,"Combination of State and Local funds, per pupil",{"$f":"IF(AND(E30>0, E27>0), E27/E30, \"\")","v":""},{"$f":"IF(AND(E29<>0, E29<>\"\", G29<>\"\", G29<>0), IF(E29>=G29, \"Yes\", \"No\"), \" \")","v":" "},{"$f":"MOEPPAmt","v":"PPSLAmt"},{"$f":"MOEPPFY","v":"PPSLFY"}]
[null,null,null,"Child Count"]
[]
[]
[]
[]
[]
[]
[]
[null,"Step 3.3\nApplying Exceptions and/or Reduction\nDistricts Not Meeting MOE in Step 3.2","If your district does not meet Maintenance of Effort based on the information provided in Step 3.2, do one or more of the following exceptions or adjustments apply?",null,null,null,"Select One",null,"\nExceptions and Adjustments \nSee 34 CFR §300.204 and §300.205 and IDEA Local Education Agency Maintenance of Effort QRG.\n\nEligible districts may reduce expenditures required to meet MOE if one or more exceptions or adjustments apply.  \n\nImportant:  If your district has not met MOE in Step 3.2, select \"Yes\" in Step 3.3 if any exceptions and/or adjustment apply, and whether, after taking into account applicable exceptions and adjustment, your district meets MOE (box below).  Make sure to have supporting documentation available. An auditor from DESE's business office will contact you to verify that MOE has been met, a prerequisite to approving your application and releasing funds.\n\nNote:  If exceptions and adjustments, including under the 50% rule, are not taken by a district in the year they occur, they are lost for future years.  \n\nIn addition to 34 CFR  §§300.204 and 300.205, see the CIFR MOE calculator and supporting materials."]
[null,null,"1.  Departure of special education or related services personnel."]
[null,null,"2.  Decrease in the enrollment of students with disabilities."]
[null,null,"3.  Termination of obligation to provide especially costly special education\n      programming to a particular student due to leaving the LEA, aging out of services  \n      or no longer needing services."]
[null,null,"4.  Termination of costly long-term purchases such as for equipment or school \n      facilities."]
[]
[null,null,"5.  Assumption of cost by the state's Circuit Breaker."]
[null,null,"6.  Up to 50% of any increase in an eligible LEA's IDEA FC 240 allocation (minus any\n      monies reserved for CEIS)."]
[null,null,"Once your district has applied one or more of the above exceptions or adjustment to the comparison year MOE, does your district meet its Maintenance of Effort eligibility standard?\n(Note:  All exceptions and/or adjustments need to be documented and will be verified by DESE prior to grant approval)",null,null,null,"Select One"]

{"sheet":"4. CCEIS","index":4,"n_rows":27,"n_cols":11,"rows_kept":27,"cut":false,"hidden":false,"merged":[[3,1,3,13],[18,2,18,8],[1,7,1,8],[1,1,1,3],[1,9,1,10],[2,1,2,11],[17,2,17,8],[10,2,10,11],[11,2,11,11],[4,2,4,11],[6,2,6,7],[7,2,7,11],[8,2,8,11],[9,2,9,11],[13,2,13,8],[15,2,15,8],[16,2,16,8],[27,2,27,9],[20,2,20,9],[21,0,21,1],[21,2,21,9],[23,2,23,9],[24,2,24,9],[26,2,26,9]]}
[]
[null,{"$f":"valDistrName","v":"OrgName"},null,null,null,null,null,"CCEIS Status",null,{"$f":"IF(valCCEIS=\"Yes\", \"Required\", \"Not Applicable\")","v":"Not Applicable"}]
[null,"Comprehensive Coordinated Early Intervening Services (CCEIS) "]
[null,"For Districts Identified as Having Significant Disproportionality in Special Education"]
[null,"Step 4.1\nIdentified Districts","Any district identified with significant disproportionality is required to reserve 15 percent of its FY20 IDEA Part B funds (Fund Code 240 and Fund Code 262) to provide CCEIS to address factors contributing to the significant disproportionality. See 34 CFR § 300.646. The district retains flexibility regarding whether the calculated reservation is made with Fund Code 240 fund, Fund Code 262 funds, or both.  \nNote regarding Maintenance of Effort (MOE):  A district identified as having significant disproportionality may NOT adjust MOE even if the district’s IDEA Part B allocation received for the current federal fiscal year exceeds the allocation for the previous fiscal year. See 34 CFR § 300.205.  See DESE's IDEA Local Education Agency Maintenance of Effort Quick Reference Guide for more information."]
[]
[null,null,"Comprehensive CEIS are a broad range of activities that:"]
[null,null,"1.      May include professional development and educational and behavioral evaluations, services, and supports."]
[null,null,"2.      Must identify and address the factors contributing to the significant disproportionality, which may include, among other identified factors, a lack of access\n        to scientifically based instruction; economic, cultural, or linguistic barriers to appropriate identification or placement in particular educational settings; \n        inappropriate use of disciplinary removals, lack of access to appropriate diagnostic  screenings; differences in academic achievement levels."]
[null,null,"3.      Must address a policy, practice, or procedures it identifies as contributing to the significant disproportionality, including a policy, practice or procedures that \n        results in a failure to identify, or the inappropriate identification of, a racial or ethnic group(s)."]
[null,null,"4.      May serve children from age three through grade 12, particularly, but not exclusively, in the group(s) that was significantly overidentified, including children\n        who are not currently identified as needing special education or related services but who need additional academic and behavioral supports to succeed in a \n        general education environment; and/or children currently identified as needing special education or related services. Funds may be used primarily, but not\n        exclusively, to support currently eligible students. "]
[null,null,"CCEIS reporting requirements:\n     •  Each district that implements CCEIS is required to report information to DESE annually pertaining to the number of children \n         served who received CCEIS; and how the activities have address the identified significant disproportionality.\n     •  Each district must track this data for at least three school years. This includes the year implementing CCEIS (2020-2021) and following two school years\n         (2021-2022 and 2022-2023). DESE will contact your district directly for this information. \n\nFor more information on CCEIS and its requirements see: Significant Disproportionality Essential Questions and Answers.\n\nIf you have any questions or need assistance in tracking this data, please contact the Office of Special Education Planning and Policy Development at 781-338-3375 or specialeducation@doe.mass.edu."]
[null,null," "]
[null,null,"A. Total Fund Code 240 Special Education Entitlement for FY21.  ",null,null,null,null,null,null,{"$f":"IFERROR(valAllocation240, \"\")","v":0}]
[null,null,"B. Total Fund Code 262 Special Education Entitlement for FY21.  ",null,null,null,null,null,null,{"$f":"IFERROR(valAllocation262, \"\")","v":0}]
[null,null,"C. Required reservation of funds for Comprehensive Coordinated Early Intervening Services (CCEIS) (15%\n     of FY21 allocation, Fund Codes 240 and 262 (if any))",null,null,null,null,null,null,{"$f":"IF(J2=\"Required\", 0.15*(J14+J15),0)","v":0}]
[null,null,"D. Enter the total funds from Fund Code 240 that the district reserves for CCEIS for FY21. This cell will\n     turn red if amount exceeds 15%. "]
[null,null,"E. Enter the total funds from Fund Code 262 that the district reserves for CCEIS for FY21. This cell will \n     turn red if amount exceeds 15%. "]
[null,null,"F. Total reservation for CCEIS (must equal the required amount indicated in Row C, above).",null,null,null,null,null,null,{"$f":"IFERROR(J17+J18, 0)","v":0},{"$f":"IFERROR((valCCEIS240+valCCEIS262)/(J14+J15), 0)","v":0}]
[]
[null,"Step 4.2\nIdentified Districts","Identified Significant Disproportionality\nDescribe the identified disproportionality. Make sure to include the specific racial/ethnic group for which the district was identified, and the risk ratio for this population for each year included in the calculation. Please refer to the letter from the DESE, dated August 20, 2019, that provided information on identified area of disproportionality for SY 2019-2020 and the supporting data SnapShot with all risk ratios.  Letter and SnapShot are available in the Special Education State Performance Plan DropBox in the ESE security portal: https://gateway.edu.state.ma.us/   "]
[]
[]
[null,"Step 4.3\nIdentified Districts","Defining the population (target group) to be served through CCEIS activities \nIdentify the population to be served. Describe the target population for the CCEIS activity(ies). Examples of the target group(s) can include school, race/ethnicity, students with disabilities, students without disabilities and staff. Note that reserved funds must be used to support the group affected by significant disproportionality, and may be used for students with and without disabilities, but not exclusively for students with disabilities. For professional development activities, indicate if the training is mandatory. "]
[]
[]
[null,"Step 4.4\nIdentified Districts","Proposed CCEIS Activities\nDescribe the planned response activities, which may include professional development and/or services for children with or without disabilities.  This description must include answers to the following questions:\n     • How are the planned response activities related to the area of identified disproportionality?\n     • What resources, including hiring or designating a CCEIS coordinator, are available for the implementation of the\n        planned action response?\n     • What outcomes are expected?\n     • Describe how you will monitor for fidelity of implementation?  "]

{"sheet":"5. Voluntary CEIS","index":5,"n_rows":41,"n_cols":11,"rows_kept":41,"cut":false,"hidden":false,"merged":[[21,0,21,1],[21,2,21,9],[16,2,16,8],[20,2,20,9],[20,11,20,18],[18,2,18,8],[17,2,17,8],[1,1,1,4],[14,2,14,8],[4,10,4,13],[5,10,5,12],[10,10,10,13],[4,1,5,1],[23,2,24,9],[3,2,3,9],[4,2,11,9],[13,2,13,8],[15,2,15,8],[25,2,25,9],[27,2,27,9],[28,2,28,3],[28,4,28,5],[28,8,28,9],[29,2,29,3],[29,4,29,5],[29,8,29,9],[30,2,30,3],[30,4,30,5],[30,8,30,9],[31,2,31,3],[31,4,31,5],[31,8,31,9],[32,2,32,3],[32,4,32,5],[32,8,32,9],[33,2,33,3],[33,4,33,5],[33,8,33,9],[35,2,35,9],[36,2,36,4],[36,5,36,7],[36,8,36,9],[40,2,40,9],[41,2,41,9],[37,2,37,4],[37,5,37,7],[37,8,37,9],[38,2,38,4],[38,5,38,7],[38,8,38,9]]}
[]
[null,{"$f":"valDistrName","v":"OrgName"}]
[]
[null,null,"Voluntary Coordinated Early Intervening Services (CEIS) (Fund Code 240)\nFor Any District, Irrespective of Disproportionality Identification"]
[null,"Step 5.1\nParticipating Districts","\nA district may opt to use up to 15% of Part B funds (Fund Code 240 and Fund Code 262) to develop and implement CEIS to improve results for students without disabilities in grades K-12.  If a district elects to participate, CEIS must be provided to students who are not currently identified as a student with an IEP, but who need additional academic and behavioral support to succeed in a general education environment. While CEIS may be designated for students in grades K-12, services must have a particular emphasis on students in kindergarten through grade three.  34 CFR § 300.226.\n\nNote regarding Maintenance of Effort (MOE): Districts must keep in mind that voluntary CEIS and the district’s MOE reduction requirements are interconnected. If the IDEA Part B allocation received for the current federal fiscal year exceeds the allocation for the previous fiscal year, a district may reduce its MOE (i.e., level of expenditures) by up to 50 percent of the increase in the allocation, but must subtract any reservation for voluntary CEIS.  Also, this reduction is only available to districts whose current special education determination is \"Meets Requirements.\"  See DESE's IDEA Local Education Agency Maintenance of Effort Quick Reference Guide for more information.\n\nAllowable uses for CEIS include:\n     • Providing professional development for teachers and other school staff for the delivery of scientifically based academic instruction and behavioral interventions, including\n        scientifically based literacy instruction and instruction in the use of adaptive and instructional software, and\n     • Providing educational and behavioral evaluations, services and supports. \n\nCEIS reporting requirements: \n     • Each district that uses Fund Code 240 and/or Fund Code 262 to support CEIS is required to track student-level data for three school years and report it annually to the Massachusetts\n        Department of Elementary and Secondary Education (DESE), including: \n             o  The number of students served by CEIS during this school year, and\n             o\t The number of these students who subsequently were found eligible for special education and related services during this school year (2020-2021) and also \n                 during the next two school years (2021-2022 and 2022-2023).  DESE will contact your district directly for this information. \n\nIf you have any questions regarding voluntary CEIS please contact the Office of Special Education Planning and Policy Development at 781-338-3375 or specialeducation@doe.mass.edu.\n"]
[]
[]
[]
[]
[]
[]
[]
[]
[null,null,"Total Fund Code 240 Special Education Entitlement allocation for FY21.  ",null,null,null,null,null,null,{"$f":"IFERROR(valAllocation240, \"\")","v":0}]
[null,null,"Total Fund Code 262 Special Education Entitlement allocation for FY21.",null,null,null,null,null,null,{"$f":"valAllocation262","v":0}]
[null,null,"Maximum allowable funds that can be used for Coordinated Early Intervening Services (CEIS) (any amount up to 15% of  FY21 FC 240 + FC 262 allocations)",null,null,null,null,null,null,{"$f":"IFERROR(0.15*(J14+J15),\"\")","v":0}]
[null,null,"Enter the total funds from Fund Code 240 that the district opts to use for voluntary CEIS for FY21. "]
[null,null,"Enter the total funds from Fund Code 262 that the district opts to use for voluntary CEIS for FY21. "]
[null,null,"The total district reservation for voluntary CEIS.  This amount CANNOT exceed the above maximum (cell will turn red if amount exceeds 15% of FC 240 + FC 262). ",null,null,null,null,null,null,{"$f":"valCEIS240+J18","v":0},{"$f":"IFERROR(CEISTot/(J14+J15), 0)","v":0}]
[]
[null,"Step 5.2\nParticipating Districts","Defining the population (target group) to be served through CEIS activities\nIdentify the population to be served. Describe the criteria the district used to determine students in need of additional support but who have not been identified as needing special education. List the specific criteria used by the district for identifying the students who will receive CEIS. "]
[]
[]
[null,"Step 5.3\nParticipating Districts","Selection of interventions \nDescribe the “scientifically based” academic or behavioral intervention(s) to be used with students identified as described above.  This description must include answers to \nthe following two questions:\n•\tWhat is the intervention(s)? \n•\tWhat has the district used to determine that the intervention(s) selected is evidence-based for the target population of students?  "]
[]
[]
[]
[null,"Step 5.4\nParticipating Districts","Direct services to the identified population\nIf you are providing direct services to the target population, describe how those services will be delivered.  Include the staff position(s), the approximate FTE, and a timeline of services."]
[null,null,"Services to be Delivered",null,"Which staff will be involved",null,"Position Title","FTE","Timeline of services"]
[]
[]
[]
[]
[]
[]
[null,"Step 5.5\nParticipating Districts","Professional development to personnel delivering services\nCEIS funds may be used to provide professional development to all personnel who are responsible for students who need additional academic and behavioral supports to succeed in a general education environment, but who have not been identified as needing special education. Please describe the training on those intervention(s), including and who will provide the training and provide a timeline of the training to be conducted."]
[null,null,"Training to be provided",null,null,"Who will provide the training",null,null,"Timeline"]
[]
[]
[]
[null,"Step 5.6\nParticipating Districts","Evaluation\nProvide a description of how your district will evaluate the effectiveness of this CEIS project. What data will be gathered to assess the remediation/improvement of the academic achievement and/or behavioral characteristics of the population defined in this application? "]

{"sheet":"6. Equitable Services 240","index":6,"n_rows":75,"n_cols":21,"rows_kept":75,"cut":false,"hidden":false,"merged":[[1,1,1,4],[3,2,3,14],[3,17,18,23],[4,2,7,12],[9,1,11,1],[11,3,11,12],[12,3,12,10],[12,11,12,12],[13,3,13,10],[13,11,13,12],[14,3,14,10],[14,11,14,12],[9,2,9,13],[15,3,15,10],[15,11,15,12],[19,1,20,1],[19,2,20,13],[20,19,23,26],[21,3,21,14],[22,10,24,11],[22,12,24,13],[23,2,24,9],[24,19,29,26],[25,2,25,9],[25,12,25,13],[26,2,26,9],[26,12,26,13],[19,14,20,16],[27,2,27,9],[29,2,29,8],[29,9,29,10],[32,1,33,1],[32,2,33,13],[34,14,34,24],[37,12,37,13],[37,15,37,22],[38,2,38,8],[38,12,38,13],[38,15,38,22],[34,9,36,11],[34,12,36,13],[39,2,39,8],[39,12,39,13],[39,15,39,25],[40,2,40,8],[40,12,40,13],[40,15,40,21],[58,1,59,1],[43,1,44,1],[43,2,44,10],[45,2,45,9],[46,2,46,9],[47,2,47,9],[49,2,49,9],[48,2,48,9],[58,2,59,11],[65,2,65,10],[50,2,50,9],[51,2,51,9],[52,2,52,9],[53,2,53,9],[61,2,61,10],[62,2,62,10],[63,2,63,10],[64,2,64,10],[60,2,60,11],[75,15,75,18],[66,2,66,10],[74,2,74,11],[70,1,71,1],[73,2,73,4],[73,6,73,10],[70,2,71,11],[72,2,72,11],[75,2,77,11]]}
[]
[null,{"$f":"valDistrName","v":"OrgName"}]
[]
[null,null,"Proportionate Share Calculation and Required Data for Equitable Services for Parentally-Placed \nChildren With Disabilities Enrolled in Private Schools or Home-Schooled  (Fund Code 240)"]
[null,null,"Districts must spend a proportionate share of federal special education entitlement funds awarded under Fund Code 240 on services for equitable services for eligible, parentally-placed, private-school and home-schooled students attending school in the district's catchment area. \n\nGeneral Resources:\nDESE:  Administrative Advisory SPED 2018-1:  Guidance and Workbook for Calculating and Providing Proportionate Share Services for Students \n           with Disabilities Enrolled by Their Parents in Private Schools\n\n           IDEA Equitable Services for Students with Disabilities E-Learning Module for Massachusetts Educators\n\nUSED:  Questions and Answers on Serving Children with Disabilities Placed by their Parents in Private Schools, April 2011.\n\nNote for Schedule A Districts:  All members of a Schedule A consortium must fill out a proportionate share calculation and require data for parentally-placed children with disabilities who are enrolled by their parents in private schools or home-schooled.  Lead districts fill in this tab with information for its district only.  Member districts use the Schedule A Member Addendum, found with the RFP, with tabs for each member to complete, and the lead district will upload to EdGrants as an attachment to its FC240 EdGrants submission.  Lead districts must enter the proportionate share reservation for individual districts on the Schedule A at the end of this application using the information from the Schedule A Member Addendum, Schedule A Member Summary tab.  Those amounts will be aggregated to a total proportionate share reservation below and on the Tab 9, Budget."]
[]
[]
[]
[]
[null,"Step 6.1\nAll districts","District Information:  Do you need to complete this form?"]
[]
[null,null,null,"Please indicate whether your district has private school(s) and/or any home-schooled students in your geographic boundaries or is exempt:"]
[null,null,null,"We do not have to complete this form because we are a charter, virtual or vocational/technical district:",null,null,null,null,null,null,null,"Select One"]
[null,null,null,"Does your district have private school(s) in its geographic boundaries?",null,null,null,null,null,null,null,"Select One"]
[null,null,null,"Does your district have approved home-schooled students in its geographic boundaries?",null,null,null,null,null,null,null,"Select One"]
[null,null,null,"Are you the lead district for a Schedule A consortium?",null,null,null,null,null,null,null,"Select One"]
[]
[]
[]
[null,"Step 6.2\nOnly districts with private and/or home-schooled students","Child Count:  Annual count of the number of parentally-placed private school and home-schooled children with disabilities\n (34 CFR § 300.133(c)) Child count is conducted on any date between October 1 and December 1, inclusive, of each year.   This count is used for the subsequent year's calculation of proportionate share."]
[]
[]
[null,null,null,null,null,null,null,null,null,null,"Eligible Private-School/Home-Schooled Students who\n live in your district. \n(Resident)\n",null,"Eligible Private School Students who do not live in your district.\n  (Non-Resident)"]
[]
[]
[null,null,null,null,null,null,null,null,null,null," Attending private school \nwithin your district ","Home-schooled within your district","Attending private school \nwithin your district "]
[null,null,"Number of eligible parentally-placed students ages 3-21 attending a private elementary or secondary school or home-schooled in your district. If none, enter \"0\"."]
[null,null,"Total number of eligible parentally-placed students ages 3-21 attending a private elementary or secondary school or home-schooled in your district.  ",null,null,null,null,null,null,null,{"$f":"SUM(K27:N27)","v":0}]
[]
[null,null,"Number of public school district students with IEPs (SWIEPs) ages 3-21. (SWIEPs for your public school district for the 2019-2020 school year)"]
[]
[]
[null,"Step 6.3\nAll districts but charters, virtual and voc/tech "," Record Keeping  (34 CFR § 300.132(c))"]
[]
[null,null,null,null,null,null,null,null,null,"Private School/Home-Schooled Students who\n live in your district.\n(Resident)",null,null,"Private School Students who do not live in your district.\n  (Non-Resident)"]
[]
[]
[null,null,null,null,null,null,null,null,null,"A. Attending private school within your district ","B. Home-schooled\n within your district","C. Attending private school\n in another district","D. Attending private school within your district "]
[null,null,"Total number of parentally-placed private school and home-schooled students ages 3-21 evaluated by your district during 2019-2020 school year, including initial evaluations and re-evaluations. If none, enter \"0\".  "]
[null,null,"Of those students evaluated, the total number of parentally-placed private school and home-schooled students ages 3-21 found eligible for services during the school year 2019-2020. If none, enter \"0\".  "]
[null,null,"Total number of eligible parentally-placed private or home-schooled school students ages 3-21 who received equitable services from your district during the school year 2019-2020.  If none, enter \"0\".  "]
[]
[]
[null,"Step 6.4\nOnly districts with eligible private and/or home-schooled students","Calculating the Proportionate Share Reservation (34 CFR § 300.133)"]
[]
[null,null,"Total number of currently eligible parentally-placed students, ages 3-21, attending a private elementary or secondary school or home-schooled in your district. ",null,null,null,null,null,null,null,{"$f":"K28","v":0}]
[null,null,"Total of all eligible students in district (public, private and home-schooled)",null,null,null,null,null,null,null,{"$f":"K28+J30","v":0}]
[null,null,"The percentage of eligible students ages 3-21 in your district who are attending a private elementary or secondary school or are home-schooled. ",null,null,null,null,null,null,null,{"$f":"IFERROR(K46/K47,\"\")","v":""}]
[null,null,"If you are a lead district for a Schedule A consortium, enter the FC 240 allocation for your district only."]
[null,null,"District's special education IDEA entitlement for FY21 (Fund Code 240).  (For Schedule A districts, this will be the lead district's allocation only based on the dollar figure supplied in the previous row).",null,null,null,null,null,null,null,{"$f":"IFERROR(IF(AND(K49<>\"\", K49<>0), K49, valAllocation240), 0)","v":0}]
[null,null,"The minimum share of federal funds that the district must reserve for equitable services to eligible parentally-placed students who attend private schools and/or are home-schooled in your district during FY21.",null,null,null,null,null,null,null,{"$f":"IFERROR(K50*K48, 0)","v":0}]
[null,null,"Optional additional FC 240 funding that the district will reserve for equitable services to eligible parentally-placed students who attend private schools and/or are home-schooled in your district during FY21."]
[null,null,"Schedule A member districts' FC 240 reservation for equitable services to eligible students who attend private schools and/or home-schooled during FY21 (will populate for Schedule A consortia members only).",null,null,null,null,null,null,null,{"$f":"SchedA240Pro","v":0}]
[null,null,"Total FC 240 funding reserved for equitable services to eligible parentally-placed students who attend private schools and/or are home-schooled in your district during FY21 (minimum required reservation plus optional additional reservation) - rounded up to the nearest dollar.",null,null,null,null,null,null,null,{"$f":"IFERROR(ROUNDUP(K51+K52+K53, 0), \"\")","v":0}]
[]
[]
[]
[]
[null,"Step 6.5\nOnly districts with eligible private and/or home- schooled students","Proportionate Share Compliance Checklist (34 CFR § 300.134)"]
[]
[null,null,"Please indicate whether the district has completed the following activities related to proportionate share and equitable services in FY20 and has systems in place to ensure compliance in FY21.  The district has and will:"]
[null,null,"1.  Engage in ongoing meaningful consultation with private school and parent representatives, at least 3 \n      times per year, including obtaining written affirmation(s) after each meeting.",null,null,null,null,null,null,null,null,"Select One"]
[null,null,"2.  Include in all consultations discussion of  the child find process, covering how parentally-placed private-school and \n     home-schooled children suspected of a disability can participate and how parents, teachers, and private school officials \n     will be informed of the process.",null,null,null,null,null,null,null,null,"Select One"]
[null,null,"3.  Include in all consultations discussion of the provision of special education and related services, including the types of \n     services, and how decisions about services will be made.",null,null,null,null,null,null,null,null,"Select One"]
[null,null,"4.  Provide a written explanation of the reasons why it chose not to provide services directly or through a contract in the\n     manner requested by the private school or parent to private school officials and/or parent, if the district disagrees with the \n     views of  private school officials or parents of home-schooled students on the provision  of services or the types of services   \n     (whether provided directly or through a contract).",null,null,null,null,null,null,null,null,"Select One",null,null,null,null,null,null,null,null,"KC:  I have a question about tense:  are we presuming that consultations should have happened by the time we get the application so that past tense for 2-5 is okay?"]
[null,null,"5.  Include in consultations a discussion and explanation of how the proportionate share was calculated.",null,null,null,null,null,null,null,null,"Select One",null,null,null,null,null,null,null,null,"Matt:  Add a checkbox re: keeping records re: services provided"]
[null,null,"6.  Be prepared to spend FY21 proportionate share for equitable services for eligible parentally-placed, private-school and/or \n      home-schooled students in your district, as well as any carryover funds from FY20, during FY21.",null,null,null,null,null,null,null,null,"Select One",null,null,null,null,null,null,null,null,"I'm not sure this is the best place for this tip anymore -- maybe move up to reservation section?"]
[]
[]
[]
[null,"Step 6.6\nOnly districts that reserved funds for private school services in FY20","Carrying Over Unspent Funds from FY20 for Equitable Services for Parentally-Placed, Private-School or \nHome-Schooled Students (34 C.F.R. 300.133(a)(3))"]
[]
[null,null,"If your district has not expended  all of its proportionate share funds reserved for equitable services by the end of the fiscal year, the district must obligate the remaining funds for special education and related services (including direct services) to eligible parentally-placed private-school students during a carry-over period of one additional year.  34 CFR § 300.133(a)(3) "]
[null,null,"Do you have any unspent funds from your FY20 Fund Code 240 proportionate share reservation for equitable services?",null,null,"Select One","If you answer \"yes\" to the previous question, how much of your FY20 Fund Code 240 proportionate share reservation was not spent?  (Note:  Do not include these funds in your budget for FY21 (Tab 9).  They remain part of your FY20 budget)"]
[null,null,"After consultation, how will the district ensure that the remaining FY20 funds are spent for equitable services in a timely way during  FY21 (please describe planned expenditures as part of your response)?"]

{"sheet":"7. M3 240","index":7,"n_rows":33,"n_cols":11,"rows_kept":33,"cut":false,"hidden":false,"merged":[[25,2,25,10],[29,4,29,5],[30,4,30,5],[31,4,31,5],[1,2,1,3],[9,2,9,3],[26,4,26,5],[27,4,27,5],[28,4,28,5],[5,2,5,9],[12,2,12,9],[17,2,17,9],[19,2,19,9],[21,2,21,9],[23,2,23,9],[9,4,9,5],[6,2,6,9],[7,2,7,9],[20,2,20,9],[22,2,22,9],[5,10,5,12],[12,10,13,12],[17,10,19,12],[13,3,13,5],[13,6,13,8],[16,2,16,9],[18,2,18,9],[14,2,14,9],[10,2,10,3],[15,2,15,9]]}
[]
[null,null,{"$f":"valDistrName","v":"OrgName"},null,null,null,"M3 Status",{"$f":"IF(valAccount=\"Yes\", \"Required\", \"Not Applicable\")","v":"Not Applicable"}]
[]
[null,null,"Making Money Matter (M³) Program for Identified Districts"]
[]
[null,null,"Identified districts are required to direct at least 2% of their total FY21 special education entitlement allocation (Fund Code 240) for targeted use toward the development of evidence-based and sustainable improvements to instructional strategies and services.  Services must emphasize Tier 1 inclusive practices and supports for all students, especially students on IEPs, and accelerate improved student outcomes.   \nFor more information, contact Abigail T. Slayton at Abigail.T.Slayton@mass.gov"]
[null,null,"               • M³ initiatives should be aligned with improvement/sustainable improvement/action plans and prioritize services at schools that have been identified for low subgroup performance.  \n               • Districts engaged in sustainable improvement planning or implementation in partnership with the DESE Statewide System of Support (SSoS) are strongly encouraged to consult with their applicable \n                  DESE SSoS representative.\n               • Districts are encouraged to budget more than the 2% minimum as applicable for project needs."]
[null,null,"More information can be found at the Making Money Matter webpage."]
[]
[null,"Step 7.1\nAll M³ districts","Is this your first year/initial needs assessment/planning phase?\n(Answer \"Yes\" if the district did not participate in FY20 and go directly to  Step 7.3)",null,"Select One",null,null,"Minimum Required M3  expenditure\n(2%) ",{"$f":"IF(H2=\"Required\", ROUND(valAllocation240*0.02,0), \"\")","v":""}]
[]
[]
[null,"Step 7.2\nContinuing M³ districts only","Continuing Participant Information\n Items below to be completed by CONTINUING DISTRICTS ONLY"]
[null,null,"Stage of implementation:  ","Continuing to implement FY20 actions in FY21 ",null,null,"Has your district's FY20 M3 Year-end Report been submitted to Abigail T. Slayton (Abigail.T.Slayton@mass.gov)? \nFind report at https://www.surveygizmo.com/s3/4844784/M3-FY20-End-of-Year-Report",null,null,"Select One"]
[]
[null,null,"If your district indicated in the \"Stage of implementation\" that it is continuing to implement the same actions as in FY20, skip directly to Step 7.3"]
[null,null,"Theory of Action (If/Then/So That statement): "]
[]
[null,null,"Targeted Area(s) of Need, including evidence of this need and rationale for prioritizing it:"]
[]
[null,null,"Process for Midcourse Adjustments, including data sources and progress monitoring team:"]
[]
[null,null,"Blended and/or braided funding expectations (How will funds M3 funds be integrated with other funding sources?):"]
[]
[]
[null,"Step 7.3\nAll M³ districts","Program Description \nTo be completed by ALL APPLICANTS.\nUse as many rows as needed, inserting more as needed, to briefly List All Strategies. Complete all columns for each strategy. (Cells will expand with text insertion.)"]
[null,null,"Objective","Strategies","Specific School(s) served or District-wide",null,"Grade Levels or All","Describe Alignment to Sustainable Improvement Plan, Charter School Action Plan, and/or District/School improvement priorities.","Expected Outcome(s), including contribution to closing achievement gaps for students with disabilities","FY21 M3 funds budgeted for this objective/strategy","FY20 carry over funds budgeted for this objective/strategy\n(Do not add to FY21 240 Budget, Tab 9)"]
[]
[]
[]
[]
[]
[null,null,null,null,null,null,null,null,"Total:",{"$f":"SUM(J28:J32)","v":0},{"$f":"SUM(K28:K32)","v":0}]

{"sheet":"8. Narrative 240","index":8,"n_rows":10,"n_cols":3,"rows_kept":10,"cut":false,"hidden":false,"merged":[[9,18,11,23],[9,2,9,17],[10,2,10,17],[1,2,1,5],[5,2,7,17],[2,2,4,17]]}
[]
[null,null,{"$f":"valDistrName","v":"OrgName"}]
[null,null,"Budget Overview (Fund Code 240)"]
[]
[]
[null,"Step 8.1\nAll districts","\nThe priorities of the IDEA Federal Special Education Grant (34 CFR §300.1): \n  1. Ensure that all children with disabilities have available to them a free and appropriate public education that emphasizes special education and related services\n      designed to meet their unique needs and prepare them for further education, employment, and independent living;\n  2. Ensure that the rights of children with disabilities and their parents are protected; \n  3. Assist states, localities, education service agencies, and Federal agencies to provide for the education of all children with disabilities; and\n  4. Assess and ensure the effectiveness of efforts to educate children with disabilities.\n\nFunds available under this federal entitlement program are intended for use by districts in providing eligible students with special education services and activities deemed essential for students' success in school.\n"]
[]
[]
[]
[null,"Step 8.2\nAll districts","Please provide a brief narrative description of the activities, programs and/or services that will be supported with these funds and how these activities and programs will be executed to achieve grant priorities (above). You may include support such as the needs that your district will address, changes in the numbers of students and/or types of services provided, staffing configurations, or specific resources, methods and procedures to be employed in conducting grant-funded activities.  Your budget overview should align with the expenses  listed on your budget page (Tab 9)."]

{"sheet":"9. Budget 240","index":9,"n_rows":131,"n_cols":35,"rows_kept":131,"cut":false,"hidden":false,"merged":[[108,1,109,1],[117,5,117,6],[115,5,116,6],[26,5,26,8],[26,29,26,30],[27,29,27,30],[28,4,28,8],[29,29,29,30],[30,5,30,8],[91,18,94,18],[92,10,92,11],[93,10,93,11],[96,18,99,18],[79,5,79,11],[80,4,80,12],[99,29,99,30],[91,10,91,11],[73,5,73,7],[75,5,75,11],[75,18,80,18],[76,5,76,11],[58,23,58,24],[77,5,77,11],[78,5,78,11],[38,23,38,24],[35,23,35,24],[23,23,23,24],[21,23,21,24],[34,23,34,24],[33,23,33,24],[32,23,32,24],[31,23,31,24],[30,23,30,24],[29,23,29,24],[26,23,26,24],[25,23,25,24],[24,23,24,24],[67,23,67,24],[74,23,74,24],[85,23,85,24],[84,23,84,24],[79,23,79,24],[83,23,83,24],[82,23,82,24],[78,23,78,24],[77,23,77,24],[76,23,76,24],[75,23,75,24],[72,23,72,24],[98,23,98,24],[97,23,97,24],[96,23,96,24],[88,23,88,24],[87,23,87,24],[104,4,104,12],[86,5,86,11],[86,29,86,30],[87,5,87,11],[87,29,87,30],[88,5,88,11],[88,29,88,30],[82,18,89,18],[82,29,82,30],[83,5,83,11],[83,29,83,30],[84,5,84,11],[84,29,84,30],[85,5,85,11],[89,4,89,12],[96,29,96,30],[97,29,97,30],[98,29,98,30],[85,29,85,30],[86,23,86,24],[68,18,73,18],[68,29,68,30],[69,5,69,11],[69,29,69,30],[70,5,70,11],[70,29,70,30],[71,5,71,11],[71,29,71,30],[72,5,72,11],[72,29,72,30],[81,23,81,24],[71,23,71,24],[70,23,70,24],[69,23,69,24],[68,23,68,24],[79,29,79,30],[75,29,75,30],[76,29,76,30],[77,29,77,30],[78,29,78,30],[64,5,64,8],[64,29,64,30],[65,5,65,8],[65,29,65,30],[59,18,65,18],[59,29,59,30],[60,5,60,8],[60,29,60,30],[61,5,61,8],[61,29,61,30],[62,5,62,8],[62,29,62,30],[63,5,63,8],[62,23,62,24],[61,23,61,24],[60,23,60,24],[59,23,59,24],[63,29,63,30],[65,23,65,24],[64,23,64,24],[63,23,63,24],[55,5,55,12],[55,29,55,30],[56,5,56,12],[56,29,56,30],[48,5,48,8],[48,29,48,30],[49,4,49,12],[50,4,50,8],[51,5,51,12],[51,18,57,18],[52,5,52,12],[53,5,53,12],[53,29,53,30],[51,29,51,30],[52,29,52,30],[56,23,56,24],[55,23,55,24],[54,23,54,24],[53,23,53,24],[52,23,52,24],[44,18,48,18],[44,29,44,30],[45,5,45,8],[45,29,45,30],[46,5,46,8],[46,29,46,30],[47,5,47,8],[47,29,47,30],[54,5,54,12],[54,29,54,30],[30,29,30,30],[31,5,31,8],[31,29,31,30],[33,5,33,8],[33,29,33,30],[34,5,34,8],[34,29,34,30],[42,4,42,12],[43,4,43,8],[39,23,39,24],[51,23,51,24],[48,23,48,24],[47,23,47,24],[46,23,46,24],[45,23,45,24],[44,23,44,24],[41,23,41,24],[40,23,40,24],[20,1,21,1],[12,4,12,15],[16,4,16,15],[14,4,14,15],[13,4,13,15],[66,4,66,12],[57,4,57,12],[23,29,23,30],[24,5,24,8],[24,29,24,30],[25,5,25,8],[25,29,25,30],[32,5,32,8],[32,29,32,30],[20,3,20,26],[21,4,21,12],[21,29,21,30],[23,5,23,8],[23,18,27,18],[39,5,39,8],[39,29,39,30],[40,5,40,8],[40,29,40,30],[41,5,41,8],[17,4,17,15],[2,1,2,10],[4,1,4,31],[10,4,11,21],[12,17,12,21],[13,17,13,21],[14,17,14,21],[16,17,16,21],[17,17,17,21],[10,1,12,1],[6,4,7,6],[6,7,7,8],[7,9,7,10],[7,11,7,12],[15,4,15,15],[15,17,15,21],[128,5,128,6],[129,5,129,6],[96,5,97,12],[130,5,130,6],[130,7,130,8],[115,7,116,8],[117,7,117,8],[118,7,118,8],[119,7,119,8],[120,7,120,8],[121,7,121,8],[122,7,122,8],[123,7,123,8],[124,7,124,8],[125,7,125,8],[126,7,126,8],[127,7,127,8],[128,7,128,8],[129,7,129,8],[118,5,118,6],[119,5,119,6],[120,5,120,6],[121,5,121,6],[122,5,122,6],[90,23,90,24],[50,23,50,24],[43,23,43,24],[37,23,37,24],[28,23,28,24],[113,24,113,30],[114,24,114,30],[115,30,116,30],[127,5,127,6],[123,5,123,6],[124,5,124,6],[125,5,125,6],[126,5,126,6],[121,10,121,19],[122,10,122,19],[41,29,41,30],[35,5,35,8],[35,29,35,30],[36,4,36,12],[36,29,36,30],[37,4,37,8],[38,5,38,8],[38,29,38,30],[30,18,35,18],[127,24,127,28],[128,24,128,28],[129,24,129,28],[128,10,128,19],[129,10,129,19],[115,10,116,19],[115,24,116,28],[117,24,117,28],[118,24,118,28],[119,24,119,28],[120,24,120,28],[123,10,123,19],[124,10,124,19],[125,10,125,19],[127,10,127,19],[126,10,126,19],[117,10,117,19],[118,10,118,19],[119,10,119,19],[120,10,120,19],[109,3,110,32],[108,3,108,32],[100,23,100,24],[121,24,121,28],[122,24,122,28],[123,24,123,28],[124,24,124,28],[125,24,125,28],[126,24,126,28],[111,3,111,31],[102,23,102,24],[104,23,104,24]]}
[]
[]
[null,{"$f":"valDistrName","v":"OrgName"}]
[]
[null,"FY21 IDEA, Part B, Supporting Students with Disabilities (Fund Code 240) Budget Worksheet"]
[]
[null,null,null,null,"FC 240 Allocation ",null,null,{"$f":"IFERROR(valAllocation240, 0)","v":0}]
[]
[]
[]
[null,"Step 9.1\nAll Districts",null,null,"District Reservations "]
[]
[null,null,null,null,"Proportionate share for parentally placed private- and home-schooled students (from Tab 6)",null,null,null,null,null,null,null,null,null,null,null,{"$f":"ROUNDUP(valEq240,0)","v":0},{"$f":"IFERROR(Q13/$H$7,\"\")","v":""}]
[null,null,null,null,"Voluntary Coordinated Early Intervening Services (CEIS), up to 15% of total FC 240 and FC 262 (from Tab 5)",null,null,null,null,null,null,null,null,null,null,null,{"$f":"valCEIS240","v":0},{"$f":"IFERROR(Q14/$H$7,\"\")","v":""}]
[null,null,null,null,"Making Money Matters (M3) reservation for designated districts, at least 2% of total allocation (from Tab 7)",null,null,null,null,null,null,null,null,null,null,null,{"$f":"IF(OR(valM3>0, '7. M3 240'!H2=\"Required\"), valM3, \"N/A\")","v":"N/A"},{"$f":"IFERROR(Q15/$H$7,\"N/A\")","v":"N/A"}]
[null,null,null,null,"Comprehensive Coordinated Early Intervening Services (CCEIS), 15% of total FC 240 and FC 262 (from Tab 4)",null,null,null,null,null,null,null,null,null,null,null,{"$f":"IF(OR(valCCEIS240>0,'4. CCEIS'!J2=\"Required\"), valCCEIS240, \"N/A\")","v":"N/A"},{"$f":"IFERROR(Q16/$H$7,\"N/A\")","v":"N/A"}]
[null,null,null,null,"TOTAL reservations",null,null,null,null,null,null,null,null,null,null,null,{"$f":"SUM(Q13:Q16)","v":0},{"$f":"IFERROR(Q17/$H$7,\"\")","v":""}]
[null,null,null,null,"TOTAL after reservations",null,null,null,null,null,null,null,null,null,null,null,{"$f":"IFERROR(H7-Q17,0)","v":0},{"$f":"IFERROR(Q18/$H$7, \"\")","v":""}]
[]
[]
[null,"Step 9.2\nAll Districts"]
[null,null,null,null,"Line Item Category: Select an option from the drop down menu",null,null,null,null,null,null,null,null,null,"Amount",null,"Total Expenditure (whole numbers)",null,null,"Amount Included inTotal Expenditure for Equitable Services (Proshare)",null,"Amount Included in Total Expenditure for CEIS or CCEIS",null,"Amount Included in Total Expenditure for M3",null,null,null,"Primary Function",null,"Comments"]
[]
[null,null,null,null,1,"ADMINISTRATOR SALARIES:",null,null,null,null,"# of staff","FTE","MTRS",null,null,null,"Amount",null,null,"Amount",null,"Amount",null,"Amount",null,null,null,"Select from Drop Down List",null,"Budget Detail"]
[null,null,null,null,null,"Select One",null,null,null,null,null,null,null,false,{"$f":"IF(N25,Q25,0)","v":0},null,null,null,null,null,null,null,null,null,null,null,null,"Select One"]
[null,null,null,null,null,"Select One",null,null,null,null,null,null,null,false,{"$f":"IF(N26,Q26,0)","v":0},null,null,null,null,null,null,null,null,null,null,null,null,"Select One"]
[null,null,null,null,null,"Select One",null,null,null,null,null,null,null,false,{"$f":"IF(N27,Q27,0)","v":0},null,null,null,null,null,null,null,null,null,null,null,null,"Select One"]
[]
[null,null,null,null,"SUB-TOTAL",null,null,null,null,null,0,0,null,null,{"$f":"SUM(O25:O27)","v":0},null,{"$f":"SUM(Q25:Q27)","v":0},null,null,{"$f":"SUM(T25:T27)","v":0},null,{"$f":"SUM(V25:V27)","v":0},null,{"$f":"SUM(X25:Y27)","v":0}]
[null,null,null,null,2,"INSTRUCTIONAL/PROF STAFF:",null,null,null,null,"# of staff","FTE","MTRS",null,null,null,"Amount",null,null,"Amount",null,"Amount",null,"Amount",null,null,null,"Select from Drop Down List",null,"Budget Detail"]
[null,null,null,null,null,"Select One",null,null,null,null,null,null,null,false,{"$f":"IF(N31,Q31,0)","v":0},null,null,null,null,null,null,null,null,null,null,null,null,"Select One"]
[null,null,null,null,null,"Select One",null,null,null,null,null,null,null,false,{"$f":"IF(N32,Q32,0)","v":0},null,null,null,null,null,null,null,null,null,null,null,null,"Select One"]
[null,null,null,null,null,"Select One",null,null,null,null,null,null,null,false,0,null,null,null,null,null,null,null,null,null,null,null,null,"Select One"]
[null,null,null,null,null,"Select One",null,null,null,null,null,null,null,false,0,null,null,null,null,null,null,null,null,null,null,null,null,"Select One"]
[null,null,null,null,null,"Select One",null,null,null,null,null,null,null,false,0,null,null,null,null,null,null,null,null,null,null,null,null,"Select One"]
[null,null,null,null,null,"Select One",null,null,null,null,null,null,null,false,0,null,null,null,null,null,null,null,null,null,null,null,null,"Select One"]
[]
[null,null,null,null,"SUB-TOTAL",null,null,null,null,null,0,0,null,null,{"$f":"SUM(O31:O36)","v":0},null,{"$f":"SUM(Q31:Q36)","v":0},null,null,{"$f":"SUM(T31:T36)","v":0},null,{"$f":"SUM(V31:V36)","v":0},null,{"$f":"SUM(X31:Y36)","v":0}]
[null,null,null,null,3,"SUPPORT STAFF SALARIES:",null,null,null,null,"# of staff","FTE","MTRS",null,null,null,"Amount",null,null,"Amount",null,"Amount",null,"Amount",null,null,null,"Select from Drop Down List",null,"Budget Detail"]
[null,null,null,null,null,"Select One",null,null,null,null,null,null,null,false,{"$f":"IF(N40, Q40, 0)","v":0},null,null,null,null,null,null,null,null,null,null,null,null,"Select One"]
[null,null,null,null,null,"Select One",null,null,null,null,null,null,null,false,{"$f":"IF(N41, Q41, 0)","v":0},null,null,null,null,null,null,null,null,null,null,null,null,"Select One"]
[null,null,null,null,null,"Select One",null,null,null,null,null,null,null,false,0,null,null,null,null,null,null,null,null,null,null,null,null,"Select One"]
[]
[null,null,null,null,"SUB-TOTAL",null,null,null,null,null,0,0,null,null,{"$f":"SUM(O40:O42)","v":0},null,{"$f":"SUM(Q40:Q42)","v":0},null,null,{"$f":"SUM(T40:T42)","v":0},null,{"$f":"SUM(V40:V42)","v":0},null,{"$f":"SUM(X40:Y42)","v":0}]
[null,null,null,null,4,"STIPENDS:",null,null,null,"# of staff","Rate","Rate Type","MTRS",null,null,null,"Amount",null,null,"Amount",null,"Amount",null,"Amount",null,null,null,"Select from Drop Down List",null,"Budget Detail"]
[null,null,null,null,null,"Select One",null,null,null,null,null,"Select",null,false,{"$f":"IF(N46, Q46, 0)","v":0},null,null,null,null,null,null,null,null,null,null,null,null,"Select One"]
[null,null,null,null,null,"Select One",null,null,null,null,null,"Select",null,false,{"$f":"IF(N47, Q47, 0)","v":0},null,null,null,null,null,null,null,null,null,null,null,null,"Select One"]
[null,null,null,null,null,"Select One",null,null,null,null,null,"Select",null,false,0,null,null,null,null,null,null,null,null,null,null,null,null,"Select One"]
[null,null,null,null,null,"Select One",null,null,null,null,null,"Select",null,false,0,null,null,null,null,null,null,null,null,null,null,null,null,"Select One"]
[]
[null,null,null,null,"SUB-TOTAL",null,null,null,null,null,null,null,null,null,{"$f":"SUM(O46:O49)","v":0},null,{"$f":"SUM(Q46:Q49)","v":0},null,null,{"$f":"SUM(T46:T49)","v":0},null,{"$f":"SUM(V46:V49)","v":0},null,{"$f":"SUM(X46:Y49)","v":0}]
[null,null,null,null,5,"FRINGE BENEFITS:",null,null,null,null,null,null,null,null,null,null,"Amount",null,null,"Amount",null,"Amount",null,"Amount",null,null,null,"Brief Description",null,"Budget Detail"]
[null,null,null,null,null,"5a  MTRS (automatically calculated at 9% if MTRS box is checked above)  ",null,null,null,null,null,null,null,null,null,null,{"$f":"ROUND((SUM(O51,O44,O38,O29))*0.09,0)","v":0}]
[null,null,null,null,null,"5b  Other",null,null,null,null,null,null,null,null,null,null,{"$f":"SUM(Q55:Q57)","v":0}]
[null,null,null,null,null,"Health Insurance"]
[null,null,null,null,null,"Other Retirement Systems"]
[null,null,null,null,null,"Federal Insurance Contributions Act (FICA)"]
[]
[null,null,null,null,"SUB-TOTAL",null,null,null,null,null,null,null,null,null,null,null,{"$f":"SUM(Q53:Q54)","v":0},null,null,{"$f":"SUM(T53, T55:T57)","v":0},null,{"$f":"SUM(V53, V55:V57)","v":0},null,{"$f":"SUM(X53, X55:Y57)","v":0}]
[null,null,null,null,6,"CONTRACTUAL SERVICES:",null,null,null,null,"Rate","Rate Type",null,null,null,null,"Amount",null,null,"Amount",null,"Amount",null,"Amount",null,null,null,"Select from Drop Down List",null,"Budget Detail"]
[null,null,null,null,null,"Select One",null,null,null,null,null,"Select",null,null,null,null,null,null,null,null,null,null,null,null,null,null,null,"Select One"]
[null,null,null,null,null,"Select One",null,null,null,null,null,"Select",null,null,null,null,null,null,null,null,null,null,null,null,null,null,null,"Select One"]
[null,null,null,null,null,"Select One",null,null,null,null,null,"Select",null,null,null,null,null,null,null,null,null,null,null,null,null,null,null,"Select One"]
[null,null,null,null,null,"Select One",null,null,null,null,null,"Select",null,null,null,null,null,null,null,null,null,null,null,null,null,null,null,"Select One"]
[null,null,null,null,null,"Select One",null,null,null,null,null,"Select",null,null,null,null,null,null,null,null,null,null,null,null,null,null,null,"Select One"]
[null,null,null,null,null,"Select One",null,null,null,null,null,"Select",null,null,null,null,null,null,null,null,null,null,null,null,null,null,null,"Select One"]
[]
[null,null,null,null,"SUB-TOTAL",null,null,null,null,null,null,null,null,null,null,null,{"$f":"SUM(Q61:Q66)","v":0},null,null,{"$f":"SUM(T61:T66)","v":0},null,{"$f":"SUM(V61:V66)","v":0},null,{"$f":"SUM(X61:Y66)","v":0}]
[null,null,null,null,7,"SUPPLIES AND MATERIALS:",null,null,null,null,null,null,null,null,null,null,"Amount",null,null,"Amount",null,"Amount",null,"Amount",null,null,null,"Select from Drop Down List",null,"Budget Detail"]
[null,null,null,null,null,"Select One",null,null,null,null,null,null,null,null,null,null,null,null,null,null,null,null,null,null,null,null,null,"Select One"]
[null,null,null,null,null,"Select One",null,null,null,null,null,null,null,null,null,null,null,null,null,null,null,null,null,null,null,null,null,"Select One"]
[null,null,null,null,null,"Select One",null,null,null,null,null,null,null,null,null,null,null,null,null,null,null,null,null,null,null,null,null,"Select One"]
[null,null,null,null,null,"Select One",null,null,null,null,null,null,null,null,null,null,null,null,null,null,null,null,null,null,null,null,null,"Select One"]
[]
[null,null,null,null,"SUB-TOTAL",null,null,null,null,null,null,null,null,null,null,null,{"$f":"SUM(Q70:Q73)","v":0},null,null,{"$f":"SUM(T70:T73)","v":0},null,{"$f":"SUM(V70:V73)","v":0},{"$f":"SUM(X70:Y73)","v":0},{"$f":"SUM(X70:Y73)","v":0}]
[null,null,null,null,8,"TRAVEL:  (mileage, conference registration, courses, hotels, etc.)",null,null,null,null,null,null,null,null,null,null,"Amount",null,null,"Amount",null,"Amount",null,"Amount",null,null,null,"Select from Drop Down List",null,"Budget Detail"]
[null,null,null,null,null,"Select One",null,null,null,null,null,null,null,null,null,null,null,null,null,null,null,null,null,null,null,null,null,"Select One"]
[null,null,null,null,null,"Select One",null,null,null,null,null,null,null,null,null,null,null,null,null,null,null,null,null,null,null,null,null,"Select One"]
[null,null,null,null,null,"Select One",null,null,null,null,null,null,null,null,null,null,null,null,null,null,null,null,null,null,null,null,null,"Select One"]
[null,null,null,null,null,"Select One",null,null,null,null,null,null,null,null,null,null,null,null,null,null,null,null,null,null,null,null,null,"Select One"]
[]
[null,null,null,null,"SUB-TOTAL",null,null,null,null,null,null,null,null,null,null,null,{"$f":"SUM(Q77:Q80)","v":0},null,null,{"$f":"SUM(T77:T80)","v":0},null,{"$f":"SUM(V77:V80)","v":0},null,{"$f":"SUM(X77:Y80)","v":0}]
[null,null,null,null,9,"OTHER COSTS:",null,null,null,null,null,null,null,null,null,null,"Amount",null,null,"Amount",null,"Amount",null,"Amount",null,null,null,"Select from Drop Down List",null,"Budget Detail"]
[null,null,null,null,null,"Select One",null,null,null,null,null,null,null,null,null,null,null,null,null,null,null,null,null,null,null,null,null,"Select One"]
[null,null,null,null,null,"Select One",null,null,null,null,null,null,null,null,null,null,null,null,null,null,null,null,null,null,null,null,null,"Select One"]
[null,null,null,null,null,"Select One",null,null,null,null,null,null,null,null,null,null,null,null,null,null,null,null,null,null,null,null,null,"Select One"]
[null,null,null,null,null,"Select One",null,null,null,null,null,null,null,null,null,null,null,null,null,null,null,null,null,null,null,null,null,"Select One"]
[null,null,null,null,null,"Select One",null,null,null,null,null,null,null,null,null,null,null,null,null,null,null,null,null,null,null,null,null,"Select One"]
[null,null,null,null,null,"Select One",null,null,null,null,null,null,null,null,null,null,null,null,null,null,null,null,null,null,null,null,null,"Select One"]
[]
[null,null,null,null,"SUB-TOTAL",null,null,null,null,null,null,null,null,null,null,null,{"$f":"SUM(Q84:Q89)","v":0},null,null,{"$f":"SUM(T84:T89)","v":0},null,{"$f":"SUM(V84:V89)","v":0},null,{"$f":"SUM(X84:Y89)","v":0}]
[null,null,null,null,null,null,null,null,"(a) rate (%)",null,"(b) eligible allocation less indirect",null,null,null,null,null,"Amount"]
[null,null,null,null,10,"INDIRECT COSTS *",null,null,null,null,{"$f":"IFERROR(IF(I93=\"\",\"\", (H7-IndExclusion240)/(1+I93)),\"\")","v":""}]
[null,null,null,null,null,null,null,null," (a x b)",null,{"$f":"IFERROR(ROUND(K93*I93, 0), \"\")","v":""}]
[null,null,null,null,null,null,null,null,null,null,"   maximum allowed"]
[]
[null,null,null,null,11,"EQUIPMENT\nItems costing $5,000+ per unit and having a useful life more than 1 year must be listed individually in Step 9.3, below (not eligible for recovery of indirect cost).  Once listed below,",null,null,null,null,null,null,null,null,null,null,"Amount",null,null,"Amount",null,"Amount",null,"Amount",null,null,null,"Select from Drop Down List",null,"Budget Detail"]
[null,null,null,null,null,null,null,null,null,null,null,null,null,null,null,null,{"$f":"IndEquip240","v":0},null,null,null,null,null,null,null,null,null,null,"Select One"]
[null,null,null,null,null,"the total for Equipment will automatically populate in the gray cell to the right."]
[]
[null,null,null,null,"SUB-TOTAL",null,null,null,null,null,null,null,null,null,null,null,{"$f":"Q98","v":0},null,null,{"$f":"T98","v":0},null,{"$f":"V98","v":0},null,{"$f":"X98","v":0}]
[null,null,null,null,null,null,null,null,null,null,null,null,null,null,null,null,"Total Allocation",null,null,"Total Equitable Services",null,"Total CEIS/CCEIS",null,"Total M3"]
[null,null,null,null,"TOTAL FUNDS REQUESTED ",null,null,null,null,null,null,null,null,null,null,null,{"$f":"Q101+Q93+Q91+Q82+Q75+Q68+Q59+Q51+Q44+Q38+Q29","v":0},null,null,{"$f":"SUM(T101+T91+T82+T75+T68+T59+T51+T38+T29+T44)","v":0},null,{"$f":"SUM(V101+V91+V82+V68+V75+V59+V51+V44+V38+V29)","v":0},null,{"$f":"SUM(X101+X91+X82+X75+X68+X59+X51+X44+X38+X29)","v":0}]
[]
[null,null,null,null,"DISCREPANCY:  Difference between allocation and budgeted total, if any",null,null,null,null,null,null,null,null,null,null,null,{"$f":"IFERROR(IF(Q103<>valAllocation240,Q103-valAllocation240,\"\"),\"\")","v":""},null,null,{"$f":"IF(Q13<>T103,T103- Q13, \"\")","v":""},null,{"$f":"IF(V103<>(valCEIS240 + valCCEIS240),V103-(valCEIS240 + valCCEIS240),\"\")","v":""},null,{"$f":"IF(X103<>valM3,X103-valM3,\"\")","v":""}]
[]
[]
[]
[null,"Step 9.3\n Districts with Equipment expenses and/or Indirect Costs",null,"Indirect Costs:  Major contracts and equipment"]
[null,null,null,"\nIndirect costs are those expenses of doing business that are not readily identified with a particular grant, contract, project fund or activity, but are necessary for the general operation of the organization and the conduct of the activities it performs.  Because these expenses are difficult to track with precision across all benefiting sources, federal grants allow use of a rate as a mechanism for fairly and conveniently apportioning indirect costs across all programs within the boundaries of sound administrative principles.  \nSee U.S. Department of Education, Indirect Cost Overview (https://www2.ed.gov/about/offices/list/ocfo/intro.html). \n\nFor this grant, indirect costs must be consistent with the rate established by DESE's Office of School Finance.  Note that districts are allowed to take less than the maximum allowable for indirect costs. The decision to recover indirect costs using these established rates is a local option.  If indirect costs are recovered, they shall be returned to the general fund of the city or town in  accordance with G.L. Chapter 44, Section 53.  In the case of regional schools, indirect costs shall be returned to the regional school general fund.  www.doe.mass.edu/Grants/essential.html\n\nIn calculating the indirect cost allowable for a particular grant, some expenditures are not included.  Two such exclusions include a portion of major subawards or subcontracts (those exceeding $25,000), and capital costs (equipment purchases of $5,000 or more).  \nSee, U. S. Department of Education, Cost Allocation Guide for State and Local Governments.  https://www2.ed.gov/about/offices/list/ocfo/fipao/guideigcwebsite.pdf\n\n                                        •  Contracts:  For major contracts exceeding $25,000, districts may recover indirect costs on only the first $25,000 of each contract.   The remainder of the contract amount is excluded from application of the indirect cost rate.  Note that for contracts \n                                            for professional services normally provided in-house, such as a speech pathologist or school nurse, this exclusion does not apply, even if the contract exceeds $25,000.  Of course, these expenses are also subject to all other grant requirements \n                                            (allowability, allocability, necessarily and reasonable, etc.) to be properly chargeable to the grant as well.\n\n                                        • Equipment:  All equipment costing $5,000 or more and having a useful life of more than 1 year is considered a capital expenditure and not eligible for recovery of indirect cost.  The total for equipment should match the total entered in Line 11, above.\n\nDirections:  List contracts exceeding $25,000 below (but not those for professional services normally provided in house) and the amount to be excluded will be calculated automatically.  The excluded amount will be added to the equipment total (Line 11) and subtracted from your district's allocation before calculating your district's maximum allowable indirect cost on Line 10."]
[]
[null,null,null,null,null,null,null,null,null,null,null,null,null,null,null,null,null,null,null,null,null,null,null,null,null,null,null,null,null,null,null,null,null,null,{"$f":"IndEquip240+IndK240","v":0}]
[null,null,null,null," "]
[null,null,null,null,null,"Contracts exceeding $25,000 (include in budget categories above in addition to listing individually here)",null,null,null,null,null,null,null,null,null,null,null,null,null,null,null,null,null,null,"  Equipment:  (from Line 11, above)\n\n"]
[null,null,null,null,null,null,null,null,null,null,null,null,null,null,null,null,null,null,null,null,null,null,null,null,"    List Items costing $5,000+ per unit and having a useful life of more than 1 year.  "]
[null,null,null,null,null,"Amount of contract:",null,"Amount excluded from indirect cost:",null,null,"  Description:",null,null,null,null,null,null,null,null,null,null,null,null,null,"Description:",null,null,null,null,null,"Amount:"]
[]
[null,null,null,null,null,null,null,{"$f":"IF((F118-25000)>0, (F118-25000), \"\")","v":""}]
[null,null,null,null,null,null,null,{"$f":"IF((F119-25000)>0, (F119-25000), \"\")","v":""}]
[null,null,null,null,null,null,null,""]
[null,null,null,null,null,null,null,""]
[null,null,null,null,null,null,null,""]
[null,null,null,null,null,null,null,""]
[null,null,null,null,null,null,null,""]
[null,null,null,null,null,null,null,""]
[null,null,null,null,null,null,null,""]
[null,null,null,null,null,null,null,""]
[null,null,null,null,null,null,null,""]
[null,null,null,null,null,null,null,""]
[null,null,null,null,null,null,null,""]
[null,null,null,null,"SUB-TOTAL",{"$f":"SUM(F118:G130)","v":0},null,{"$f":"SUM(H118:I130)","v":0},null,null,null,null,null,null,null,null,null,null,null,null,null,null,null,null,"SUB-TOTAL",null,null,null,null,null,{"$f":"SUM(AE118:AE130)","v":0}]

{"sheet":"10. Equitable Services 262","index":10,"n_rows":74,"n_cols":13,"rows_kept":74,"cut":false,"hidden":false,"merged":[[1,1,1,4],[3,2,3,13],[3,17,16,23],[4,2,6,12],[10,3,10,12],[11,3,11,10],[11,11,11,12],[12,3,12,10],[12,11,12,12],[8,2,8,13],[13,3,13,10],[13,11,13,12],[17,1,18,1],[17,2,18,13],[17,14,18,16],[18,19,21,26],[19,3,19,14],[21,2,22,9],[22,19,28,26],[23,2,23,9],[23,12,23,13],[24,2,24,9],[28,2,28,8],[28,9,28,10],[38,15,38,25],[37,2,37,9],[38,2,38,9],[31,1,32,1],[31,2,32,13],[33,12,35,13],[33,14,33,24],[36,12,36,13],[36,15,36,22],[33,10,35,11],[57,1,58,1],[57,2,58,11],[50,2,50,9],[52,2,52,9],[39,12,39,13],[42,1,43,1],[42,2,43,10],[44,2,44,9],[39,2,39,9],[51,2,51,9],[47,2,47,9],[69,1,70,1],[69,2,70,11],[69,15,69,18],[71,2,71,11],[72,2,72,4],[72,6,72,10],[73,2,73,11],[74,2,76,11],[76,12,80,29],[20,11,22,11],[20,10,22,10],[26,9,26,10],[26,2,26,8],[59,2,59,11],[45,2,45,9],[46,2,46,9],[48,2,48,9],[49,2,49,9],[39,15,39,21],[37,12,37,13],[37,15,37,22],[38,12,38,13],[65,2,65,10],[60,2,60,10],[61,2,61,10],[62,2,62,10],[63,2,63,10],[64,2,64,10]]}
[]
[null,{"$f":"valDistrName","v":"OrgName"}]
[]
[null,null,"Proportionate Share Calculation and Required Data for Equitable Services for Parentally-Placed Children Ages 3-5 With Disabilities Enrolled in Private Schools (Fund Code 262)"]
[null,null,"Districts must spend a proportionate share of federal special education entitlement funds awarded under Fund Code 262 on equitable services for eligible, parentally-placed, private-school students, ages 3-5, attending school in the district's catchment area. \n\nGeneral Resources:\nDESE:  Administrative Advisory SPED 2018-1:  Guidance and Workbook for Calculating and Providing Proportionate Share Services for Students \n           with Disabilities Enrolled by Their Parents in Private Schools\n           \n           IDEA Equitable Services for Children with Disabilities E-Learning Module for Massachusetts Educators\n\nUSED:  Questions and Answers on Serving Children with Disabilities Placed by their Parents in Private Schools, April 2011.\n\nNote for Schedule A Districts:  All members of a Schedule A consortium must fill out a proportionate share calculation and require data for parentally-placed children with disabilities who are enrolled by their parents in private schools or home-schooled.  Lead districts fill in this tab with information for its district only.  Member districts use the Schedule A Member Addendum, found with the RFP, with tabs for each member to complete, and the lead district will upload to EdGrants as an attachment to its FC240 EdGrants submission.  Lead districts must enter the proportionate share reservation for individual districts on the Schedule A at the end of this application using the information from the Schedule A Member Addendum, Schedule A Member Summary tab.  Those amounts will be aggregated to a total proportionate share reservation below and on the Tab 12, Budget."]
[]
[]
[]
[null,"Step 10.1\nAll FC 262 districts","District Information:  Do you need to complete this form?"]
[]
[null,null,null,"Please indicate whether your district has private school students in your geographic boundaries or is exempt:"]
[null,null,null,"We do not have to complete this form because we are a charter, virtual or vocational/technical district:",null,null,null,null,null,null,null,"Select One"]
[null,null,null,"Does your district have private elementary school(s) that serves children ages 3-5 in its geographic boundaries?",null,null,null,null,null,null,null,"Select One"]
[null,null,null,"Are you the lead district for a Schedule A consortium?  If \"Yes,\" provide the information below for your district only.",null,null,null,null,null,null,null,"Select One"]
[]
[]
[]
[null,"Step 10.2\nOnly 262 districts with private school students","Child Count:  Annual count of the number of parentally-placed private school children with disabilities (34 CFR § 300.133(c)) Child count is conducted on any date between October 1 and December 1, inclusive, of each year and used the subsequent year and includes only private schools located in your district."]
[]
[]
[null,null,null,null,null,null,null,null,null,null,"Eligible Private School Students who live in your district. \n(Resident)\n","Eligible Private School Students who do not live in your district.\n  (Non-Resident)"]
[]
[]
[null,null,null,null,null,null,null,null,null,null," Attending private school within your district ","Attending private school within your district "]
[null,null,"Number of eligible parentally-placed students ages 3-5 attending a private elementary school in your district. If none, enter \"0\"."]
[]
[null,null,"Total number of eligible parentally-placed students ages 3-5 attending a private elementary school  in your district.  ",null,null,null,null,null,null,{"$f":"K25+L25","v":0}]
[]
[null,null,"Total number of public school district students with IEPs (SWIEPs) ages 3-5. (SWIEPs for your public school district for the 2019-2020 school year)"]
[]
[]
[null,"Step 10.3\nAll 262 districts but charters, virtual and voc/tech "," Record Keeping  (34 CFR § 300.132(c))"]
[]
[null,null,null,null,null,null,null,null,null,null,"Private School Students who live in your district.\n(Resident)",null,"Private School Students who do not live in your district.\n  (Non-Resident)"]
[]
[]
[null,null,null,null,null,null,null,null,null,null,"A. Attending private school within your district ","B. Attending private school\n in another district","C. Attending private school within your district "]
[null,null,"Total number of parentally-placed private school students ages 3-5 evaluated by your district during 2019-2020 school year, including evaluations and re-evaluations.  If none, enter \"0\".  "]
[null,null,"Of those students evaluated, total number of parentally-placed, private-school students ages 3-5 found eligible for services during the school year 2019-2020.  If none, enter \"0\".  "]
[null,null,"Total number eligible parentally-placed, private-school students ages 3-5 who received equitable services from your district during the school year 2019-2020.  If none, enter \"0\".  "]
[]
[]
[null,"Step 10.4\nOnly 262 districts with eligible private school students","Calculating the Reservation for Private School Services (34 CFR § 300.133)"]
[]
[null,null,"Total # of all currently eligible parentally-placed students ages 3-5 attending a private elementary school in your district. ",null,null,null,null,null,null,null,{"$f":"J27","v":0}]
[null,null,"Total of all eligible students in district (public and private)",null,null,null,null,null,null,null,{"$f":"J27+J29","v":0}]
[null,null,"The percentage of students ages 3-5 attending a private elementary school  in your district represent of all eligible students. ",null,null,null,null,null,null,null,{"$f":"IFERROR(K45/K46,\"\")","v":""}]
[null,null,"If you are a lead district for a Schedule A consortium, enter the FC 262 allocation for your district only."]
[null,null,"District's special education IDEA entitlement for FY21 (Fund Code 262) (For Schedule A lead districts, this number will be your individual district allocation based on the dollar figure supplied in the next row).",null,null,null,null,null,null,null,{"$f":"IFERROR(IF(AND(K48<>\"\", K48<>0), K48, valAllocation262), 0)","v":0}]
[null,null,"The minimum proportionate share of federal funds that the district must reserve for services to eligible parentally-placed students ages 3-5, who attend private schools in your district during FY21.",null,null,null,null,null,null,null,{"$f":"IFERROR(K49*K47,0)","v":0}]
[null,null,"Optional additional FC 262 funding that the district will reserve for equitable services to eligible parentally-placed students ages 3-5,who attend private schools located in your district during FY21."]
[null,null,"Schedule A member districts' FC 262 reservation for equitable services to eligible parentally-placed students who attend private schools located in their during FY21 (will populate for Schedule A consortia only)",null,null,null,null,null,null,null,{"$f":"SchedA262Pro","v":0}]
[null,null,"Total FC 262 funding reserved for equitable services for eligible parentally-placed students ages 3-5, who attend private schools in your district during FY21 (minimum required reservation plus optional additional reservation) -- rounded up to the nearest dollar.",null,null,null,null,null,null,null,{"$f":"IFERROR(ROUNDUP(K50+K51+K52,0), \"\")","v":0}]
[]
[]
[]
[]
[null,"Step 10.5\nOnly 262 districts with eligible private  school students","Proportionate Share Compliance Checklist (34 CFR § 300.134)"]
[]
[null,null,"Please indicate whether the district has completed the following activities related to proportionate share and equitable services in FY20 and has systems in place to ensure compliance in FY21.  The district has and will:"]
[null,null,"1.  Engage in ongoing meaningful consultation with private school and parent representatives, at least 3 \n      times per year, including obtaining written affirmation(s) after each meeting.",null,null,null,null,null,null,null,null,"Select One"]
[null,null,"2.  Include in all consultations discussion of  the child find process, covering how parentally-placed private school children\n      suspected of a disability can participate and how parents, teachers, and private school officials will be informed of the \n      process.",null,null,null,null,null,null,null,null,"Select One"]
[null,null,"3.  Include in all consultations discussion of the provision of special education and related services, including the types of \n     services, and how decisions about services will be made.",null,null,null,null,null,null,null,null,"Select One"]
[null,null,"4.  Provide a written explanation of the reasons why it chose not to provide services directly or through a contract in the\n     manner requested by the private school to private school officials, if the district disagrees with \n     the views of  private school officials on the provision  of services or the types of services (whether provided directly or \n     through a contract).",null,null,null,null,null,null,null,null,"Select One"]
[null,null,"5.   Include in consultations a discussion and explanation of how the proportionate share was calculated.",null,null,null,null,null,null,null,null,"Select One"]
[null,null,"6.  Be prepared to spend FY21 proportionate share for equitable services for eligible parentally-placed private school \n     students in your district, as well as any carryover funds from FY20, during FY21.",null,null,null,null,null,null,null,null,"Select One"]
[]
[]
[]
[null,"Step 10.6\nOnly 262 districts that reserved funds for equitable services in FY20","Carrying Over Unspent Fund Code 262 Proportionate Share Funds from FY20 (34 C.F.R. 300.133(a)(3))"]
[]
[null,null,"If your district has not expended  all of the funds reserved for equitable services by the end of the fiscal year, the district must obligate the remaining funds for special education and related services (including direct services) to parentally-placed private school children with disabilities during a carry-over period of one additional year.  34 CFR § 300.133(a)(3) "]
[null,null,"Do you have any FY20 Fund Code 262 proportionate share funds that you did not spend on equitable services?",null,null,"Select One","If you answer \"yes\" to the previous question, how much of your FY20 Fund Code 262 private school reservation was not spent?\n(Note:  Do not include these funds in your budget for FY21 (Tab 12).  They remain part of your FY20 budget)"]
[null,null,"After consultation, how will the district ensure that the remaining FY20 funds are spent for equitable services in a timely way during FY21 (please describe planned expenditures as part of your response)?"]

{"sheet":"11. Narrative 262","index":11,"n_rows":10,"n_cols":3,"rows_kept":10,"cut":false,"hidden":false,"merged":[[1,1,1,4],[9,2,9,15],[10,2,13,15],[3,1,3,15],[5,2,6,15]]}
[]
[null,{"$f":"valDistrName","v":"OrgName"}]
[]
[null,"Budget Overview"]
[]
[null,null,"\nPriorities of the IDEA Federal Early Childhood Special Education Grant\n\n             1.     Serve eligible children, ages 3-5 years old with disabilities, through the provision of special education and related services deemed essential \n                        for the child’s success in developmentally appropriate activities;\n             2.       Ensure services and supports are available for eligible children with disabilities, aged 3 to 5 years old, that are developmentally appropriate\n                        and specifically designed for 3 to 5 year olds;\n             3.       Provide special education services and supports in accordance with  IDEA and Massachusetts Special Education laws and regulations;\n             4.       Ensure that young children have available to them a free and appropriate public education (FAPE) that emphasizes special education and\n                       related services designed to meet their unique needs and prepare them for further education;\n             5.       Support young children with disabilities, aged 3 to 5, in inclusive and natural environments;\n             6.       Ensure that the rights of children with disabilities and their parents are protected; \n             7.       Assist localities and education service agencies to provide for the education of all children with disabilities;\n             8.       Assess and ensure the effectiveness of efforts to educate children with disabilities."]
[]
[]
[]
[null,"Step 11.1\nAll 262 districts","Please provide a brief narrative description of the activities, programs and/or services that will be supported with these funds and how these activities and programs will be executed to achieve grant priorities (above). You may include support such as the needs that your district will address, changes in the numbers of students and/or types of services provided, staffing configurations, or specific resources, methods and procedures to be employed in conducting grant-funded activities.  Your budget overview should align with the expenses  listed on your budget page (Tab 12)."]

{"sheet":"12. Budget 262","index":12,"n_rows":131,"n_cols":37,"rows_kept":131,"cut":false,"hidden":false,"merged":[[114,24,114,29],[3,24,3,26],[4,1,4,31],[6,4,7,6],[6,7,7,8],[7,9,7,10],[7,11,7,12],[15,4,15,15],[15,17,15,20],[14,4,14,15],[14,17,14,20],[16,4,16,15],[16,17,16,20],[10,1,12,1],[10,4,11,20],[12,4,12,15],[12,17,12,20],[13,4,13,15],[13,17,13,20],[27,4,27,8],[29,5,29,8],[30,5,30,8],[33,5,33,8],[34,5,34,8],[2,1,2,10],[24,5,24,8],[25,5,25,8],[19,1,20,1],[19,3,19,27],[20,4,20,12],[22,5,22,8],[23,5,23,8],[26,27,26,29],[20,27,20,30],[22,27,22,30],[23,27,23,30],[24,27,24,30],[25,27,25,30],[31,5,31,8],[32,5,32,8],[28,27,28,30],[29,27,29,30],[30,27,30,30],[31,27,31,30],[32,27,32,30],[33,27,33,30],[34,27,34,30],[38,5,38,8],[39,5,39,8],[35,4,35,12],[35,27,35,29],[36,4,36,8],[37,5,37,8],[37,27,37,30],[38,27,38,30],[39,27,39,30],[50,27,50,30],[51,27,51,30],[52,27,52,30],[53,27,53,30],[54,27,54,30],[55,27,55,30],[45,5,45,8],[46,5,46,8],[40,5,40,8],[41,4,41,12],[42,4,42,8],[44,5,44,8],[47,5,47,8],[40,27,40,30],[43,27,43,30],[44,27,44,30],[45,27,45,30],[46,27,46,30],[47,27,47,30],[48,4,48,12],[49,4,49,8],[50,5,50,12],[51,5,51,12],[54,5,54,12],[55,5,55,12],[52,5,52,12],[53,5,53,12],[56,4,56,12],[59,5,59,8],[60,5,60,8],[63,5,63,8],[64,5,64,8],[61,5,61,8],[62,5,62,8],[58,27,58,30],[59,27,59,30],[60,27,60,30],[61,27,61,30],[62,27,62,30],[63,27,63,30],[64,27,64,30],[81,27,81,30],[82,27,82,30],[77,5,77,11],[78,5,78,11],[72,5,72,7],[74,5,74,11],[75,5,75,11],[76,5,76,11],[79,4,79,12],[74,27,74,30],[75,27,75,30],[76,27,76,30],[77,27,77,30],[78,27,78,30],[70,5,70,11],[71,5,71,11],[65,4,65,12],[68,5,68,11],[69,5,69,11],[67,27,67,30],[68,27,68,30],[69,27,69,30],[70,27,70,30],[71,27,71,30],[86,5,86,11],[98,27,98,29],[82,5,82,11],[83,5,83,11],[87,5,87,11],[84,5,84,11],[85,5,85,11],[88,4,88,12],[97,5,97,11],[90,10,90,11],[91,10,91,11],[92,10,92,11],[96,5,96,12],[84,27,84,30],[85,27,85,30],[86,27,86,30],[87,27,87,30],[95,27,95,30],[96,27,96,30],[97,27,97,30],[83,27,83,30],[121,5,121,6],[121,10,121,20],[122,5,122,6],[122,10,122,20],[123,5,123,6],[123,10,123,20],[103,4,103,12],[124,5,124,6],[124,10,124,20],[122,7,122,8],[123,7,123,8],[124,7,124,8],[119,7,119,8],[120,7,120,8],[121,7,121,8],[120,10,120,20],[117,7,117,8],[118,7,118,8],[125,5,125,6],[125,10,125,20],[126,5,126,6],[126,10,126,20],[128,7,128,8],[108,1,109,1],[108,3,108,32],[109,3,110,32],[111,3,111,10],[115,5,116,6],[115,7,116,8],[115,10,116,20],[117,5,117,6],[117,10,117,20],[117,24,117,27],[118,5,118,6],[118,10,118,20],[119,5,119,6],[119,10,119,20],[120,5,120,6],[125,7,125,8],[126,7,126,8],[115,24,116,27],[115,29,116,29],[130,5,130,6],[130,7,130,8],[130,11,131,21],[127,5,127,6],[127,10,127,20],[128,5,128,6],[128,10,128,20],[129,5,129,6],[129,7,129,8],[129,10,129,20],[127,7,127,8],[127,24,127,27],[128,24,128,27],[129,24,129,27],[118,24,118,27],[119,24,119,27],[120,24,120,27],[121,24,121,27],[122,24,122,27],[123,24,123,27],[124,24,124,27],[125,24,125,27],[126,24,126,27]]}
[]
[]
[null,{"$f":"valDistrName","v":"OrgName"}]
[]
[null,"FY21 IDEA, Part B, Supporting Students with Disabilities (Fund Code 262) Budget Worksheet"]
[null,null,null,null,null,null,null,null,null,null,null,null,null,null,null,null,null,null,null,null,null,null,null,null,null,null,"\\"]
[null,null,null,null,"FC 262 Allocation ",null,null,{"$f":"IF(valAllocation262=\"\", 0, valAllocation262)","v":0}]
[]
[]
[]
[null,"Step 12.1\nAll 262 Districts",null,null,"District Reservations "]
[]
[null,null,null,null,"Proportionate share for parentally placed private school students, ages 3-5 (from Tab 9)",null,null,null,null,null,null,null,null,null,null,null,{"$f":"ROUNDUP(valEq262,0)","v":0},{"$f":"IFERROR(Q13/$H$7,\"\")","v":""}]
[null,null,null,null,"Voluntary Coordinated Early Intervening Services (CEIS), up to 15% of total FC 240 and FC 262 (from Tab 5)",null,null,null,null,null,null,null,null,null,null,null,{"$f":"valCEIS262","v":0},{"$f":"IFERROR(Q14/$H$7, 0)","v":0}]
[null,null,null,null,"Comprehensive Coordinated Early Intervening Services (CCEIS), 15% of total FC 240 and FC 262 (from Tab 4)",null,null,null,null,null,null,null,null,null,null,null,{"$f":"IF(OR(valCCEIS262>0,'4. CCEIS'!J2=\"Required\"), valCCEIS262, \"N/A\")","v":"N/A"},{"$f":"IFERROR(Q15/$H$7,\"N/A\")","v":"N/A"}]
[null,null,null,null,"TOTAL reservations",null,null,null,null,null,null,null,null,null,null,null,{"$f":"SUM(Q13:Q15)","v":0},{"$f":"IFERROR(Q16/$H$7, 0)","v":0}]
[null,null,null,null,"TOTAL after reservations",null,null,null,null,null,null,null,null,null,null,null,{"$f":"IFERROR(H7-Q16, 0)","v":0},{"$f":"IFERROR(Q17/$H$7, 0)","v":0}]
[]
[]
[null,"Step 12.2\nAll 262 Districts"]
[null,null,null,null,"Line Item Category: Select an option from the drop down menu.",null,null,null,null,null,null,null,null,null,"Amount",null,"Total Expenditure (whole numbers)",null,"Amount Included in Total Expenditure for Equitable Services (Proshare)",null,"Amount Included in Total Expenditure for CEIS or CCEIS",null,null,null,"Primary Function",null,null,"Comments"]
[]
[null,null,null,null,1,"ADMINISTRATOR SALARIES:",null,null,null,null,"# of staff","FTE","MTRS",null,null,null,"Amount",null,"Amount",null,"Amount",null,null,null,"Select from Drop Down List",null,null,"Budget Detail"]
[null,null,null,null,null,"Select One",null,null,null,null,null,null,null,false,{"$f":"IF(N24,Q24,0)","v":0},null,null,null,null,null,null,null,null,null,"Select One"]
[null,null,null,null,null,"Select One",null,null,null,null,null,null,null,false,{"$f":"IF(N25,Q25,0)","v":0},null,null,null,null,null,null,null,null,null,"Select One"]
[null,null,null,null,null,"Select One",null,null,null,null,null,null,null,false,{"$f":"IF(N26,Q26,0)","v":0},null,null,null,null,null,null,null,null,null,"Select One"]
[]
[null,null,null,null,"SUB-TOTAL",null,null,null,null,null,0,0,null,null,{"$f":"SUM(O24:O26)","v":0},null,{"$f":"SUM(Q24:Q26)","v":0},null,{"$f":"SUM(S24:S26)","v":0},null,{"$f":"SUM(U24:U26)","v":0}]
[null,null,null,null,2,"INSTRUCTIONAL/PROF STAFF:",null,null,null,null,"# of staff","FTE","MTRS",null,null,null,"Amount",null,"Amount",null,"Amount",null,null,null,"Select from Drop Down List",null,null,"Budget Detail"]
[null,null,null,null,null,"Select One",null,null,null,null,null,null,null,false,{"$f":"IF(N30,Q30,0)","v":0},null,null,null,null,null,null,null,null,null,"Select One"]
[null,null,null,null,null,"Select One",null,null,null,null,null,null,null,false,{"$f":"IF(N31,Q31,0)","v":0},null,null,null,null,null,null,null,null,null,"Select One"]
[null,null,null,null,null,"Select One",null,null,null,null,null,null,null,false,0,null,null,null,null,null,null,null,null,null,"Select One"]
[null,null,null,null,null,"Select One",null,null,null,null,null,null,null,false,0,null,null,null,null,null,null,null,null,null,"Select One"]
[null,null,null,null,null,"Select One",null,null,null,null,null,null,null,false,0,null,null,null,null,null,null,null,null,null,"Select One"]
[null,null,null,null,null,"Select One",null,null,null,null,null,null,null,false,0,null,null,null,null,null,null,null,null,null,"Select One"]
[]
[null,null,null,null,"SUB-TOTAL",null,null,null,null,null,0,0,null,null,{"$f":"SUM(O30:O35)","v":0},null,{"$f":"SUM(Q30:Q35)","v":0},null,{"$f":"SUM(S30:S35)","v":0},null,{"$f":"SUM(U30:U35)","v":0}]
[null,null,null,null,3,"SUPPORT STAFF SALARIES:",null,null,null,null,"# of staff","FTE","MTRS",null,null,null,"Amount",null,"Amount",null,"Amount",null,null,null,"Select from Drop Down List",null,null,"Budget Detail"]
[null,null,null,null,null,"Select One",null,null,null,null,null,null,null,false,{"$f":"IF(N39, Q39, 0)","v":0},null,null,null,null,null,null,null,null,null,"Select One"]
[null,null,null,null,null,"Select One",null,null,null,null,null,null,null,false,{"$f":"IF(N40, Q40, 0)","v":0},null,null,null,null,null,null,null,null,null,"Select One"]
[null,null,null,null,null,"Select One",null,null,null,null,null,null,null,false,0,null,null,null,null,null,null,null,null,null,"Select One"]
[]
[null,null,null,null,"SUB-TOTAL",null,null,null,null,null,0,0,null,null,{"$f":"SUM(O39:O41)","v":0},null,{"$f":"SUM(Q39:Q41)","v":0},null,{"$f":"SUM(S39:S41)","v":0},null,{"$f":"SUM(U39:U41)","v":0}]
[null,null,null,null,4,"STIPENDS:",null,null,null,"# of staff","Rate","Rate Type","MTRS",null,null,null,"Amount",null,"Amount",null,"Amount",null,null,null,"Select from Drop Down List",null,null,"Budget Detail"]
[null,null,null,null,null,"Select One",null,null,null,null,null,"Select",null,false,{"$f":"IF(N45, Q45, 0)","v":0},null,null,null,null,null,null,null,null,null,"Select One"]
[null,null,null,null,null,"Select One",null,null,null,null,null,"Select",null,false,{"$f":"IF(N46, Q46, 0)","v":0},null,null,null,null,null,null,null,null,null,"Select One"]
[null,null,null,null,null,"Select One",null,null,null,null,null,"Select",null,false,0,null,null,null,null,null,null,null,null,null,"Select One"]
[null,null,null,null,null,"Select One",null,null,null,null,null,"Select",null,false,0,null,null,null,null,null,null,null,null,null,"Select One"]
[]
[null,null,null,null,"SUB-TOTAL",null,null,null,null,null,null,null,null,null,{"$f":"SUM(O45:O48)","v":0},null,{"$f":"SUM(Q45:Q48)","v":0},null,{"$f":"SUM(S45:S48)","v":0},null,{"$f":"SUM(U45:U48)","v":0}]
[null,null,null,null,5,"FRINGE BENEFITS:",null,null,null,null,null,null,null,null,null,null,"Amount",null,"Amount",null,"Amount",null,null,null,"Brief Description",null,null,"Budget Detail"]
[null,null,null,null,null,"5a  MTRS (automatically calculated if MTRS box is checked above)  ",null,null,null,null,null,null,null,null,null,null,{"$f":"ROUND((SUM(O50,O43,O37,O28))*0.09,0)","v":0},null,null,null,null,null,null,null,null,null,null,"teacher retirement"]
[null,null,null,null,null,"5b  Other",null,null,null,null,null,null,null,null,null,null,{"$f":"SUM(Q54:Q56)","v":0}]
[null,null,null,null,null,"Health Insurance"]
[null,null,null,null,null,"Other Retirement Systems"]
[null,null,null,null,null,"Federal Insurance Contributions Act (FICA)"]
[]
[null,null,null,null,"SUB-TOTAL",null,null,null,null,null,null,null,null,null,null,null,{"$f":"SUM(Q52:Q53)","v":0},null,{"$f":"SUM(S52, S54:S56)","v":0},null,{"$f":"SUM(U52, U54:U56)","v":0}]
[null,null,null,null,6,"CONTRACTUAL SERVICES:",null,null,null,null,"Rate","Rate Type",null,null,null,null,"Amount",null,"Amount",null,"Amount",null,null,null,"Select from Drop Down List",null,null,"Budget Detail"]
[null,null,null,null,null,"Select One",null,null,null,null,null,"Select",null,null,null,null,null,null,null,null,null,null,null,null,"Select One"]
[null,null,null,null,null,"Select One",null,null,null,null,null,"Select",null,null,null,null,null,null,null,null,null,null,null,null,"Select One"]
[null,null,null,null,null,"Select One",null,null,null,null,null,"Select",null,null,null,null,null,null,null,null,null,null,null,null,"Select One"]
[null,null,null,null,null,"Select One",null,null,null,null,null,"Select",null,null,null,null,null,null,null,null,null,null,null,null,"Select One"]
[null,null,null,null,null,"Select One",null,null,null,null,null,"Select",null,null,null,null,null,null,null,null,null,null,null,null,"Select One"]
[null,null,null,null,null,"Select One",null,null,null,null,null,"Select",null,null,null,null,null,null,null,null,null,null,null,null,"Select One"]
[]
[null,null,null,null,"SUB-TOTAL",null,null,null,null,null,null,null,null,null,null,null,{"$f":"SUM(Q60:Q65)","v":0},null,{"$f":"SUM(S60:S65)","v":0},null,{"$f":"SUM(U60:U65)","v":0}]
[null,null,null,null,7,"SUPPLIES AND MATERIALS:",null,null,null,null,null,null,null,null,null,null,"Amount",null,"Amount",null,"Amount",null,null,null,"Select from Drop Down List",null,null,"Budget Detail"]
[null,null,null,null,null,"Select One",null,null,null,null,null,null,null,null,null,null,null,null,null,null,null,null,null,null,"Select One"]
[null,null,null,null,null,"Select One",null,null,null,null,null,null,null,null,null,null,null,null,null,null,null,null,null,null,"Select One"]
[null,null,null,null,null,"Select One",null,null,null,null,null,null,null,null,null,null,null,null,null,null,null,null,null,null,"Select One"]
[null,null,null,null,null,"Select One",null,null,null,null,null,null,null,null,null,null,null,null,null,null,null,null,null,null,"Select One"]
[]
[null,null,null,null,"SUB-TOTAL",null,null,null,null,null,null,null,null,null,null,null,{"$f":"SUM(Q69:Q72)","v":0},null,{"$f":"SUM(S69:S72)","v":0},null,{"$f":"SUM(U69:U72)","v":0}]
[null,null,null,null,8,"TRAVEL:  (mileage, conference registration, courses, hotels, etc.)",null,null,null,null,null,null,null,null,null,null,"Amount",null,"Amount",null,"Amount",null,null,null,"Select from Drop Down List",null,null,"Budget Detail"]
[null,null,null,null,null,"Select One",null,null,null,null,null,null,null,null,null,null,null,null,null,null,null,null,null,null,"Select One"]
[null,null,null,null,null,"Select One",null,null,null,null,null,null,null,null,null,null,null,null,null,null,null,null,null,null,"Select One"]
[null,null,null,null,null,"Select One",null,null,null,null,null,null,null,null,null,null,null,null,null,null,null,null,null,null,"Select One"]
[null,null,null,null,null,"Select One",null,null,null,null,null,null,null,null,null,null,null,null,null,null,null,null,null,null,"Select One"]
[]
[null,null,null,null,"SUB-TOTAL",null,null,null,null,null,null,null,null,null,null,null,{"$f":"SUM(Q76:Q79)","v":0},null,{"$f":"SUM(S76:S79)","v":0},null,{"$f":"SUM(U76:U79)","v":0}]
[null,null,null,null,9,"OTHER COSTS:",null,null,null,null,null,null,null,null,null,null,"Amount",null,"Amount",null,"Amount",null,null,null,"Select from Drop Down List",null,null,"Budget Detail"]
[null,null,null,null,null,"Select One",null,null,null,null,null,null,null,null,null,null,null,null,null,null,null,null,null,null,"Select One"]
[null,null,null,null,null,"Select One",null,null,null,null,null,null,null,null,null,null,null,null,null,null,null,null,null,null,"Select One"]
[null,null,null,null,null,"Select One",null,null,null,null,null,null,null,null,null,null,null,null,null,null,null,null,null,null,"Select One"]
[null,null,null,null,null,"Select One",null,null,null,null,null,null,null,null,null,null,null,null,null,null,null,null,null,null,"Select One"]
[null,null,null,null,null,"Select One",null,null,null,null,null,null,null,null,null,null,null,null,null,null,null,null,null,null,"Select One"]
[null,null,null,null,null,"Select One",null,null,null,null,null,null,null,null,null,null,null,null,null,null,null,null,null,null,"Select One"]
[]
[null,null,null,null,"SUB-TOTAL",null,null,null,null,null,null,null,null,null,null,null,{"$f":"SUM(Q83:Q88)","v":0},null,{"$f":"SUM(S83:S88)","v":0},null,{"$f":"SUM(U83:U88)","v":0}]
[null,null,null,null,null,null,null,null,"(a) rate (%)",null,"(b) allocation less indirect",null,null,null,null,null,"Amount"]
[null,null,null,null,10,"INDIRECT COSTS *",null,null,null,null,{"$f":"IFERROR(IF(I92=\"\",\"\", (H7-IndExclusion262)/(1+I92)),\"\")","v":""}]
[null,null,null,null,null,null,null,null," (a x b)",null,{"$f":"IFERROR(K92*I92,\"\")","v":""}]
[null,null,null,null,null,null,null,null,null,null," maximum allowed"]
[]
[null,null,null,null,11,"EQUIPMENT:",null,null,null,null,null,null,null,null,null,null,"Amount",null,"Amount",null,"Amount",null,null,null,"Select from Drop Down List",null,null,"Budget Detail"]
[null,null,null,null,null,"Items costing $5,000+ per unit and having a useful life more than 1 year must be listed individually in Step 12.3, below (not eligible for recovery of indirect cost).  Once listed below,",null,null,null,null,null,null,null,null,null,null,{"$f":"IndEquip262","v":0},null,null,null,null,null,null,null,"Select One"]
[null,null,null,null,null,"the total for Equipment will automatically populate in the gray cell to the right."]
[]
[null,null,null,null,"SUB-TOTAL",null,null,null,null,null,null,null,null,null,null,null,{"$f":"SUM(Q97:Q98)","v":0},null,{"$f":"SUM(S97:S98)","v":0},null,{"$f":"SUM(U97:U98)","v":0}]
[null,null,null,null,null,null,null,null,null,null,null,null,null,null,null,null,null,null,"Total Equitable Services",null,"Total CCEIS/CEIS"]
[null,null,null,null,"TOTAL FUNDS REQUESTED ",null,null,null,null,null,null,null,null,null,null,null,{"$f":"Q100+Q92+Q90+Q81+Q74+Q67+Q58+Q50+Q43+Q37+Q28","v":0},null,{"$f":"SUM(S100+S90+S81+S74+S67+S58+S50+S43+S37+S28)","v":0},null,{"$f":"SUM(U100+U90+U81+U74+U67+U58+U50+U43+U37+U28)","v":0}]
[]
[null,null,null,null,"Discrepancy:  Difference between allocation and budgeted total, if any",null,null,null,null,null,null,null,null,null,null,null,{"$f":"IFERROR(IF(Q102<>valAllocation262, Q102-valAllocation262, \"\"),\"\")","v":""},null,{"$f":"IF(S102<>Q13, S102-Q13, \"\")","v":""},null,{"$f":"IF(U102<>(valCEIS262 + valCCEIS262),U102-(valCEIS262 + valCCEIS262),\"\")","v":""}]
[]
[]
[]
[]
[null,"Step 12.3\nAll Districts with Equipment expenses and/or Indirect Costs",null,"Indirect Costs:  Major contracts and equipment"]
[null,null,null,"\nIndirect costs are those expenses of doing business that are not readily identified with a particular grant, contract, project fund or activity, but are necessary for the general operation of the organization and the conduct of the activities it performs.  Because these expenses are difficult to track with precision across all benefiting sources, federal grants allow use of a rate as a mechanism for fairly and conveniently apportioning indirect costs across all programs within the boundaries of sound administrative principles.  \nSee U.S. Department of Education, Indirect Cost Overview (https://www2.ed.gov/about/offices/list/ocfo/intro.html). \n\nFor this grant, indirect costs must be consistent with the rate established by DESE's Office of School Finance.  Note that districts are allowed to take less than the maximum allowable for indirect costs. The decision to recover indirect costs using these established rates is a local option.  If indirect costs are recovered, they shall be returned to the general fund of the city or town in  accordance with G.L. Chapter 44, Section 53.  In the case of regional schools, indirect costs shall be returned to the regional school general fund.  www.doe.mass.edu/Grants/essential.html\n\nIn calculating the indirect cost allowable for a particular grant, some expenditures are not included.  Two such exclusions include a portion of major subawards or subcontracts (those exceeding $25,000), and capital costs (equipment purchases of $5,000 or more).  \nSee, U. S. Department of Education, Cost Allocation Guide for State and Local Governments.  https://www2.ed.gov/about/offices/list/ocfo/fipao/guideigcwebsite.pdf\n\n                                        •  Contracts:  For major contracts exceeding $25,000, districts may recover indirect costs on only the first $25,000 of each contract.   The remainder of the contract amount is excluded from application of the indirect cost rate.  Note that for contracts \n                                            for professional services normally provided in-house, such as a speech pathologist or school nurse, this exclusion does not apply, even if the contract exceeds $25,000.  Of course, these expenses are also subject to all other grant requirements \n                                            (allowability, allocability, necessarily and reasonable, etc.) to be properly chargeable to the grant as well.\n\n                                        • Equipment:  All equipment costing $5,000 or more and having a useful life of more than 1 year is considered a capital expenditure and not eligible for recovery of indirect cost.  The total for equipment should match the total entered in Line 11, above.\n\nDirections:  List contracts exceeding $25,000 below (but not those for professional services normally provided in house) and the amount to be excluded will be calculated automatically.  The excluded amount will be added to the equipment total (Line 11) and subtracted before calculating your district's maximum allowable indirect cost on Line 10."]
[]
[null,null,null,null,null,null,null,null,null,null,null,null,null,null,null,null,null,null,null,null,null,null,null,null,null,null,null,null,null,null,null,null,null,null,null,null,{"$f":"IndEquip262+IndK262","v":0}]
[null,null,null,null," "]
[null,null,null,null,null,"Contracts exceeding $25,000 (include in budget categories above in addition to listing individually here)",null,null,null,null,null,null,null,null,null,null,null,null,null,null,null,null,null,null,"            Equipment:  (from Line 11, above)\n\n"]
[null,null,null,null,null,null,null,null,null,null,null,null,null,null,null,null,null,null,null,null,null,null,null,null,"                List Items costing $5,000+ per unit and having a useful life of more than 1 year.  "]
[null,null,null,null,null,"Amount of contract:",null,"Amount excluded from indirect cost:",null,null,"  Description:",null,null,null,null,null,null,null,null,null,null,null,null,null,"  Description:",null,null,null,null," Amount:"]
[]
[null,null,null,null,null,null,null,{"$f":"IF((F118-25000)>0, (F118-25000), \"\")","v":""}]
[null,null,null,null,null,null,null,{"$f":"IF((F119-25000)>0, (F119-25000), \"\")","v":""}]
[null,null,null,null,null,null,null,""]
[null,null,null,null,null,null,null,""]
[null,null,null,null,null,null,null,""]
[null,null,null,null,null,null,null,""]
[null,null,null,null,null,null,null,""]
[null,null,null,null,null,null,null,""]
[null,null,null,null,null,null,null,""]
[null,null,null,null,null,null,null,""]
[null,null,null,null,null,null,null,""]
[null,null,null,null,null,null,null,""]
[null,null,null,null,null,null,null,""]
[null,null,null,null,"SUB-TOTAL",{"$f":"SUM(F118:G130)","v":0},null,{"$f":"SUM(H118:I130)","v":0},null,null,null,null,null,null,null,null,null,null,null,null,null,null,null,null,null,null,null,"SUB-TOTAL",null,{"$f":"SUM(AD118:AD130)","v":0}]

{"sheet":"Schedule A","index":13,"n_rows":79,"n_cols":12,"rows_kept":79,"cut":false,"hidden":false,"merged":[[71,1,71,5],[71,9,71,11],[72,1,72,5],[72,9,72,11],[69,1,69,5],[69,9,69,11],[70,1,70,5],[70,9,70,11],[69,6,69,7],[70,6,70,7],[71,6,71,7],[72,6,72,7],[78,1,79,11],[74,1,74,5],[74,9,74,11],[75,9,76,11],[76,1,76,5],[73,1,73,5],[73,9,73,11],[75,8,76,8],[73,6,73,7],[75,6,76,7],[67,1,67,5],[67,9,67,11],[68,1,68,5],[68,9,68,11],[65,1,65,5],[65,9,65,11],[66,1,66,5],[66,9,66,11],[65,6,65,7],[66,6,66,7],[67,6,67,7],[68,6,68,7],[63,1,63,5],[63,9,63,11],[64,1,64,5],[64,9,64,11],[58,1,59,1],[58,2,59,4],[61,1,62,5],[61,9,62,11],[61,8,62,8],[61,6,62,7],[63,6,63,7],[64,6,64,7],[58,5,59,11],[54,1,55,1],[54,2,55,11],[56,1,57,1],[56,2,57,4],[56,5,57,10],[56,11,57,11],[52,1,52,11],[39,9,39,11],[39,1,39,5],[37,1,37,5],[37,9,37,11],[38,1,38,5],[38,9,38,11],[50,1,50,11],[49,1,49,11],[43,1,44,11],[41,1,41,5],[40,9,41,11],[40,8,41,8],[37,6,37,7],[38,6,38,7],[39,6,39,7],[40,6,41,7],[35,1,35,5],[35,9,35,11],[36,1,36,5],[36,9,36,11],[33,1,33,5],[33,9,33,11],[34,1,34,5],[34,9,34,11],[33,6,33,7],[34,6,34,7],[35,6,35,7],[36,6,36,7],[31,1,31,5],[31,9,31,11],[32,1,32,5],[32,9,32,11],[29,1,29,5],[29,9,29,11],[30,1,30,5],[30,9,30,11],[29,6,29,7],[30,6,30,7],[31,6,31,7],[32,6,32,7],[28,1,28,5],[28,9,28,11],[21,1,22,1],[21,2,22,4],[21,5,22,10],[21,11,22,11],[23,1,24,1],[23,2,24,4],[28,6,28,7],[14,1,14,11],[15,1,15,11],[17,1,17,11],[19,1,20,1],[19,2,20,11],[2,2,2,10],[26,1,27,5],[26,9,27,11],[3,2,11,10],[26,8,27,8],[23,5,24,11],[26,6,27,7]]}
[]
[]
[null,null,"Instructions:\n\n "]
[null,null," • Fill out and print a separate copy of Schedule A for each IDEA program for which funds are assigned to your district\n    from other district grant recipients, and your district (agency) is operator/administrator.  \n\n  • Please fill in the appropriate grant program and fund code where indicated:\n            •   IDEA, Part B, Section 611, Fund Code 240, and/or\n            •   IDEA, Part B, Section 619, Fund Code 262.\n\n •  All members of a Schedule A consortium must fill out a proportionate share calculation and require data for Fund\n     Code 240 and, where applicable, Fund Code 262.  The RFP has a Schedule A Member Addendum for each member\n     to complete.  Members then must enter their proportionate share reservation for individual districts on the\n     Schedule A  form where indicated.  Those Amounts will be aggregated to a total proportionate share reservation\n     below and on the respective budget tabs.  \n\n***Be Sure to Complete Schedule A forms before printing.  Numbers from these forms will be used for Budget tabs.***"]
[]
[]
[]
[]
[]
[]
[]
[]
[]
[]
[null,"MASSACHUSETTS DEPARTMENT OF ELEMENTARY AND SECONDARY EDUCATION"]
[null,"STANDARD APPLICATION FOR PROGRAM GRANTS"]
[]
[null,"FY21 SCHEDULE A - Assignment Schedule"]
[]
[null,1,"Schedule A is to be completed if the applicant agency operates and administers a grant project using funds from more than one grant recipient."]
[]
[null,2,"Agency operating and administering the project:  ",null,null,{"$f":"valDistrName","v":"OrgName"},null,null,null,null,null,{"$f":"valorg4code","v":"Org "}]
[]
[null,3,"Name of grant program/\nFund Code:",null,null,"IDEA, Part B, Section 611, Formula Grants to States for students ages 3-21, \nFund Code 240"]
[]
[]
[null,"Name of Participating Agency",null,null,null,null,"Amount of \nAssigned Funds",null,"FC 240 Proportionate Share Reservation (from Schedule A Member Supplement)","* Authorized Signature"]
[]
[]
[]
[]
[]
[]
[]
[]
[]
[]
[]
[]
[]
[null,null,null,null,null,null,{"$f":"SUM(G29:G39)","v":0},null,{"$f":"SUM(I29:I39)","v":0}]
[null,"Total Funds"]
[]
[null,"*I/We assign the identified funds to the project described in the accompanying grant application.  The indicated agency is authorized to receive and disburse funds for the purpose of operating the project."]
[]
[]
[]
[]
[]
[null,"MASSACHUSETTS DEPARTMENT OF ELEMENTARY AND SECONDARY EDUCATION"]
[null,"STANDARD APPLICATION FOR PROGRAM GRANTS"]
[]
[null,"FY21 SCHEDULE A - Assignment Schedule"]
[]
[null,1,"Schedule A is to be completed if the applicant agency operates and administers a grant project using funds from more than one grant recipient."]
[]
[null,2,"Agency operating and administering the project:  ",null,null,{"$f":"valDistrName","v":"OrgName"},null,null,null,null,null,{"$f":"valorg4code","v":"Org "}]
[]
[null,3,"Name of grant program/\nFund Code:",null,null," IDEA, Part B, Section 619, Formula Preschool Grants for students ages 3-5, Fund Code 262"]
[]
[]
[null,"Name of Participating Agency",null,null,null,null,"Amount of \nAssigned Funds",null,"FC 262 Proportionate Share Reservation (from Schedule A Member Supplement)","* Authorized Signature"]
[]
[]
[]
[]
[]
[]
[]
[]
[]
[]
[]
[]
[]
[null,null,null,null,null,null,{"$f":"SUM(G64:H74)","v":0},null,{"$f":"SUM(I64:I74)","v":0}]
[null,"Total of Assigned Funds"]
[]
[null,"*I/We assign the identified funds to the project described in the accompanying grant application.  The indicated agency is authorized to receive and disburse funds for the purpose of operating the project."]

{"sheet":"Proshare.CEIS Data","index":14,"n_rows":14,"n_cols":92,"rows_kept":14,"cut":false,"hidden":true,"merged":[[0,79,0,81],[0,83,0,84],[0,86,0,87],[0,89,0,90],[0,0,0,36],[0,37,0,70],[0,71,0,73],[6,1,12,1],[6,2,12,2],[6,3,12,3],[6,0,12,0],[0,75,0,77]]}
["IDEA Fund Code 240",null,null,null,null,null,null,null,null,null,null,null,null,null,null,null,null,null,null,null,null,null,null,null,null,null,null,null,null,null,null,null,null,null,null,null,null,"IDEA Fund Code 262",null,null,null,null,null,null,null,null,null,null,null,null,null,null,null,null,null,null,null,null,null,null,null,null,null,null,null,null,null,null,null,null,null,"240 Recordkeeping:  Students Evaluated\nPrivate School/Home-Schooled Students who  live in your district. (Resident)",null,null,"240 Recordkeeping:  Students Evaluated\nPrivate School Students who do not live in your district.\n  (Non-Resident)","240 Recordkeeping:  Priv Students Eligible\nPrivate School/Home-Schooled Students who  live in your district. (Resident)",null,null,"240 Recordkeeping:  Priv Students Eligible\nPrivate School Students who do not live in your district.\n  (Non-Resident)","240 Recordkeeping:   Priv Students Receiving Equitable Services\nPrivate School/Home-Schooled Students who  live in your district. (Resident)",null,null,"240 Recordkeeping:  Students Receiving Equitable Services\nPrivate School Students who do not live in your district.\n  (Non-Resident)","262 Recordkeeping:  Students Evaluated\nPrivate School/Home-Schooled Students who  live in your district. (Resident)",null,"262 Recordkeeping:  Students Evaluated\nPrivate School Students who do not live in your district.\n  (Non-Resident)","262 Recordkeeping:  Priv Students Eligible\nPrivate School/Home-Schooled Students who  live in your district. (Resident)",null,"262 Recordkeeping:  Priv Students Eligible\nPrivate School Students who do not live in your district.\n  (Non-Resident)","262 Recordkeeping:   Priv Students Receiving Equitable Services\nPrivate School/Home-Schooled Students who  live in your district. (Resident)",null,"262 Recordkeeping:  Students Receiving Equitable Services\nPrivate School Students who do not live in your district.\n  (Non-Resident)"]
["We do not have to complete this form because we are a charter, virtual or vocational/technical district:","Does your district have private school(s) in its geographic boundaries?","Does your district have approved home-schooled students in its geographic boundaries?","Are you the lead district for a Schedule A consortium?","Number of eligible parentally-placed students ages 3-21 attending a private elementary or secondary school or home-schooled in your district. RESIDENT Attending private school within your district ","Number of eligible parentally-placed students ages 3-21 attending a private elementary or secondary school or home-schooled in your district. RESIDENT Home-schooled within your district","Number of eligible parentally-placed students ages 3-21 attending a private elementary or secondary school or home-schooled in your district. Non-RESIDENT Attending private school within your district ","Total number of eligible parentally-placed students ages 3-21 attending a private elementary or secondary school or home-schooled in your district.  ","Number of public school district students with IEPs (SWIEPs) ages 3-21. (SWIEPs for your public school district for the 2018-2019 school year)","Total number of currently eligible parentally-placed students, ages 3-21, attending a private elementary or secondary school or home-schooled in your district. ","Total of all eligible students in district (public, private and home-schooled)","The percentage of eligible students ages 3-21 in your district who are attending a private elementary or secondary school or are home-schooled. ","If you are a lead district for a Schedule A consortium, enter the FC 240 allocation for your district only.","District's special education IDEA entitlement for FY20 (Fund Code 240).  (For Schedule A districts, this will be the lead district's allocation only based on the dollar figure supplied in the previous row).","The minimum share of federal funds that the district must reserve for equitable services to eligible parentally-placed students who attend private schools and/or are home-schooled in your district during FY20.","Optional additional FC 240 funding that the district will reserve for equitable services to eligible parentally-placed students who attend private schools and/or are home-schooled in your district during FY20.","Schedule A member districts' FC 240 reservation for equitable services to eligible students who attend private schools and/or home-schooled during FY20 (will populate for Schedule A consortia members only).","Total FC 240 funding reserved for equitable services to eligible parentally-placed students who attend private schools and/or are home-schooled in your district during FY20 (minimum required reservation plus optional additional reservation).","If you answer \"yes\" to the previous question, how much of your FY19 Fund Code 240 proportionate share reservation was not spent?","Schedule A:  Name of Participating Agency 1","Schedule A:  Amount of Assigned Funds 1","Schedule A:  FC 240 Proportionate Share Reservation (from Schedule A Member Supplement) 1","Schedule A:  Name of Participating Agency 2","Schedule A:  Amount of Assigned Funds 2","Schedule A:  FC 240 Proportionate Share Reservation (from Schedule A Member Supplement) 2","Schedule A:  Name of Participating Agency 3","Schedule A:  Amount of Assigned Funds 3","Schedule A:  FC 240 Proportionate Share Reservation (from Schedule A Member Supplement) 3","Schedule A:  Name of Participating Agency 4","Schedule A:  Amount of Assigned Funds 4","Schedule A:  FC 240 Proportionate Share Reservation (from Schedule A Member Supplement) 4","Schedule A:  Name of Participating Agency 5","Schedule A:  Amount of Assigned Funds 5","Schedule A:  FC 240 Proportionate Share Reservation (from Schedule A Member Supplement) 5","Schedule A:  Name of Participating Agency 6","Schedule A:  Amount of Assigned Funds 6","Schedule A:  FC 240 Proportionate Share Reservation (from Schedule A Member Supplement) 6","262:  We do not have to complete this form because we are a charter, virtual or vocational/technical district:","262:  Does your district have private elementary school(s) that serves children ages 3-5 in its geographic boundaries?","262:  Are you the lead district for a Schedule A consortium?  If \"Yes,\" provide the information below for your district only.","262:  Number of eligible parentally-placed students ages 3-5 attending a private elementary school in your district. RESIDENT Attending private school within your district ","Number of eligible parentally-placed students ages 3-5 attending a private elementary school in your district. Non-RESIDENT Attending private school within your district ","Total number of public school district students with IEPs (SWIEPs) ages 3-5. (SWIEPs for your public school district for the 2018-2019 school year)","Total # of all currently eligible parentally-placed students ages 3-5 attending a private elementary school in your district. ","262:  Total of all eligible students in district (public and private)","The percentage of students ages 3-5 attending a private elementary school  in your district represent of all eligible students. ","If you are a lead district for a Schedule A consortium, enter the FC 262 allocation for your district only.","District's special education IDEA entitlement for FY20 (Fund Code 262) (For Schedule A lead districts, this number will be your individual district allocation based on the dollar figure supplied in the next row).","The minimum proportionate share of federal funds that the district must reserve for services to eligible parentally-placed students ages 3-5, who attend private schools in your district during FY20.","Optional additional FC 262 funding that the district will reserve for equitable services to eligible parentally-placed students ages 3-5,who attend private schools located in your district during FY20.","Schedule A member districts' FC 262 reservation for equitable services to eligible parentally-placed students who attend private schools located in their during FY20 (will populate for Schedule A consortia only)","Total FC 262 funding reserved for equitable services for eligible parentally-placed students ages 3-5, who attend private schools in your district during FY20 (minimum required reservation plus optional additional reservation).","If you answer \"yes\" to the previous question, how much of your FY19 Fund Code private school reservation was not spent?","262:  Schedule A:  Name of Participating Agency 1","262:  Schedule A:  Amount of Assigned Funds 1","Schedule A:  FC 262:   Proportionate Share Reservation (from Schedule A Member Supplement) 1","262:  Schedule A:  Name of Participating Agency 2","262:  Schedule A:  Amount of Assigned Funds 2","Schedule A:  FC 262:   Proportionate Share Reservation (from Schedule A Member Supplement) 2","262:  Schedule A:  Name of Participating Agency 3","262:  Schedule A:  Amount of Assigned Funds 3","Schedule A:  FC2 62:   Proportionate Share Reservation (from Schedule A Member Supplement) 3","262:  Schedule A:  Name of Participating Agency 4","262:  Schedule A:  Amount of Assigned Funds 4","Schedule A:  FC 262:  Proportionate Share Reservation (from Schedule A Member Supplement) 4","262:  Schedule A:  Name of Participating Agency 5","262:  Schedule A:  Amount of Assigned Funds 5","Schedule A:  FC 262:  Proportionate Share Reservation (from Schedule A Member Supplement) 5","262:  Schedule A:  Name of Participating Agency 6","262:  Schedule A:  Amount of Assigned Funds 6","Schedule A:  FC 262:  Proportionate Share Reservation (from Schedule A Member Supplement) 6","A. Attending private school within your district ","B. Home-schooled\n within your district","C. Attending private school\n in another district","D. Attending private school within your district ","A. Attending private school within your district ","B. Home-schooled\n within your district","C. Attending private school\n in another district","D. Attending private school within your district ","A. Attending private school within your district ","B. Home-schooled\n within your district","C. Attending private school\n in another district","D. Attending private school within your district ","A. Attending private school within your district ","C. Attending private school\n in another district","D. Attending private school within your district ","A. Attending private school within your district ","C. Attending private school\n in another district","D. Attending private school within your district ","A. Attending private school within your district ","C. Attending private school\n in another district","D. Attending private school within your district "]
[{"$f":"Data240ChartVirtVoke","v":"Select One"},{"$f":"Data240PrivSchls?","v":"Select One"},{"$f":"Data240HmSchlStu?","v":"Select One"},{"$f":"Data240SchedALead?","v":"Select One"},{"$f":"Data240ResPriv","v":0},{"$f":"Data240ResHomeS","v":0},{"$f":"Data240NonResPriv","v":0},{"$f":"Data240TotEligPriv","v":0},{"$f":"Data240TotIEPDist","v":0},{"$f":"Data240TotEligPrivHomeS","v":0},{"$f":"Data240TotEligAll","v":0},{"$f":"Data240TotEligPrivHSPercent","v":""},{"$f":"Data240LeadTotAlloc","v":0},{"$f":"Data240TotAlloc","v":0},{"$f":"Data240MinProShare","v":0},{"$f":"Data240OptProShare","v":0},{"$f":"Data240MemDistProShare","v":0},{"$f":"Data240TotProShare","v":0},{"$f":"Data240CarryProShare","v":0},{"$f":"Data240SchedANameM1","v":0},{"$f":"Data240SchedAFundM1","v":0},{"$f":"Data240SchedAProSM1","v":0},{"$f":"Data240SchedANameM2","v":0},{"$f":"Data240SchedAFundM2","v":0},{"$f":"Data240SchedAProSM2","v":0},{"$f":"Data240SchedANameM3","v":0},{"$f":"Data240SchedAFundM3","v":0},{"$f":"Data240SchedAProSM3","v":0},{"$f":"Data240SchedANameM4","v":0},{"$f":"Data240SchedAFundM4","v":0},{"$f":"Data240SchedAProSM4","v":0},{"$f":"Data240SchedANameM5","v":0},{"$f":"Data240SchedAFundM5","v":0},{"$f":"Data240SchedAProSM5","v":0},{"$f":"Data240SchedANameM6","v":0},{"$f":"Data240SchedAFundM6","v":0},{"$f":"Data240SchedAProSM6","v":0},{"$f":"Data262ChartVirtVoke","v":"Select One"},{"$f":"Data262PrivSchls?","v":"Select One"},{"$f":"Data262SchedALead?","v":"Select One"},{"$f":"Data262ResPriv","v":0},{"$f":"Data262NonResPriv","v":0},{"$f":"Data262TotIEPDist","v":0},{"$f":"Data262TotEligPriv","v":0},{"$f":"Data262TotEligAl","v":0},{"$f":"Data262TotEligPrivPercent","v":""},{"$f":"Data262LeadTotAlloc","v":0},{"$f":"Data262TotAlloc","v":0},{"$f":"Data262MinProShare","v":0},{"$f":"Data262OptProShare","v":0},{"$f":"Data262MemDistProShare","v":0},{"$f":"Data262TotProShare","v":0},{"$f":"Data262CarryProShare","v":0},{"$f":"Data262SchedANameM1","v":0},{"$f":"Data262SchedAFundM1","v":0},{"$f":"Data262SchedAProSM1","v":0},{"$f":"Data262SchedANameM2","v":0},{"$f":"Data262SchedAFundM2","v":0},{"$f":"Data262SchedAProSM2","v":0},{"$f":"Data262SchedANameM3","v":0},{"$f":"Data262SchedAFundM3","v":0},{"$f":"Data262SchedAProSM3","v":0},{"$f":"Data262SchedANameM4","v":0},{"$f":"Data262SchedAFundM4","v":0},{"$f":"Data262SchedAProSM4","v":0},{"$f":"Data262SchedANameM5","v":0},{"$f":"Data262SchedAFundM5","v":0},{"$f":"Data262SchedAProSM5","v":0},{"$f":"Data262SchedANameM6","v":0},{"$f":"Data262SchedAFundM6","v":0},{"$f":"Data262SchedAProSM6","v":0},{"$f":"Data240RKEval1","v":0},{"$f":"Data240RKEval2","v":0},{"$f":"Data240RKEval3","v":0},{"$f":"Data240RKEval4","v":0},{"$f":"Data240RKElig1","v":0},{"$f":"Data240RKElig2","v":0},{"$f":"Data240RKElig3","v":0},{"$f":"Data240RKElig4","v":0},{"$f":"Data240RKServ1","v":0},{"$f":"Data240RKServ2","v":0},{"$f":"Data240RKServ3","v":0},{"$f":"Data240RKServ4","v":0},{"$f":"Data262RKEval1","v":0},{"$f":"Data262RKEval2","v":0},{"$f":"Data262RKEval3","v":0},{"$f":"Data262RKElig1","v":0},{"$f":"Data262RKElig2","v":0},{"$f":"Data262RKElig3","v":0},{"$f":"Data262RKServ1","v":0},{"$f":"Data262RKServ2","v":0},{"$f":"Data262RKServ3","v":0}]
[]
[]
[]
["Voluntary CEIS","Enter the total funds from Fund Code 240 that the district opts to use for voluntary CEIS for FY21. ","Enter the total funds from Fund Code 262 that the district opts to use for voluntary CEIS for FY21. ","The total district reservation for voluntary CEIS.  This amount CANNOT exceed the above maximum (cell will turn red if amount exceeds 15% of FC 240 + FC 262). "]
[]
[]
[]
[]
[]
[]
[null,{"$f":"valCEIS240","v":0},{"$f":"valCEIS262","v":0},{"$f":"CEISTot","v":0}]

{"sheet":"DataLookupValues","index":15,"n_rows":24,"n_cols":6,"rows_kept":24,"cut":false,"hidden":true,"merged":[]}
["Workbook Information",null,null,null,"CCEIS status",{"$f":"VLOOKUP(valDistr,dataDistr,19,FALSE)","v":"CCEIS?"}]
["Fiscal Year","FY20","Fundcode:","240, 262","Allocation 240",{"$f":"VLOOKUP(valDistr,dataDistr,18,FALSE)","v":"M3?"}]
["Grant full name","IDEA, Part B",null,null,"Allocation 262",{"$f":"VLOOKUP(valDistr,dataDistr,19,FALSE)","v":"CCEIS?"}]
["Title abbreviated","IDEA",null,null,"Accountability status",{"$f":"VLOOKUP(valDistr,dataDistr,18,FALSE)","v":"M3?"}]
["District Information"]
["District value",1,null,null,"Liaisons"]
["District Name:",{"$f":"VLOOKUP(valDistr,dataDistr,4,FALSE)","v":"OrgName"},"district code",{"$f":"LEFT(VLOOKUP(valDistr,dataDistr,2,FALSE),4)","v":"Org "},"Name",{"$f":"VLOOKUP(valDistr,dataDistr,15,FALSE)","v":"Liaison's Name"}]
["Address1",{"$f":"VLOOKUP(valDistr,dataDistr,6,FALSE)","v":"Address Line 1"},null,null,"Phone",{"$f":"VLOOKUP(valDistr,dataDistr,16,FALSE)","v":"Liaison's Number"}]
["Address2",{"$f":"IF(VLOOKUP(valDistr,dataDistr,7,FALSE)=0,\"\",VLOOKUP(valDistr,dataDistr,7,FALSE))","v":"Address Line 2"},null,null,"Email",{"$f":"VLOOKUP(valDistr,dataDistr,17,FALSE)","v":"Liaison's Email"}]
["City, State, ZIP",{"$f":"VLOOKUP(valDistr,dataDistr,8,FALSE)&\", \"&VLOOKUP(valDistr,dataDistr,9,FALSE)&\" \"&VLOOKUP(valDistr,dataDistr,10,FALSE)","v":"City, State Zip Code"}]
[]
["MOEAggFY",{"$f":"VLOOKUP(valDistr,dataDistr,20,FALSE)","v":"AggSLFY"},"MOEAggAmt",{"$f":"VLOOKUP(valDistr,dataDistr,21,FALSE)","v":"AggSLAmt"}]
["MOEPPFY",{"$f":"VLOOKUP(valDistr,dataDistr, 22,FALSE)","v":"PPSLFY"},"MOEPPAmt",{"$f":"VLOOKUP(valDistr,dataDistr,23,FALSE)","v":"PPSLAmt"}]
[]
[]
[]
[]
[]
[]
[]
[]
[]
[null,null,null,null,null,1]
[null,null,null,null,null,1]

{"sheet":"LiaisonList","index":16,"n_rows":8,"n_cols":3,"rows_kept":8,"cut":false,"hidden":true,"merged":[]}
["Aneesh Sahni","781-338-3532","aneesh.sahni@doe.mass.edu"]
["Alex Lilley","781-338-6212","alilley@doe.mass.edu"]
["Beth O'Connell","781-338-3132","EO'Connell@doe.mass.edu"]
["Deb Walker","781-338-3127","djwalker@doe.mass.edu"]
["Ellie Rounds-Bloom","781-338-3128","erounds-bloom@doe.mass.edu"]
["Julia Foodman","781-338-3577","jfoodman@doe.mass.edu"]
["Russ Fleming","781-338-6529","RFleming@doe.mass.edu"]
["Sue Mazzarella","781-338-3587","smazzarella@doe.mass.edu"]

{"sheet":"DataDistrList","index":17,"n_rows":401,"n_cols":23,"rows_kept":401,"cut":false,"hidden":true,"merged":[]}
[1,"Org Code","DISTRICT","OrgName","TitleIStatus","Address Line 1","Address Line 2","City","State","Zip Code","ENROLLED_sum","ElCOUNT_sum","HOMLESSWPK","HOMELESSWOPK","Liaison's Name","Liaison's Number","Liaison's Email","M3?","CCEIS?","AggSLFY","AggSLAmt","PPSLFY","PPSLAmt"]
[2,"0445","04450000","Abby Kelley Foster Charter Public (District)","Title I District","10 New Bond Street","","Worcester","MA","01606",1421,140,13,13,"Colleen Holforty","781-338-3522","colleen.e.holforty@mass.gov","","","FY19",1611237,"FY19",9422]
[3,"0001","00010000","Abington","Title I District","1071 Washington St.","","Abington","MA","02351",1990,100,6,6,"Alex Lilley","781-338-6212","alex.j.lilley@mass.gov","","","FY19",7705551,"FY15",25093]
[4,"0412","04120000","Academy Of the Pacific Rim Charter Public (District)","Title I District","1 Westinghouse Plaza Bldg B","","Hyde Park","MA","02136",534,68,3,3,"Colleen Holforty","781-338-3522","colleen.e.holforty@mass.gov","","","FY19",1780391,"FY19",14243]
[5,"0600","06000000","Acton-Boxborough","Title I District","15 Charter Rd","","Acton","MA","01720",5545,243,12,12,"Sue Mazzarella","781-338-3587","susan.mazzarella@mass.gov","","","FY19",20785074,"FY19",22992]
[6,"0003","00030000","Acushnet","Title I District","708 Middle Road","Suite 1","Acushnet","MA","02743",982,10,9,8,"Colleen Holforty","781-338-3522","colleen.e.holforty@mass.gov","","","FY19",4068477,"FY19",28058]
[7,"0603","06030000","Adams-Cheshire","Title I District","191 Church St","","Cheshire","MA","01225",1101,9,18,16,"Alex Lilley","781-338-6212","alex.j.lilley@mass.gov","","","FY19",3579097,"FY19",12828]
[8,"0430","04300000","Advanced Math and Science Academy Charter (District)","Title I District","201 Forest Street","","Marlborough","MA","01752",973,42,0,0,"Sue Mazzarella","781-338-3587","susan.mazzarella@mass.gov","","","FY19",786443,"FY19",13559]
[9,"0005","00050000","Agawam","Title I District","1305 Springfield St","Suite 1","Feeding Hills","MA","01030",3572,185,0,0,"Nancy Labrie","781-338-3536","nancy.h.labrie@mass.gov","","","FY19",16101464,"FY19",25762]
[10,"0409","04090000","Alma del Mar Charter School (District)","Title I District","26 Madeira Avenue","","New Bedford","MA","02746",440,106,0,0,"Alex Chiu","781-338-3586","alexandria.w.chiu@mass.gov","","","FY19",810792,"FY19",9769]
[11,"0007","00070000","Amesbury","Title I District","5 Highland Street","","Amesbury","MA","01913",2003,31,43,43,"Russ Fleming","781-338-6259","russellw.fleming@mass.gov","","","FY19",10237649,"FY19",23267]
[12,"0008","00080000","Amherst","Title I District","170 Chestnut Street","","Amherst","MA","01002",1068,170,39,39,"Ellie Rounds-Bloom","781-338-3128","eleanor.rounds@mass.gov","","","FY19",6826613,"FY17",27672]
[13,"0605","06050000","Amherst-Pelham","Non-Title I District","170 Chestnut Street","","Amherst","MA","01002",1342,84,0,0,"Ellie Rounds-Bloom","781-338-3128","eleanor.rounds@mass.gov","","","FY19",7596932,"FY17",26497]
[14,"0009","00090000","Andover","Title I District","36 Bartlet Street","","Andover","MA","01810",5986,231,9,9,"Beth O'Connell","781-338-3132","elizabeth.a.o'connell@mass.gov","","","FY19",29871291,"FY18",25062]
[15,"3509","35090000","Argosy Collegiate Charter School (District)","Title I District","263 Hamlet Street","","Fall River","MA","02724",454,138,0,0,"Julia Foodman","781-338-3577","julia.b.foodman@mass.gov","Yes","","FY19",797503,"FY19",8138]
[16,"0010","00100000","Arlington","Title I District","869 Massachusetts Avenue","","Arlington","MA","02476",5928,275,10,10,"Julia Foodman","781-338-3577","julia.b.foodman@mass.gov","","","FY19",20197044.960000001,"FY17",23505.78]
[17,"0610","06100000","Ashburnham-Westminster","Title I District","11 Oakmont Drive","","Ashburnham","MA","01430",2301,32,6,6,"Colleen Holforty","781-338-3522","colleen.e.holforty@mass.gov","","","FY19",6012743,"FY18",14062]
[18,"0014","00140000","Ashland","Title I District","87 West Union Street","","Ashland","MA","01721",2756,162,14,14,"Alex Lilley","781-338-6212","alex.j.lilley@mass.gov","","","FY19",9668104,"FY19",20354]
[19,"0801","08010000","Assabet Valley Regional Vocational Technical","Title I District","215 Fitchburg Street","","Marlborough","MA","01752",1120,33,0,0,"Ellie Rounds-Bloom","781-338-3128","eleanor.rounds@mass.gov","","","FY19",1893939,"FY19",6013]
[20,"0615","06150000","Athol-Royalston","Title I District","1062 Pleasant Street","","Athol","MA","01331",1433,26,0,0,"Nancy Labrie","781-338-3536","nancy.h.labrie@mass.gov","Yes","","FY18",6547793,"FY19",16892]
[21,"0491","04910000","Atlantis Charter (District)","Title I District","991 Jefferson St","","Fall River","MA","02721",1287,140,9,9,"Alex Chiu","781-338-3586","alexandria.w.chiu@mass.gov","","","FY19",482992,"FY17",4571]
[22,"0016","00160000","Attleboro","Title I District","100 Rathbun Willard Drive","","Attleboro","MA","02703",5788,356,0,0,"Alex Chiu","781-338-3586","alexandria.w.chiu@mass.gov","","","FY19",18004405,"FY19",18095]
[23,"0017","00170000","Auburn","Title I District","5 West Street","","Auburn","MA","01501",2546,91,8,7,"Colleen Holforty","781-338-3522","colleen.e.holforty@mass.gov","","","FY19",7004627,"FY17",29695]
[24,"0018","00180000","Avon","Title I District","1 Patrick Clark Drive","","Avon","MA","02322",712,24,12,12,"Nancy Labrie","781-338-3536","nancy.h.labrie@mass.gov","","","FY19",2533395,"FY19",22030]
[25,"0616","06160000","Ayer Shirley School District","Title I District","115 Washington Street","","Ayer","MA","01432",1674,64,0,0,"Russ Fleming","781-338-6259","russellw.fleming@mass.gov","","","FY19",7154243,"FY19",24523]
[26,"0020","00200000","Barnstable","Title I District","P O Box 955","","Hyannis","MA","02601",4688,504,83,79,"Alex Chiu","781-338-3586","alexandria.w.chiu@mass.gov","","","FY19",17930215,"FY17",23501]
[27,"3502","35020000","Baystate Academy Charter Public School (District)","Title I District","2001 Roosevelt Avenue","","Springfield","MA","01104",476,61,0,0,"Beth O'Connell","781-338-3132","elizabeth.a.o'connell@mass.gov","","","FY19",319846,"FY16",5092]
[28,"0023","00230000","Bedford","Title I District","97 McMahon Road","","Bedford","MA","01730",2672,155,1,1,"Julia Foodman","781-338-3577","julia.b.foodman@mass.gov","","","FY19",12414792,"FY15",27931]
[29,"0024","00240000","Belchertown","Title I District","PO Box 841","","Belchertown","MA","01007",2264,22,12,11,"Beth O'Connell","781-338-3132","elizabeth.a.o'connell@mass.gov","","","FY19",7593990,"FY15",17733]
[30,"0025","00250000","Bellingham","Title I District","4 Mechanic Street","","Bellingham","MA","02019",2159,46,74,74,"Sue Mazzarella","781-338-3587","susan.mazzarella@mass.gov","","","FY19",9218523,"FY19",21241]
[31,"0026","00260000","Belmont","Title I District","644 Pleasant Street","","Belmont","MA","02478",4673,357,0,0,"Alex Chiu","781-338-3586","alexandria.w.chiu@mass.gov","","","FY19",15365758,"FY15",31168]
[32,"0420","04200000","Benjamin Banneker Charter Public (District)","Title I District","21 Notre Dame Avenue","","Cambridge","MA","02140",324,20,1,0,"Ellie Rounds-Bloom","781-338-3128","eleanor.rounds@mass.gov","","","FY19",732851,"FY19",13827]
[33,"0447","04470000","Benjamin Franklin Classical Charter Public (District)","Title I District","201 Main Street","","Franklin","MA","02038",457,26,0,0,"Russ Fleming","781-338-6259","russellw.fleming@mass.gov","","","FY19",888396,"FY19",16153]
[34,"0027","00270000","Berkley","Title I District","21 North Main Street","","Berkley","MA","02779",823,6,0,0,"Russ Fleming","781-338-6259","russellw.fleming@mass.gov","","","FY19",2320923,"FY19",18567]
[35,"0414","04140000","Berkshire Arts and Technology Charter Public (District)","Title I District","1 Commercial Pl","PO Box 267","Adams","MA","01220",366,3,0,0,"Russ Fleming","781-338-6259","russellw.fleming@mass.gov","","","FY19",573644,"FY19",6594]
[36,"0618","06180000","Berkshire Hills","Title I District","50 Main Street","PO Box 617","Stockbridge","MA","01262",1191,40,0,0,"Alex Chiu","781-338-3586","alexandria.w.chiu@mass.gov","","","FY19",5468545,"FY19",21044]
[37,"0620","06200000","Berlin-Boylston","Title I District","215 Main Street","","Boylston","MA","01505",591,9,0,0,"Beth O'Connell","781-338-3132","elizabeth.a.o'connell@mass.gov","","","FY19",2293812,"FY19",18442]
[38,"0030","00300000","Beverly","Title I District","70 Balch St.","","Beverly","MA","01915",4561,164,0,0,"Nancy Labrie","781-338-3536","nancy.h.labrie@mass.gov","","","FY19",19174335,"FY19",19506]
[39,"0031","00310000","Billerica","Title I District","365 Boston Rd","","Billerica","MA","01821",4638,69,16,16,"Russ Fleming","781-338-6259","russellw.fleming@mass.gov","","","FY19",18609692,"FY19",22667]
[40,"0805","08050000","Blackstone Valley Regional Vocational Technical","Title I District","65 Pleasant Street","","Upton","MA","01568",1219,2,0,0,"Alex Chiu","781-338-3586","alexandria.w.chiu@mass.gov","","","FY19",873304,"FY19",7464]
[41,"0622","06220000","Blackstone-Millville","Title I District","175 Lincoln Street","","Blackstone","MA","01504",1669,39,1,1,"Sue Mazzarella","781-338-3587","susan.mazzarella@mass.gov","","","FY19",5385107,"FY19",18442]
[42,"0806","08060000","Blue Hills Regional Vocational Technical","Title I District","800 Randolph Street","","Canton","MA","02021",846,6,8,8,"Alex Chiu","781-338-3586","alexandria.w.chiu@mass.gov","","","FY19",885038,"FY19",4155]
[43,"0035","00350000","Boston","Title I District","2300 Washington Street","","Roxbury","MA","02119",48837,15324,4509,4293,"Julia Foodman","781-338-3577","julia.b.foodman@mass.gov","Yes","","FY19",355171024,"FY19",33733]
[44,"0449","04490000","Boston Collegiate Charter (District)","Title I District","11 Mayhew Street","","Dorchester","MA","02125",701,29,3,3,"Julia Foodman","781-338-3577","julia.b.foodman@mass.gov","","","FY19",2162445,"FY19",17162]
[45,"0424","04240000","Boston Day and Evening Academy Charter (District)","Title I District","20 Kearsarge Ave","","Roxbury","MA","02119",365,46,92,92,"Colleen Holforty","781-338-3522","colleen.e.holforty@mass.gov","","","N/A","N/A","N/A","N/A"]
[46,"0411","04110000","Boston Green Academy Horace Mann Charter School (District)","Title I District","20 Warren St.","","Brighton","MA","02135",461,68,0,0,"Ellie Rounds-Bloom","781-338-3128","eleanor.rounds@mass.gov","Yes","","FY19",1498295,"FY17",16339]
[47,"0416","04160000","Boston Preparatory Charter Public (District)","Title I District","885 River Street","","Hyde Park","MA","02136",526,94,0,0,"Julia Foodman","781-338-3577","julia.b.foodman@mass.gov","","","FY19",1054526,"FY15",12030]
[48,"0481","04810000","Boston Renaissance Charter Public (District)","Title I District","1415 Hyde Park Ave","","Hyde Park","MA","02136",822,109,9,8,"Alex Lilley","781-338-6212","alex.j.lilley@mass.gov","","","FY19",2472690,"FY19",22895]
[49,"0036","00360000","Bourne","Title I District","36 Sandwich Rd","","Bourne","MA","02532",1894,14,51,51,"Beth O'Connell","781-338-3132","elizabeth.a.o'connell@mass.gov","","","FY19",6495631,"FY18",19728]
[50,"0038","00380000","Boxford","Title I District","28 Middleton Road","","Boxford","MA","01921",683,6,0,0,"Russ Fleming","781-338-6259","russellw.fleming@mass.gov","","","FY19",3085616,"FY19",23376]
[51,"0040","00400000","Braintree","Title I District","348 Pond Street","","Braintree","MA","02184",5779,306,0,0,"Ellie Rounds-Bloom","781-338-3128","eleanor.rounds@mass.gov","","","FY19",21990294,"FY19",18402]
[52,"0041","00410000","Brewster","Title I District","78 Eldredge Pkwy","","Orleans","MA","02653",449,10,6,6,"Julia Foodman","781-338-3577","julia.b.foodman@mass.gov","","","FY19",2539151,"FY17",30837]
[53,"0417","04170000","Bridge Boston Charter School (District)","Title I District","435 Warren St.","","Roxbury","MA","02119",299,77,11,10,"Beth O'Connell","781-338-3132","elizabeth.a.o'connell@mass.gov","","","FY19",848259,"FY15",11541]
[54,"0625","06250000","Bridgewater-Raynham","Title I District","166 Mt. Prospect Street","","Bridgewater","MA","02324",5280,113,26,26,"Alex Lilley","781-338-6212","alex.j.lilley@mass.gov","","","FY19",18040350,"FY18",21267]
[55,"0043","00430000","Brimfield","Title I District","320A Brookfield Rd","","Fiskdale","MA","01518",259,2,0,0,"Russ Fleming","781-338-6259","russellw.fleming@mass.gov","","","FY19",1183014,"FY16",32525]
[56,"0910","09100000","Bristol County Agricultural","Title I District","135 Center Street","","Dighton","MA","02715",447,0,0,0,"Nancy Labrie","781-338-3536","nancy.h.labrie@mass.gov","","","FY19",1309952,"FY19",21833]
[57,"0810","08100000","Bristol-Plymouth Regional Vocational Technical","Title I District","207 Hart Street","","Taunton","MA","02780",1262,3,5,5,"Russ Fleming","781-338-6259","russellw.fleming@mass.gov","","","FY19",2649021,"FY19",12379]
[58,"0044","00440000","Brockton","Title I District","43 Crescent Street","","Brockton","MA","02301",16171,4243,584,576,"Sue Mazzarella","781-338-3587","susan.mazzarella@mass.gov","","","FY19",42170335,"FY19",16053]
[59,"0428","04280000","Brooke Charter School (District)","Title I District","190 Cummins Highway","","Roslindale","MA","02131",1842,133,0,0,"Julia Foodman","781-338-3577","julia.b.foodman@mass.gov","","","FY19",4289972,"FY19",22461]
[60,"0045","00450000","Brookfield","Title I District","320 Brookfield Rd","","Fiskdale","MA","01518",284,1,3,3,"Russ Fleming","781-338-6259","russellw.fleming@mass.gov","","","FY19",929214,"FY17",33296]
[61,"0046","00460000","Brookline","Title I District","333 Washington Street","","Brookline","MA","02445",7646,878,21,21,"Julia Foodman","781-338-3577","julia.b.foodman@mass.gov","","","FY19",31725317,"FY19",25421]
[62,"0048","00480000","Burlington","Title I District","123 Cambridge Street","","Burlington","MA","01803",3528,161,7,7,"Sue Mazzarella","781-338-3587","susan.mazzarella@mass.gov","","","FY19",18665175,"FY19",37707]
[63,"0049","00490000","Cambridge","Title I District","159 Thorndike Street","","Cambridge","MA","02141",6602,548,231,224,"Alex Lilley","781-338-6212","alex.j.lilley@mass.gov","","","FY19",50024147,"FY19",31462]
[64,"0050","00500000","Canton","Title I District","960 Washington Street","","Canton","MA","02021",3255,83,26,24,"Ellie Rounds-Bloom","781-338-3128","eleanor.rounds@mass.gov","","","FY19",14120880,"FY19",37063]
[65,"0432","04320000","Cape Cod Lighthouse Charter (District)","Title I District","195 Route 137","","East Harwich","MA","02645",243,1,0,0,"Ellie Rounds-Bloom","781-338-3128","eleanor.rounds@mass.gov","","","FY19",610469,"FY18",16822]
[66,"0815","08150000","Cape Cod Regional Vocational Technical","Title I District","351 Pleasant Lake Avenue","","Harwich","MA","02645",570,17,0,0,"Julia Foodman","781-338-3577","julia.b.foodman@mass.gov","","","FY19",994226,"FY15",7054.5]
[67,"0051","00510000","Carlisle","Non-Title I District","83 School Street","","Carlisle","MA","01741",601,18,0,0,"Nancy Labrie","781-338-3536","nancy.h.labrie@mass.gov","","","FY19",3306812,"FY19",34809]
[68,"0052","00520000","Carver","Title I District","3 Carver Square Blvd.","","Carver","MA","02330",1521,20,1,1,"Nancy Labrie","781-338-3536","nancy.h.labrie@mass.gov","","","FY19",5212875,"FY19",17319]
[69,"0635","06350000","Central Berkshire","Title I District","PO Box 299","Rt 8","Dalton","MA","01227",1533,5,8,8,"Alex Lilley","781-338-6212","alex.j.lilley@mass.gov","","","FY19",4532057,"FY19",18574]
[70,"0056","00560000","Chelmsford","Title I District","230 North Road","","Chelmsford","MA","01824",4923,202,0,0,"Russ Fleming","781-338-6259","russellw.fleming@mass.gov","","","FY19",20026867,"FY19",23423]
[71,"0057","00570000","Chelsea","Title I District","500 Broadway Street","c/o City Hall Room 216","Chelsea","MA","02150",5941,2191,513,506,"Julia Foodman","781-338-3577","julia.b.foodman@mass.gov","Yes","","FY19",24823911,"FY19",24676]
[72,"0632","06320000","Chesterfield-Goshen","Non-Title I District","30 Smith Road","","Chesterfield","MA","01012",114,0,0,0,"Nancy Labrie","781-338-3536","nancy.h.labrie@mass.gov","","","FY19",551538,"FY18",15679]
[73,"0061","00610000","Chicopee","Title I District","180 Broadway Street","","Chicopee","MA","01020",7167,453,178,175,"Beth O'Connell","781-338-3132","elizabeth.a.o'connell@mass.gov","","","FY18",22031238,"FY19",15770]
[74,"0418","04180000","Christa McAuliffe Charter Public (District)","Title I District","139 Newbury St","","Framingham","MA","01701",391,10,0,0,"Sue Mazzarella","781-338-3587","susan.mazzarella@mass.gov","","","FY19",1199968,"FY18",13849]
[75,"0437","04370000","City on a Hill Charter Public School (District)","Title I District","15 Allerton Street","Suite 1","Roxbury","MA","02119",252,37,2,2,"Julia Foodman","781-338-3577","julia.b.foodman@mass.gov","","","FY19",685407,"FY19",12462]
[76,"0063","00630000","Clarksburg","Title I District","777 West Crossroad","","Clarksburg","MA","01247",183,0,0,0,"Sue Mazzarella","781-338-3587","susan.mazzarella@mass.gov","","","FY19",551795,"FY16",18660]
[77,"0064","00640000","Clinton","Title I District","150 School Street","","Clinton","MA","01510",1829,216,8,8,"Alex Chiu","781-338-3586","alexandria.w.chiu@mass.gov","","","FY19",8973454,"FY19",22378]
[78,"0438","04380000","Codman Academy Charter Public (District)","Title I District","637 Washington Street","","Dorchester","MA","02124",325,23,21,21,"Julia Foodman","781-338-3577","julia.b.foodman@mass.gov","Yes","","FY18",1094557,"FY19",14637]
[79,"0065","00650000","Cohasset","Title I District","143 Pond Street","","Cohasset","MA","02025",1536,4,0,0,"Ellie Rounds-Bloom","781-338-3128","eleanor.rounds@mass.gov","","","FY19",5068237,"FY17",23960]
[80,"3503","35030000","Collegiate Charter School of Lowell (District)","Title I District","1857 Middlesex Street","","Lowell","MA","01851",844,220,0,0,"Sue Mazzarella","781-338-3587","susan.mazzarella@mass.gov","","","FY19",414003,"FY16",11186]
[81,"0436","04360000","Community Charter School of Cambridge (District)","Title I District","245 Bent Street","","Cambridge","MA","02141",330,13,5,5,"Nancy Labrie","781-338-3536","nancy.h.labrie@mass.gov","","","FY19",702192,"FY19",14044]
[82,"0426","04260000","Community Day Charter Public School - Gateway (District)","Title I District","190 Hampshire Street","","Lawrence","MA","01840",320,74,0,0,"Colleen Holforty","781-338-3522","colleen.e.holforty@mass.gov","","","FY19",625673,"FY18",19404]
[83,"0440","04400000","Community Day Charter Public School - Prospect (District)","Title I District","190 Hampshire Street","","Lawrence","MA","01840",379,121,0,0,"Colleen Holforty","781-338-3522","colleen.e.holforty@mass.gov","","","FY19",782231,"FY14",17319]
[84,"0431","04310000","Community Day Charter Public School - R. Kingman Webster (District)","Title I District","190 Hampshire Street","","Lawrence","MA","01840",318,80,0,0,"Colleen Holforty","781-338-3522","colleen.e.holforty@mass.gov","","","FY19",663350,"FY19",21398]
[85,"0067","00670000","Concord","Title I District","120 Meriam Rd","","Concord","MA","01742",2100,55,0,0,"Nancy Labrie","781-338-3536","nancy.h.labrie@mass.gov","","","FY19",10844015,"FY18",27314]
[86,"0640","06400000","Concord-Carlisle","Title I District","120 Meriam Rd","","Concord","MA","01742",1310,6,1,1,"Nancy Labrie","781-338-3536","nancy.h.labrie@mass.gov","","","FY19",6890326,"FY13",29598]
[87,"0439","04390000","Conservatory Lab Charter (District)","Title I District","2120 Dorchester Avenue","","Dorchester","MA","02124",399,72,0,0,"Alex Chiu","781-338-3586","alexandria.w.chiu@mass.gov","","","FY19",748782,"FY19",15281]
[88,"0068","00680000","Conway","Title I District","113 North Main Street, Office C101","","South Deerfield","MA","01373",118,0,0,0,"Alex Lilley","781-338-6212","alex.j.lilley@mass.gov","","","FY19",649697,"FY19",29532]
[89,"0071","00710000","Danvers","Title I District","64 Cabot Road","","Danvers","MA","01923",3420,38,0,0,"Sue Mazzarella","781-338-3587","susan.mazzarella@mass.gov","","","FY19",12361397,"FY19",21095]
[90,"0072","00720000","Dartmouth","Title I District","8 Bush Street","","Dartmouth","MA","02748",3582,94,11,11,"Sue Mazzarella","781-338-3587","susan.mazzarella@mass.gov","","","FY19",10264623,"FY18",18790]
[91,"0073","00730000","Dedham","Title I District","100 Whiting Avenue","","Dedham","MA","02026",2601,179,39,39,"Beth O'Connell","781-338-3132","elizabeth.a.o'connell@mass.gov","","","FY19",14259358,"FY16",23241]
[92,"0074","00740000","Deerfield","Title I District","113 North Main Street, Office C101","","South Deerfield","MA","01373",355,4,0,0,"Alex Lilley","781-338-6212","alex.j.lilley@mass.gov","","","FY19",1424994,"FY18",18772]
[93,"0645","06450000","Dennis-Yarmouth","Title I District","296 Station Avenue","","South Yarmouth","MA","02664",2965,288,156,154,"Sue Mazzarella","781-338-3587","susan.mazzarella@mass.gov","","","FY19",12939113,"FY19",21637.312709030099]
[94,"0650","06500000","Dighton-Rehoboth","Title I District","2700 Regional Road","","North Dighton","MA","02764",2875,10,9,9,"Alex Chiu","781-338-3586","alexandria.w.chiu@mass.gov","","","FY19",10421844,"FY19",22558]
[95,"0077","00770000","Douglas","Title I District","21 Davis Street","","Douglas","MA","01516",1252,9,0,0,"Alex Lilley","781-338-6212","alex.j.lilley@mass.gov","","","FY19",5975734,"FY19",25108]
[96,"0078","00780000","Dover","Title I District","157 Farm Street","","Dover","MA","02030",482,16,0,0,"Beth O'Connell","781-338-3132","elizabeth.a.o'connell@mass.gov","","","FY19",3547557,"FY19",53751]
[97,"0655","06550000","Dover-Sherborn","Title I District","157 Farm Street","","Dover","MA","02030",1225,4,0,0,"Beth O'Connell","781-338-3132","elizabeth.a.o'connell@mass.gov","","","FY19",3692526,"FY17",19618]
[98,"0079","00790000","Dracut","Title I District","2063 Lakeview Avenue","","Dracut","MA","01826",3619,65,15,15,"Colleen Holforty","781-338-3522","colleen.e.holforty@mass.gov","","","FY19",9995710,"FY19",16604]
[99,"0407","04070000","Dudley Street Neighborhood Charter School (District)","Title I District","6 Shirley Street","","Boston","MA","02119",225,68,0,0,"Beth O'Connell","781-338-3132","elizabeth.a.o'connell@mass.gov","","","FY19",493793,"FY19",20575]
[100,"0658","06580000","Dudley-Charlton Reg","Title I District","68 Dudley Oxford Road","","Dudley","MA","01571",3726,94,21,20,"Sue Mazzarella","781-338-3587","susan.mazzarella@mass.gov","","","FY19",9269366,"FY15",16867]
[101,"0082","00820000","Duxbury","Title I District","93 Chandler Street","","Duxbury","MA","02332",2982,9,1,1,"Nancy Labrie","781-338-3536","nancy.h.labrie@mass.gov","","","FY19",8082055,"FY18",17584]
[102,"0083","00830000","East Bridgewater","Title I District","143 Plymouth Street","","East Bridgewater","MA","02333",2145,20,9,9,"Russ Fleming","781-338-6259","russellw.fleming@mass.gov","","","FY19",6013646,"FY19",13856]
[103,"0087","00870000","East Longmeadow","Title I District","180 Maple Street","","East Longmeadow","MA","01028",2621,51,0,0,"Russ Fleming","781-338-6259","russellw.fleming@mass.gov","","","FY19",9619370,"FY19",19552]
[104,"0085","00850000","Eastham","Title I District","78 Eldredge Pkwy","","Orleans","MA","02653",157,5,0,0,"Julia Foodman","781-338-3577","julia.b.foodman@mass.gov","","","N/A","N/A","N/A","N/A"]
[105,"0086","00860000","Easthampton","Title I District","50 Payson Avenue","Second Floor","Easthampton","MA","01027",1535,41,11,11,"Beth O'Connell","781-338-3132","elizabeth.a.o'connell@mass.gov","Yes","","FY19",6088559,"FY18",19806]
[106,"0088","00880000","Easton","Title I District","PO Box 359","","North Easton","MA","02356",3607,65,10,10,"Alex Lilley","781-338-6212","alex.j.lilley@mass.gov","","","FY19",12797782,"FY19",19016]
[107,"0089","00890000","Edgartown","Title I District","4 Pine Street","","Vineyard Haven","MA","02568",361,81,0,0,"Sue Mazzarella","781-338-3587","susan.mazzarella@mass.gov","","","FY19",1705206,"FY19",20300]
[108,"0452","04520000","Edward M. Kennedy Academy for Health Careers (Horace Mann Charter) (District)","Title I District","360 Huntington Avenue","c/o 102 Cahners Hall","Boston","MA","02115",378,63,0,0,"Sue Mazzarella","781-338-3587","susan.mazzarella@mass.gov","","","FY19",1103176,"FY19",17237]
[109,"0091","00910000","Erving","Title I District","18 Pleasant Street","","Erving","MA","01344",106,2,0,0,"Nancy Labrie","781-338-3536","nancy.h.labrie@mass.gov","","","FY19",1518441,"FY19",66019]
[110,"0817","08170000","Essex North Shore Agricultural and Technical School District","Title I District","565 Maple Street","P.O. Box 346","Hathorne","MA","01937",1391,2,4,4,"Alex Chiu","781-338-3586","alexandria.w.chiu@mass.gov","","","FY19",1722500,"FY18",6950]
[111,"0093","00930000","Everett","Title I District","121 Vine Street","","Everett","MA","02149",6665,1669,126,125,"Ellie Rounds-Bloom","781-338-3128","eleanor.rounds@mass.gov","","Yes","FY19",25924613,"FY18",20900]
[112,"0410","04100000","Excel Academy Charter (District)","Title I District","58 Moore Street","","East Boston","MA","02128",1289,152,15,15,"Alex Chiu","781-338-3586","alexandria.w.chiu@mass.gov","","","FY19",4647894,"FY19",18227]
[113,"0094","00940000","Fairhaven","Title I District","128 Washington Street","","Fairhaven","MA","02719",2010,33,7,7,"Alex Chiu","781-338-3586","alexandria.w.chiu@mass.gov","","","FY19",5051525,"FY14",17047]
[114,"0095","00950000","Fall River","Title I District","417 Rock Street","","Fall River","MA","02720",9999,1714,439,434,"Sue Mazzarella","781-338-3587","susan.mazzarella@mass.gov","","","FY19",37883195,"FY16",18092]
[115,"0096","00960000","Falmouth","Title I District","340 Teaticket Hwy","","East Falmouth","MA","02536",3245,110,33,33,"Beth O'Connell","781-338-3132","elizabeth.a.o'connell@mass.gov","","","FY19",11764576,"FY19",20076.068259385665]
[116,"0662","06620000","Farmington River Reg","Title I District","555 N Main Street","PO Box 679","Otis","MA","01253",91,0,0,0,"Ellie Rounds-Bloom","781-338-3128","eleanor.rounds@mass.gov","","","FY19",982972,"FY14",46034]
[117,"0097","00970000","Fitchburg","Title I District","376 South Street","","Fitchburg","MA","01420",5273,843,494,484,"Russ Fleming","781-338-6259","russellw.fleming@mass.gov","Yes","","FY19",22828990,"FY13",17242]
[118,"0098","00980000","Florida","Title I District","56 North County Rd","","Florida","MA","01247",73,0,0,0,"Sue Mazzarella","781-338-3587","susan.mazzarella@mass.gov","","","FY19",248555,"FY17",14014]
[119,"0413","04130000","Four Rivers Charter Public (District)","Title I District","248 Colrain Road","","Greenfield","MA","01301",218,0,0,0,"Sue Mazzarella","781-338-3587","susan.mazzarella@mass.gov","","","FY19",411804,"FY19",14200]
[120,"0099","00990000","Foxborough","Title I District","60 South Street","C/O Igo Administration Building","Foxborough","MA","02035",2500,66,19,19,"Ellie Rounds-Bloom","781-338-3128","eleanor.rounds@mass.gov","","","FY19",9219964,"FY19",18294]
[121,"0446","04460000","Foxborough Regional Charter (District)","Title I District","131 Central Street","35 Commercial Street","Foxborough","MA","02035",1611,147,10,10,"Nancy Labrie","781-338-3536","nancy.h.labrie@mass.gov","","","FY19",2086122,"FY19",14289]
[122,"0100","01000000","Framingham","Title I District","73 Mt. Wayte Avenue","Suite 5","Framingham","MA","01702",8724,2001,368,365,"Colleen Holforty","781-338-3522","colleen.e.holforty@mass.gov","","","FY19",44868691,"FY17",22603]
[123,"0478","04780000","Francis W. Parker Charter Essential (District)","Non-Title I District","49 Antietam Street","","Devens","MA","01434",394,0,0,0,"Julia Foodman","781-338-3577","julia.b.foodman@mass.gov","","","FY19",287930,"FY19",5235]
[124,"0101","01010000","Franklin","Title I District","355 East Central Street","","Franklin","MA","02038",5179,78,6,5,"Nancy Labrie","781-338-3536","nancy.h.labrie@mass.gov","","","FY19",21604018,"FY18",25351]
[125,"0818","08180000","Franklin County Regional Vocational Technical","Title I District","82 Industrial Blvd","","Turners Falls","MA","01376",484,0,12,12,"Sue Mazzarella","781-338-3587","susan.mazzarella@mass.gov","","","FY19",432890,"FY18",3070]
[126,"0665","06650000","Freetown-Lakeville","Title I District","98 Howland Rd","","Lakeville","MA","02347",2800,18,0,0,"Colleen Holforty","781-338-3522","colleen.e.holforty@mass.gov","","","FY19",9958393,"FY19",22736]
[127,"0670","06700000","Frontier","Title I District","113 North Main Street, Office C101","","South Deerfield","MA","01373",661,7,0,0,"Alex Lilley","781-338-6212","alex.j.lilley@mass.gov","","","FY19",3043239,"FY19",22882]
[128,"0103","01030000","Gardner","Title I District","70 Waterford Street","","Gardner","MA","01440",2238,100,76,74,"Russ Fleming","781-338-6259","russellw.fleming@mass.gov","Yes","","FY19",7345157,"FY19",14839]
[129,"0672","06720000","Gateway","Title I District","12 Littleville Road","","Huntington","MA","01050",786,18,13,12,"Russ Fleming","781-338-6259","russellw.fleming@mass.gov","","","FY19",3123963,"FY19",18933]
[130,"0105","01050000","Georgetown","Title I District","51 North Street","","Georgetown","MA","01833",1322,3,0,0,"Julia Foodman","781-338-3577","julia.b.foodman@mass.gov","","","FY19",4594402,"FY19",28896]
[131,"0674","06740000","Gill-Montague","Title I District","35 Crocker Avenue","","Turners Falls","MA","01376",911,52,3,3,"Beth O'Connell","781-338-3132","elizabeth.a.o'connell@mass.gov","","","FY19",4095837,"FY17",21324]
[132,"0496","04960000","Global Learning Charter Public (District)","Title I District","190 Ashley Boulevard","","New Bedford","MA","02746",503,52,0,0,"Julia Foodman","781-338-3577","julia.b.foodman@mass.gov","","","FY19",861759,"FY19",11969]
[133,"0107","01070000","Gloucester","Title I District","2 Blackburn Drive","","Gloucester","MA","01930",2817,185,0,0,"Beth O'Connell","781-338-3132","elizabeth.a.o'connell@mass.gov","Yes","Yes","FY19",15718649,"FY19",20256]
[134,"0109","01090000","Gosnold","Non-Title I District","263 Hill & Plain Road","","East Falmouth","MA","02536",1,0,0,0,"Ellie Rounds-Bloom","781-338-3128","eleanor.rounds@mass.gov","","","N/A","N/A","N/A","N/A"]
[135,"0110","01100000","Grafton","Title I District","30 Providence Rd","","Grafton","MA","01519",3105,52,16,15,"Alex Lilley","781-338-6212","alex.j.lilley@mass.gov","","","FY19",11710052,"FY19",19388]
[136,"0111","01110000","Granby","Title I District","387 East State Street","","Granby","MA","01033",704,31,0,0,"Ellie Rounds-Bloom","781-338-3128","eleanor.rounds@mass.gov","","","FY19",2993325,"FY18",23771]
[137,"0821","08210000","Greater Fall River Regional Vocational Technical","Title I District","251 Stonehaven Rd","","Fall River","MA","02723",1392,21,5,5,"Alex Chiu","781-338-3586","alexandria.w.chiu@mass.gov","","","FY19",1026395,"FY19",6415]
[138,"0823","08230000","Greater Lawrence Regional Vocational Technical","Title I District","57 River Rd","","Andover","MA","01810",1543,202,55,55,"Ellie Rounds-Bloom","781-338-3128","eleanor.rounds@mass.gov","","Yes","FY19",2189215,"FY16",7312]
[139,"0828","08280000","Greater Lowell Regional Vocational Technical","Title I District","250 Pawtucket Blvd","","Tyngsborough","MA","01879",2203,164,9,9,"Alex Chiu","781-338-3586","alexandria.w.chiu@mass.gov","","","FY19",2831072,"FY19",6709]
[140,"0825","08250000","Greater New Bedford Regional Vocational Technical","Title I District","1121 Ashley Blvd","","New Bedford","MA","02745",2104,71,17,17,"Colleen Holforty","781-338-3522","colleen.e.holforty@mass.gov","","","FY19",1019844,"FY16",7467]
[141,"0114","01140000","Greenfield","Title I District","195 Federal Street, Suite 100","","Greenfield","MA","01301",1640,99,55,52,"Alex Lilley","781-338-6212","alex.j.lilley@mass.gov","Yes","","FY19",7478888,"FY16",25943]
[142,"3901","39010000","Greenfield Commonwealth Virtual District","Title I District","238 Main St.","3rd Floor","Greenfield","MA","01301",580,12,7,7,"Nancy Labrie","781-338-3536","nancy.h.labrie@mass.gov","Yes","","N/A","N/A","N/A","N/A"]
[143,"0673","06730000","Groton-Dunstable","Non-Title I District","P O Box 729","","Groton","MA","01450",2368,25,0,0,"Alex Chiu","781-338-3586","alexandria.w.chiu@mass.gov","","","FY19",8787258,"FY19",21225]
[144,"0117","01170000","Hadley","Title I District","125 Russell Street","","Hadley","MA","01035",511,32,0,0,"Nancy Labrie","781-338-3536","nancy.h.labrie@mass.gov","","","FY19",2145657,"FY17",29000]
[145,"0118","01180000","Halifax","Title I District","250 Pembroke Street","","Kingston","MA","02364",627,7,0,0,"Nancy Labrie","781-338-3536","nancy.h.labrie@mass.gov","","","FY19",3408811,"FY16",36626]
[146,"0675","06750000","Hamilton-Wenham","Title I District","5 School Street","","Wenham","MA","01984",1778,11,0,0,"Sue Mazzarella","781-338-3587","susan.mazzarella@mass.gov","","","FY19",9256344,"FY19",29017]
[147,"0499","04990000","Hampden Charter School of Science East (District)","Title I District","20 Johnson Road","","Chicopee","MA","01022",489,17,0,0,"Beth O'Connell","781-338-3132","elizabeth.a.o'connell@mass.gov","","","FY19",270110,"FY19",5627]
[148,"3516","35160000","Hampden Charter School of Science West (District)","Title I District","511 Main St.","","West Springfield","MA","01089",212,26,0,0,"Beth O'Connell","781-338-3132","elizabeth.a.o'connell@mass.gov","","","FY19",158237,"FY19",4395]
[149,"0680","06800000","Hampden-Wilbraham","Title I District","621 Main Street","","Wilbraham","MA","01095",2986,25,0,0,"Alex Lilley","781-338-6212","alex.j.lilley@mass.gov","","","FY18",10055367,"FY19",23520]
[150,"0683","06830000","Hampshire","Title I District","19 Stage Rd","","Westhampton","MA","01027",731,11,0,0,"Nancy Labrie","781-338-3536","nancy.h.labrie@mass.gov","","","FY19",2988152,"FY18",19899]
[151,"0121","01210000","Hancock","Title I District","1831 STATE ROAD","","RICHMOND","MA","01254",33,0,0,0,"Julia Foodman","781-338-3577","julia.b.foodman@mass.gov","","","FY19",167139,"FY17",59772]
[152,"0122","01220000","Hanover","Title I District","188 Broadway Street","","Hanover","MA","02339",2594,24,2,1,"Beth O'Connell","781-338-3132","elizabeth.a.o'connell@mass.gov","","","FY19",7694545,"FY19",16233]
[153,"0125","01250000","Harvard","Title I District","39 Massachusetts Avenue","","Harvard","MA","01451",1073,17,30,30,"Sue Mazzarella","781-338-3587","susan.mazzarella@mass.gov","","","FY19",3967592,"FY19",32790]
[154,"0127","01270000","Hatfield","Title I District","34 School Street","","Hatfield","MA","01038",422,0,0,0,"Alex Lilley","781-338-6212","alex.j.lilley@mass.gov","","","FY19",1460056,"FY19",18482]
[155,"0128","01280000","Haverhill","Title I District","4 Summer Street","","Haverhill","MA","01830",7955,771,257,249,"Ellie Rounds-Bloom","781-338-3128","eleanor.rounds@mass.gov","","","FY19",30239165,"FY16",16793]
[156,"0685","06850000","Hawlemont","Title I District","24 Ashfield Rd","","Shelburne Falls","MA","01370",121,0,0,0,"Alex Lilley","781-338-6212","alex.j.lilley@mass.gov","Yes","","FY19",448975,"FY15",17586]
[157,"0419","04190000","Helen Y. Davis Leadership Academy Charter Public (District)","Title I District","23 Leonard Street","","Boston","MA","02122",191,16,0,0,"Alex Lilley","781-338-6212","alex.j.lilley@mass.gov","Yes","","FY19",352093,"FY19",7042]
[158,"0455","04550000","Hill View Montessori Charter Public (District)","Title I District","75 Foundation Ave","Ward Hill Business Park","Haverhill","MA","01835",306,33,0,0,"Ellie Rounds-Bloom","781-338-3128","eleanor.rounds@mass.gov","","","FY19",495604,"FY19",9912]
[159,"0450","04500000","Hilltown Cooperative Charter Public (District)","Title I District","1 Industrial Parkway","","Easthampton","MA","01039",217,0,0,0,"Beth O'Connell","781-338-3132","elizabeth.a.o'connell@mass.gov","","","FY19",568752,"FY17",14167]
[160,"0131","01310000","Hingham","Title I District","220 Central Street","","Hingham","MA","02043",4224,15,0,0,"Ellie Rounds-Bloom","781-338-3128","eleanor.rounds@mass.gov","","","FY19",14550103,"FY19",26075]
[161,"0133","01330000","Holbrook","Title I District","245 So. Franklin Street","","Holbrook","MA","02343",1239,95,0,0,"Nancy Labrie","781-338-3536","nancy.h.labrie@mass.gov","","","FY19",6694978,"FY17",24865]
[162,"0135","01350000","Holland","Title I District","320 Brookfield Rd","","Fiskdale","MA","01518",204,0,0,0,"Russ Fleming","781-338-6259","russellw.fleming@mass.gov","","","FY18",868326,"FY19",25703]
[163,"0136","01360000","Holliston","Title I District","370 Hollis Street","","Holliston","MA","01746",2833,67,0,0,"Julia Foodman","781-338-3577","julia.b.foodman@mass.gov","","","FY19",11760756,"FY19",24299]
[164,"0137","01370000","Holyoke","Title I District","57 Suffolk Street","","Holyoke","MA","01040",4998,1163,789,754,"Alex Lilley","781-338-6212","alex.j.lilley@mass.gov","Yes","","FY19",27864113,"FY18",21526]
[165,"0453","04530000","Holyoke Community Charter (District)","Title I District","2200 Northampton Street","","Holyoke","MA","01040",701,107,9,9,"Alex Lilley","781-338-6212","alex.j.lilley@mass.gov","","","FY19",913469,"FY17",8078]
[166,"0138","01380000","Hopedale","Title I District","25 Adin Street","","Hopedale","MA","01747",1011,20,0,0,"Sue Mazzarella","781-338-3587","susan.mazzarella@mass.gov","","","FY19",4508257,"FY17",19395]
[167,"0139","01390000","Hopkinton","Title I District","89 Hayden Rowe Street","","Hopkinton","MA","01748",3670,193,0,0,"Alex Lilley","781-338-6212","alex.j.lilley@mass.gov","","","FY19",10115972,"FY19",21802]
[168,"0141","01410000","Hudson","Title I District","155 Apsley Street","","Hudson","MA","01749",2564,242,15,15,"Ellie Rounds-Bloom","781-338-3128","eleanor.rounds@mass.gov","","","FY18",12664837,"FY19",28305]
[169,"0142","01420000","Hull","Title I District","18 Harborview Road","","Hull","MA","02045",847,3,0,0,"Alex Chiu","781-338-3586","alexandria.w.chiu@mass.gov","","","FY19",4998519,"FY16",25578]
[170,"0435","04350000","Innovation Academy Charter (District)","Title I District","72 Tyng Road","","Tyngsborough","MA","01879",792,14,0,0,"Colleen Holforty","781-338-3522","colleen.e.holforty@mass.gov","","","FY19",1337752,"FY18",8799]
[171,"0144","01440000","Ipswich","Title I District","1 Lord Square","","Ipswich","MA","01938",1691,34,22,19,"Nancy Labrie","781-338-3536","nancy.h.labrie@mass.gov","","","FY19",7290055,"FY18",24746]
[172,"0690","06900000","King Philip","Title I District","18 King Street","","Norfolk","MA","02056",2075,13,0,0,"Nancy Labrie","781-338-3536","nancy.h.labrie@mass.gov","","","FY19",10086983,"FY18",31517]
[173,"0145","01450000","Kingston","Title I District","250 Pembroke Street","","Kingston","MA","02364",1075,23,19,19,"Nancy Labrie","781-338-3536","nancy.h.labrie@mass.gov","","","FY19",5837411,"FY17",31467]
[174,"0463","04630000","KIPP Academy Boston Charter School (District)","Title I District","37 Babson Street","KIPP Academy Boston","Mattapan","MA","02126",595,167,0,0,"Beth O'Connell","781-338-3132","elizabeth.a.o'connell@mass.gov","","","FY19",1262715,"FY16",11359]
[175,"0429","04290000","KIPP Academy Lynn Charter (District)","Title I District","90 High Rock Street","","Lynn","MA","01902",1452,274,10,10,"Beth O'Connell","781-338-3132","elizabeth.a.o'connell@mass.gov","","","FY19",2466822,"FY19",13262]
[176,"0149","01490000","Lawrence","Title I District","237 Essex Street","","Lawrence","MA","01840",13376,4777,606,584,"Russ Fleming","781-338-6259","russellw.fleming@mass.gov","Yes","","FY19",46286315,"FY19",17539]
[177,"0454","04540000","Lawrence Family Development Charter (District)","Title I District","34 West Street","","Lawrence","MA","01841",674,166,0,0,"Ellie Rounds-Bloom","781-338-3128","eleanor.rounds@mass.gov","","","FY19",390429,"FY13",12060]
[178,"0150","01500000","Lee","Title I District","300A Greylock St","","Lee","MA","01238",697,35,14,13,"Sue Mazzarella","781-338-3587","susan.mazzarella@mass.gov","","","FY19",2546133,"FY18",29997]
[179,"0151","01510000","Leicester","Title I District","3 Washburn Square","3rd Floor","Leicester","MA","01524",1464,41,10,10,"Colleen Holforty","781-338-3522","colleen.e.holforty@mass.gov","","","FY19",4945954,"FY16",19029]
[180,"0152","01520000","Lenox","Title I District","6 Walker Street","","Lenox","MA","01240",730,18,0,0,"Ellie Rounds-Bloom","781-338-3128","eleanor.rounds@mass.gov","","","FY19",1717966,"FY15",26340]
[181,"0153","01530000","Leominster","Title I District","24 Church Street","","Leominster","MA","01453",6001,701,617,613,"Colleen Holforty","781-338-3522","colleen.e.holforty@mass.gov","","","FY19",23981808,"FY19",17315]
[182,"0154","01540000","Leverett","Non-Title I District","18 Pleasant Street","","Erving","MA","01344",118,3,0,0,"Nancy Labrie","781-338-3536","nancy.h.labrie@mass.gov","","","FY19",463715,"FY19",27277.352941176472]
[183,"0155","01550000","Lexington","Title I District","146 Maple Street","","Lexington","MA","02420",7321,628,0,0,"Russ Fleming","781-338-6259","russellw.fleming@mass.gov","","","FY19",37162038,"FY19",35871]
[184,"3514","35140000","Libertas Academy Charter School (District)","Title I District","146 Chestnut Street","","Springfield","MA","01103",165,76,0,0,"Ellie Rounds-Bloom","781-338-3128","eleanor.rounds@mass.gov","","","FY19",562783,"FY19",12234]
[185,"0157","01570000","Lincoln","Title I District","1 Ballfield Road","","Lincoln","MA","01773",1135,57,0,0,"Julia Foodman","781-338-3577","julia.b.foodman@mass.gov","","","FY19",2755288,"FY19",10848]
[186,"0695","06950000","Lincoln-Sudbury","Title I District","390 Lincoln Rd","","Sudbury","MA","01776",1569,10,2,2,"Russ Fleming","781-338-6259","russellw.fleming@mass.gov","","","FY19",8530984,"FY18",28324]
[187,"0158","01580000","Littleton","Title I District","PO Box 1486","","Littleton","MA","01460",1615,30,2,2,"Beth O'Connell","781-338-3132","elizabeth.a.o'connell@mass.gov","","","FY18",7795746,"FY19",21376]
[188,"0159","01590000","Longmeadow","Title I District","535 Bliss Road","","Longmeadow","MA","01106",2847,26,0,0,"Sue Mazzarella","781-338-3587","susan.mazzarella@mass.gov","","","FY19",9245003,"FY19",17184]
[189,"0160","01600000","Lowell","Title I District","155 Merrimack Street","","Lowell","MA","01852",14141,3518,1057,1009,"Nancy Labrie","781-338-3536","nancy.h.labrie@mass.gov","Yes","","FY19",49210388,"FY18",20157]
[190,"0456","04560000","Lowell Community Charter Public (District)","Title I District","206 Jackson Street","","Lowell","MA","01852",766,391,19,18,"Nancy Labrie","781-338-3536","nancy.h.labrie@mass.gov","","","FY19",1495350,"FY19",10681]
[191,"0458","04580000","Lowell Middlesex Academy Charter (District)","Title I District","67 Middle St","","Lowell","MA","01852",92,8,0,0,"Russ Fleming","781-338-6259","russellw.fleming@mass.gov","","","FY19",132264,"FY19",5751]
[192,"0161","01610000","Ludlow","Title I District","63 Chestnut Street","","Ludlow","MA","01056",2504,66,12,12,"Alex Chiu","781-338-3586","alexandria.w.chiu@mass.gov","","","FY19",10624353,"FY19",25787]
[193,"0162","01620000","Lunenburg","Title I District","1025 Mass Avenue","","Lunenburg","MA","01462",1625,24,6,6,"Colleen Holforty","781-338-3522","colleen.e.holforty@mass.gov","","","FY19",4894283,"FY18",18216]
[194,"0163","01630000","Lynn","Title I District","100 Bennett St","","Lynn","MA","01905",15761,4063,1120,1114,"Colleen Holforty","781-338-3522","colleen.e.holforty@mass.gov","Yes","","FY19",46894050,"FY19",17844]
[195,"0164","01640000","Lynnfield","Title I District","525 Salem Street","","Lynnfield","MA","01940",2183,47,0,0,"Russ Fleming","781-338-6259","russellw.fleming@mass.gov","","","FY19",7368573,"FY19",18702]
[196,"0468","04680000","Ma Academy for Math and Science","Non-Title I District","85 Prescott Street","","Worcester","MA","01605",98,0,0,0,"Alex Lilley","781-338-6212","alex.j.lilley@mass.gov","","","N/A","N/A","N/A","N/A"]
[197,"0165","01650000","Malden","Title I District","77 Salem Street","","Malden","MA","02148",6306,1351,180,173,"Julia Foodman","781-338-3577","julia.b.foodman@mass.gov","","","FY19",29769112,"FY19",26747]
[198,"0698","06980000","Manchester Essex Regional","Title I District","PO BOX 1407","","Manchester","MA","01944",1385,8,0,0,"Julia Foodman","781-338-3577","julia.b.foodman@mass.gov","","","FY19",5360826,"FY19",42211]
[199,"0167","01670000","Mansfield","Title I District","2 Park Row","","Mansfield","MA","02048",3696,74,18,18,"Beth O'Connell","781-338-3132","elizabeth.a.o'connell@mass.gov","","","FY19",15744975,"FY18",26480]
[200,"3517","35170000","Map Academy Charter School (District)","Title I District","11 Resnik Road","","Plymouth","MA","02360",128,0,5,5,"Beth O'Connell","781-338-3132","elizabeth.a.o'connell@mass.gov","","","FY19",193970,"FY19",3959]
[201,"0168","01680000","Marblehead","Title I District","9 Widger Road","","Marblehead","MA","01945",3033,113,0,0,"Sue Mazzarella","781-338-3587","susan.mazzarella@mass.gov","","","FY19",12252649,"FY19",20524]
[202,"0464","04640000","Marblehead Community Charter Public (District)","Title I District","17 Lime Street","","Marblehead","MA","01945",228,3,0,0,"Beth O'Connell","781-338-3132","elizabeth.a.o'connell@mass.gov","","","FY19",982810,"FY19",17242]
[203,"0169","01690000","Marion","Title I District","135 Marion Rd","","Mattapoisett","MA","02739",434,1,2,2,"Colleen Holforty","781-338-3522","colleen.e.holforty@mass.gov","","","FY19",1954282,"FY19",20790]
[204,"0170","01700000","Marlborough","Title I District","17 Washington Street","","Marlborough","MA","01752",4571,1088,128,128,"Ellie Rounds-Bloom","781-338-3128","eleanor.rounds@mass.gov","","","FY19",25745149,"FY19",32303]
[205,"0171","01710000","Marshfield","Title I District","76 South River Street","","Marshfield","MA","02050",3969,41,63,63,"Colleen Holforty","781-338-3522","colleen.e.holforty@mass.gov","","","FY19",14120239,"FY19",20230]
[206,"0700","07000000","Martha's Vineyard","Title I District","4 Pine Street","","Vineyard Haven","MA","02568",632,52,0,0,"Sue Mazzarella","781-338-3587","susan.mazzarella@mass.gov","","","FY19",3193038,"FY19",24374]
[207,"0466","04660000","Martha's Vineyard Charter (District)","Title I District","PO Box 1150","","West Tisbury","MA","02575",178,7,0,0,"Sue Mazzarella","781-338-3587","susan.mazzarella@mass.gov","","","FY19",730000,"FY14",28218]
[208,"0492","04920000","Martin Luther King Jr. Charter School of Excellence (District)","Title I District","285 Dorset Street","","Springfield","MA","01108",367,99,21,21,"Colleen Holforty","781-338-3522","colleen.e.holforty@mass.gov","","","FY19",632089,"FY19",9030]
[209,"0705","07050000","Masconomet","Title I District","20 Endicott Rd","","Boxford","MA","01921",1814,9,0,0,"Sue Mazzarella","781-338-3587","susan.mazzarella@mass.gov","","","FY19",7058896,"FY19",20946]
[210,"0172","01720000","Mashpee","Title I District","150-A Old Barnstable Road","","Mashpee","MA","02649",1521,46,0,0,"Nancy Labrie","781-338-3536","nancy.h.labrie@mass.gov","","","FY19",5772700,"FY19",21460]
[211,"0469","04690000","MATCH Charter Public School (District)","Title I District","1001 Commonwealth Avenue","","Boston","MA","02215",1162,299,0,0,"Ellie Rounds-Bloom","781-338-3128","eleanor.rounds@mass.gov","","","FY19",5251615,"FY19",18959]
[212,"0173","01730000","Mattapoisett","Title I District","135 Marion Rd","","Mattapoisett","MA","02739",425,3,2,1,"Colleen Holforty","781-338-3522","colleen.e.holforty@mass.gov","","","N/A","N/A","N/A","N/A"]
[213,"0174","01740000","Maynard","Title I District","3-R Tiger Drive","","Maynard","MA","01754",1312,56,6,4,"Julia Foodman","781-338-3577","julia.b.foodman@mass.gov","","","FY19",7255415,"FY19",31006]
[214,"0175","01750000","Medfield","Non-Title I District","459 Main St","3rd Fl","Medfield","MA","02052",2572,24,0,0,"Beth O'Connell","781-338-3132","elizabeth.a.o'connell@mass.gov","","","FY19",7339978,"FY19",22585]
[215,"0176","01760000","Medford","Title I District","489 Winthrop Street","","Medford","MA","02155",4128,443,79,74,"Sue Mazzarella","781-338-3587","susan.mazzarella@mass.gov","","","FY19",16043743,"FY19",19980]
[216,"0177","01770000","Medway","Title I District","45 Holliston Street","","Medway","MA","02053",2214,29,2,2,"Alex Lilley","781-338-6212","alex.j.lilley@mass.gov","","","FY19",6965639,"FY17",19989]
[217,"0178","01780000","Melrose","Title I District","360 Lynn Fells Pkwy","","Melrose","MA","02176",3689,189,0,0,"Ellie Rounds-Bloom","781-338-3128","eleanor.rounds@mass.gov","","","FY19",10666446,"FY19",18550]
[218,"0710","07100000","Mendon-Upton","Title I District","150 North Ave","","Mendon","MA","01756",2274,32,0,0,"Alex Lilley","781-338-6212","alex.j.lilley@mass.gov","","","FY19",8655900,"FY19",24521]
[219,"0181","01810000","Methuen","Title I District","10 Ditson Place","","Methuen","MA","01844",6979,679,0,0,"Colleen Holforty","781-338-3522","colleen.e.holforty@mass.gov","","","FY19",27413725,"FY18",21056]
[220,"0182","01820000","Middleborough","Title I District","30 Forest Street","","Middleborough","MA","02346",2933,28,38,36,"Nancy Labrie","781-338-3536","nancy.h.labrie@mass.gov","","","FY19",9709172,"FY18",17440]
[221,"0184","01840000","Middleton","Title I District","28 Middleton Road","","Boxford","MA","01921",628,6,0,0,"Russ Fleming","781-338-6259","russellw.fleming@mass.gov","","","FY19",3236151,"FY19",27425]
[222,"0185","01850000","Milford","Title I District","31 West Fountain Street","","Milford","MA","01757",4229,746,118,117,"Julia Foodman","781-338-3577","julia.b.foodman@mass.gov","","","FY19",15226462,"FY18",23541]
[223,"0186","01860000","Millbury","Title I District","12 Martin Street","","Millbury","MA","01527",1644,64,0,0,"Beth O'Connell","781-338-3132","elizabeth.a.o'connell@mass.gov","","","FY19",6475549,"FY19",23377]
[224,"0187","01870000","Millis","Title I District","245 Plain Street","Central Office","Millis","MA","02054",1185,18,5,4,"Sue Mazzarella","781-338-3587","susan.mazzarella@mass.gov","","","FY19",3790617,"FY19",22973]
[225,"0189","01890000","Milton","Title I District","25 Gile Road","","Milton","MA","02186",4204,76,0,0,"Alex Lilley","781-338-6212","alex.j.lilley@mass.gov","","","FY19",15156399,"FY19",24212]
[226,"0830","08300000","Minuteman Regional Vocational Technical","Title I District","758 Marrett Rd","","Lexington","MA","02421",513,11,0,0,"Julia Foodman","781-338-3577","julia.b.foodman@mass.gov","","","FY19",1771643,"FY19",7351]
[227,"0717","07170000","Mohawk Trail","Title I District","24 Ashfield Rd","","Shelburne Falls","MA","01370",821,3,0,0,"Nancy Labrie","781-338-3536","nancy.h.labrie@mass.gov","","","FY19",5007927,"FY18",25500]
[228,"0712","07120000","Monomoy Regional School District","Title I District","425 Crowell Rd","","Chatham","MA","02633",1831,79,0,0,"Ellie Rounds-Bloom","781-338-3128","eleanor.rounds@mass.gov","","","FY19",5736766,"FY19",19251]
[229,"0191","01910000","Monson","Title I District","P O Box 159","","Monson","MA","01057",862,9,6,6,"Ellie Rounds-Bloom","781-338-3128","eleanor.rounds@mass.gov","","","FY19",3958047,"FY19",27486]
[230,"0832","08320000","Montachusett Regional Vocational Technical","Title I District","1050 Westminster Street","","Fitchburg","MA","01420",1403,15,7,7,"Beth O'Connell","781-338-3132","elizabeth.a.o'connell@mass.gov","","","FY19",979424,"FY19",4664]
[231,"0715","07150000","Mount Greylock","Title I District","1781 Cold Spring Rd","","Williamstown","MA","01267",1159,2,0,0,"Russ Fleming","781-338-6259","russellw.fleming@mass.gov","","","FY19",3177508,"FY18",22918]
[232,"0470","04700000","Mystic Valley Regional Charter (District)","Non-Title I District","4 Laurel Street","","Malden","MA","02148",1575,41,0,0,"Colleen Holforty","781-338-3522","colleen.e.holforty@mass.gov","","","FY19",1573054,"FY19",8067]
[233,"0196","01960000","Nahant","Title I District","290 Castle Road","","Nahant","MA","01908",120,0,0,0,"Colleen Holforty","781-338-3522","colleen.e.holforty@mass.gov","","","FY19",704790,"FY18",72989]
[234,"0197","01970000","Nantucket","Title I District","10 Surfside Road","","Nantucket","MA","02554",1612,256,0,0,"Nancy Labrie","781-338-3536","nancy.h.labrie@mass.gov","","","FY19",5652133,"FY16",26096]
[235,"0720","07200000","Narragansett","Title I District","462 Baldwinville Rd","","Baldwinville","MA","01436",1374,3,32,30,"Russ Fleming","781-338-6259","russellw.fleming@mass.gov","","","FY19",4068203,"FY15",21007]
[236,"0725","07250000","Nashoba","Title I District","50 Mechanic Street","","Bolton","MA","01740",3181,73,1,1,"Julia Foodman","781-338-3577","julia.b.foodman@mass.gov","","","FY19",10589288,"FY16",20663]
[237,"0852","08520000","Nashoba Valley Regional Vocational Technical","Title I District","100 Littleton Road","","Westford","MA","01886",684,5,0,0,"Alex Lilley","781-338-6212","alex.j.lilley@mass.gov","","Yes","FY18",656560,"FY19",2614]
[238,"0198","01980000","Natick","Title I District","13 East Central Street","","Natick","MA","01760",5439,177,41,40,"Russ Fleming","781-338-6259","russellw.fleming@mass.gov","","","FY19",18211892,"FY19",22966]
[239,"0660","06600000","Nauset","Title I District","78 Eldredge Pkwy","","Orleans","MA","02653",1524,30,4,4,"Julia Foodman","781-338-3577","julia.b.foodman@mass.gov","","","FY19",5936153,"FY18",25853]
[240,"0199","01990000","Needham","Title I District","1330 Highland Avenue","","Needham","MA","02492",5709,152,0,0,"Julia Foodman","781-338-3577","julia.b.foodman@mass.gov","","","FY19",22172618,"FY19",22284]
[241,"0444","04440000","Neighborhood House Charter (District)","Title I District","21 Queen Street","","Dorchester","MA","02122",600,66,12,12,"Colleen Holforty","781-338-3522","colleen.e.holforty@mass.gov","","","FY19",1012369,"FY15",18584]
[242,"0201","02010000","New Bedford","Title I District","455 County Street","C/O Paul Rodrigues Administration Bldg.","New Bedford","MA","02740",12491,3605,1340,1315,"Beth O'Connell","781-338-3132","elizabeth.a.o'connell@mass.gov","Yes","","FY19",48262394,"FY19",17822]
[243,"3513","35130000","New Heights Charter School of Brockton (District)","Title I District","1690 Main Street","","Brockton","MA","02301",523,91,5,5,"Alex Lilley","781-338-6212","alex.j.lilley@mass.gov","","","FY19",600953,"FY17",13758]
[244,"0728","07280000","New Salem-Wendell","Title I District","18 Pleasant Street","","Erving","MA","01344",132,0,0,0,"Nancy Labrie","781-338-3536","nancy.h.labrie@mass.gov","","","FY19",519561,"FY19",19983]
[245,"0204","02040000","Newburyport","Title I District","70 Low Street","","Newburyport","MA","01950",2192,41,12,12,"Sue Mazzarella","781-338-3587","susan.mazzarella@mass.gov","","","FY19",9166017,"FY16",25309]
[246,"0207","02070000","Newton","Title I District","100 Walnut Street","","Newtonville","MA","02460",12742,780,18,18,"Alex Lilley","781-338-6212","alex.j.lilley@mass.gov","","","FY19",65388181,"FY19",26964]
[247,"0208","02080000","Norfolk","Title I District","70 Boardman Street","","Norfolk","MA","02056",898,21,0,0,"Ellie Rounds-Bloom","781-338-3128","eleanor.rounds@mass.gov","","","FY19",3464623,"FY19",19685]
[248,"0915","09150000","Norfolk County Agricultural","Title I District","400 Main Street","","Walpole","MA","02081",550,1,0,0,"Russ Fleming","781-338-6259","russellw.fleming@mass.gov","","","FY19",582563,"FY19",5201]
[249,"0209","02090000","North Adams","Title I District","10 Main Street","Second Floor","North Adams","MA","01247",1275,14,72,70,"Colleen Holforty","781-338-3522","colleen.e.holforty@mass.gov","Yes","","FY19",5115360,"FY19",15045]
[250,"0211","02110000","North Andover","Title I District","566 Main Street","","North Andover","MA","01845",4682,96,21,21,"Russ Fleming","781-338-6259","russellw.fleming@mass.gov","","Yes","FY19",17284543,"FY19",23484]
[251,"0212","02120000","North Attleborough","Title I District","6 Morse Street","","North Attleborough","MA","02760",4057,113,89,89,"Julia Foodman","781-338-3577","julia.b.foodman@mass.gov","","","FY19",12044191,"FY19",17923]
[252,"0215","02150000","North Brookfield","Title I District","10 New School Drive","","North Brookfield","MA","01535",550,0,0,0,"Alex Lilley","781-338-6212","alex.j.lilley@mass.gov","","","FY19",1500186,"FY17",22483]
[253,"0735","07350000","North Middlesex","Title I District","66 Brookline Street","","Towsend","MA","01469",3041,40,0,0,"Alex Lilley","781-338-6212","alex.j.lilley@mass.gov","","","FY19",13975460,"FY17",19934]
[254,"0217","02170000","North Reading","Title I District","189 Park Street","","North Reading","MA","01864",2386,13,2,2,"Ellie Rounds-Bloom","781-338-3128","eleanor.rounds@mass.gov","","","FY19",9775018,"FY19",20710]
[255,"0210","02100000","Northampton","Title I District","212 Main Street","","Northampton","MA","01060",2562,92,27,26,"Nancy Labrie","781-338-3536","nancy.h.labrie@mass.gov","","","FY19",9373766,"FY19",16445]
[256,"0406","04060000","Northampton-Smith Vocational Agricultural","Title I District","80 Locust Street","","Northampton","MA","01060",484,7,0,0,"Julia Foodman","781-338-3577","julia.b.foodman@mass.gov","","","FY19",743797,"FY15",3861]
[257,"0730","07300000","Northboro-Southboro","Title I District","53 Parkerville Road","","Southborough","MA","01772",1452,25,0,0,"Beth O'Connell","781-338-3132","elizabeth.a.o'connell@mass.gov","","","FY19",3443305,"FY17",18564]
[258,"0213","02130000","Northborough","Title I District","53 Parkerville Road","","Southborough","MA","01772",1608,81,0,0,"Beth O'Connell","781-338-3132","elizabeth.a.o'connell@mass.gov","","","FY19",8782513,"FY18",27181]
[259,"0214","02140000","Northbridge","Title I District","87 Linwood Avenue","","Whitinsville","MA","01588",2011,48,9,9,"Sue Mazzarella","781-338-3587","susan.mazzarella@mass.gov","","","FY18",8135327,"FY19",24414]
[260,"0853","08530000","Northeast Metropolitan Regional Vocational Technical","Title I District","100 Hemlock Rd","","Wakefield","MA","01880",1232,40,0,0,"Ellie Rounds-Bloom","781-338-3128","eleanor.rounds@mass.gov","","","FY19",1602605,"FY19",5584]
[261,"0851","08510000","Northern Berkshire Regional Vocational Technical","Title I District","70 Hodges Cross Rd","","North Adams","MA","01247",489,0,0,0,"Alex Chiu","781-338-3586","alexandria.w.chiu@mass.gov","","","FY19",564162,"FY19",6560]
[262,"0218","02180000","Norton","Title I District","64 West Main Street","","Norton","MA","02766",2386,29,9,9,"Colleen Holforty","781-338-3522","colleen.e.holforty@mass.gov","","","FY19",10446714,"FY19",22039]
[263,"0219","02190000","Norwell","Title I District","322 Main Street","","Norwell","MA","02061",2184,5,10,8,"Nancy Labrie","781-338-3536","nancy.h.labrie@mass.gov","","","FY19",6480700,"FY19",18569]
[264,"0220","02200000","Norwood","Title I District","275 Prospect Street","PO BOX 67","Norwood","MA","02062",3383,378,21,20,"Colleen Holforty","781-338-3522","colleen.e.holforty@mass.gov","","","FY19",13266159,"FY17",19023]
[265,"0221","02210000","Oak Bluffs","Title I District","4 Pine Street","","Vineyard Haven","MA","02568",427,85,0,0,"Sue Mazzarella","781-338-3587","susan.mazzarella@mass.gov","","","FY19",2045912,"FY19",22988]
[266,"0855","08550000","Old Colony Regional Vocational Technical","Title I District","476 North Avenue","","Rochester","MA","02770",543,1,0,0,"Colleen Holforty","781-338-3522","colleen.e.holforty@mass.gov","","","FY19",376253,"FY18",2982]
[267,"0740","07400000","Old Rochester","Title I District","135 Marion Rd","","Mattapoisett","MA","02739",1204,0,4,4,"Colleen Holforty","781-338-3522","colleen.e.holforty@mass.gov","","","FY19",2494884,"FY19",17447]
[268,"3515","35150000","Old Sturbridge Academy Charter Public School (District)","Title I District","2 Old Sturbridge Village Road","","Sturbridge","MA","01566",200,13,0,0,"Colleen Holforty","781-338-3522","colleen.e.holforty@mass.gov","","","FY19",315737,"FY18",17620]
[269,"0223","02230000","Orange","Title I District","507 S. Main Street","P.O. Box 680","Orange","MA","01364",532,9,68,65,"Julia Foodman","781-338-3577","julia.b.foodman@mass.gov","","","FY19",2546760,"FY19",16017]
[270,"0224","02240000","Orleans","Title I District","78 Eldredge Pkwy","","Orleans","MA","02653",212,15,1,1,"Julia Foodman","781-338-3577","julia.b.foodman@mass.gov","","","FY19",1120151,"FY15",30468]
[271,"0226","02260000","Oxford","Title I District","4 Maple Road","","Oxford","MA","01540",1602,8,15,15,"Alex Lilley","781-338-6212","alex.j.lilley@mass.gov","","","FY19",6055557,"FY19",22345]
[272,"0227","02270000","Palmer","Title I District","4107 Main Street","","Palmer","MA","01069",1313,34,30,30,"Ellie Rounds-Bloom","781-338-3128","eleanor.rounds@mass.gov","","","FY19",5650767,"FY19",21324]
[273,"0860","08600000","Pathfinder Regional Vocational Technical","Title I District","240 Sykes Street","","Palmer","MA","01069",635,0,0,0,"Alex Chiu","781-338-3586","alexandria.w.chiu@mass.gov","","","FY19",1002094,"FY17",5979]
[274,"3501","35010000","Paulo Freire Social Justice Charter School (District)","Title I District","161 Lower Westfield ROad","","Holyoke","MA","01040",288,29,0,0,"Julia Foodman","781-338-3577","julia.b.foodman@mass.gov","Yes","","FY19",236561,"FY18",5297]
[275,"0229","02290000","Peabody","Title I District","27 Lowell Street","","Peabody","MA","01960",5778,533,114,112,"Sue Mazzarella","781-338-3587","susan.mazzarella@mass.gov","","","FY19",21625682,"FY19",18142]
[276,"0230","02300000","Pelham","Non-Title I District","170 Chestnut Street","Business Office","Amherst","MA","01002",134,1,0,0,"Ellie Rounds-Bloom","781-338-3128","eleanor.rounds@mass.gov","","","N/A","N/A","N/A","N/A"]
[277,"0231","02310000","Pembroke","Title I District","72 Pilgrim Road","Office of the Superintendent","Pembroke","MA","02359",2747,28,6,6,"Alex Chiu","781-338-3586","alexandria.w.chiu@mass.gov","","","FY19",7633850,"FY19",19085]
[278,"0745","07450000","Pentucket","Title I District","22 Main Street","","West Newbury","MA","01985",2366,7,4,4,"Colleen Holforty","781-338-3522","colleen.e.holforty@mass.gov","","","FY19",10077608,"FY19",19956]
[279,"0234","02340000","Petersham","Non-Title I District","P O Box 148","","Petersham","MA","01366",121,0,0,0,"Julia Foodman","781-338-3577","julia.b.foodman@mass.gov","","","FY19",363490,"FY19",15145]
[280,"3518","35180000","Phoenix Academy Public Charter High School Lawrence (District)","Title I District","15 Union Street","","Lawrence","MA","01840",136,38,0,0,"Ellie Rounds-Bloom","781-338-3128","eleanor.rounds@mass.gov","","","FY19",149111,"FY19",4519]
[281,"3508","35080000","Phoenix Academy Public Charter High School Springfield (District)","Title I District","65 Lincoln Street","","Springfield","MA","01105",193,41,0,0,"Ellie Rounds-Bloom","781-338-3128","eleanor.rounds@mass.gov","","","FY19",113741,"FY19",1777]
[282,"0493","04930000","Phoenix Charter Academy (District)","Title I District","175 Hawthorne Street","","Chelsea","MA","02150",198,123,64,64,"Ellie Rounds-Bloom","781-338-3128","eleanor.rounds@mass.gov","","","FY19",60978,"FY19",2772]
[283,"0494","04940000","Pioneer Charter School of Science (District)","Title I District","51-59 Summer Street","","Everett","MA","02149",785,213,0,0,"Colleen Holforty","781-338-3522","colleen.e.holforty@mass.gov","","","N/A","N/A","N/A","N/A"]
[284,"3506","35060000","Pioneer Charter School of Science II (PCSS-II) (District)","Title I District","97 Main Street","","Saugus","MA","01906",360,87,0,0,"Colleen Holforty","781-338-3522","colleen.e.holforty@mass.gov","","","FY19",279962,"FY15",6698]
[285,"0750","07500000","Pioneer Valley","Title I District","97 F Sumner Turner Road","","Northfield","MA","01360",719,1,0,0,"Nancy Labrie","781-338-3536","nancy.h.labrie@mass.gov","","","FY19",2815611,"FY19",19285]
[286,"0497","04970000","Pioneer Valley Chinese Immersion Charter (District)","Title I District","317 Russell Street","","Hadley","MA","01035",513,15,0,0,"Beth O'Connell","781-338-3132","elizabeth.a.o'connell@mass.gov","","","FY19",443103,"FY19",15279]
[287,"0479","04790000","Pioneer Valley Performing Arts Charter Public (District)","Title I District","15 Mulligan Drive","","South Hadley","MA","01075",389,2,0,0,"Beth O'Connell","781-338-3132","elizabeth.a.o'connell@mass.gov","","","FY19",544443,"FY19",6640]
[288,"0236","02360000","Pittsfield","Title I District","269 First Street","","Pittsfield","MA","01201",5333,238,0,0,"Beth O'Connell","781-338-3132","elizabeth.a.o'connell@mass.gov","","","FY19",16287608,"FY19",13562]
[289,"0238","02380000","Plainville","Title I District","68 Messenger Street","","Plainville","MA","02762",654,29,1,1,"Sue Mazzarella","781-338-3587","susan.mazzarella@mass.gov","","","FY19",2599016,"FY18",22459]
[290,"0239","02390000","Plymouth","Title I District","11 Lincoln Street","","Plymouth","MA","02360",7325,137,88,86,"Sue Mazzarella","781-338-3587","susan.mazzarella@mass.gov","","","FY19",26728398,"FY19",18072]
[291,"0240","02400000","Plympton","Title I District","250 Pembroke Street","","Kingston","MA","02364",206,0,0,0,"Nancy Labrie","781-338-3536","nancy.h.labrie@mass.gov","","","FY19",1123234,"FY18",31162]
[292,"0487","04870000","Prospect Hill Academy Charter (District)","Title I District","50 Essex Street","","Cambridge","MA","02139",1114,127,17,17,"Alex Lilley","781-338-6212","alex.j.lilley@mass.gov","","","FY19",2180828,"FY19",12981]
[293,"0242","02420000","Provincetown","Title I District","12 Winslow Street","","Provincetown","MA","02657",105,22,24,22,"Colleen Holforty","781-338-3522","colleen.e.holforty@mass.gov","","","N/A","N/A","N/A","N/A"]
[294,"0753","07530000","Quabbin","Title I District","872 South Street","","Barre","MA","01005",2095,6,0,0,"Russ Fleming","781-338-6259","russellw.fleming@mass.gov","","","FY19",8355936,"FY19",18652]
[295,"0778","07780000","Quaboag Regional","Title I District","284 Old West Brookfield Road","PO Box 1538","Warren","MA","01083",1252,12,5,5,"Sue Mazzarella","781-338-3587","susan.mazzarella@mass.gov","","","FY19",3449750,"FY14",15558]
[296,"0243","02430000","Quincy","Title I District","34 Coddington Street","","Quincy","MA","02169",9269,1546,0,0,"Nancy Labrie","781-338-3536","nancy.h.labrie@mass.gov","","","FY19",32175524,"FY19",18168]
[297,"0755","07550000","Ralph C Mahar","Title I District","507 South Main Street","","Orange","MA","01364",787,7,3,3,"Julia Foodman","781-338-3577","julia.b.foodman@mass.gov","","","N/A","N/A","N/A","N/A"]
[298,"0244","02440000","Randolph","Title I District","40 Highland Avenue","","Randolph","MA","02368",2767,442,0,0,"Russ Fleming","781-338-6259","russellw.fleming@mass.gov","","","FY19",16065859,"FY19",24528]
[299,"0246","02460000","Reading","Title I District","82 Oakland Road","","Reading","MA","01867",4161,42,0,0,"Julia Foodman","781-338-3577","julia.b.foodman@mass.gov","","","FY19",14563999,"FY19",19815]
[300,"0248","02480000","Revere","Title I District","101 School Street","","Revere","MA","02151",7453,1677,175,174,"Beth O'Connell","781-338-3132","elizabeth.a.o'connell@mass.gov","","","FY19",29209532,"FY19",23575]
[301,"0249","02490000","Richmond","Non-Title I District","1831 State Road","","Richmond","MA","01254",159,0,0,0,"Julia Foodman","781-338-3577","julia.b.foodman@mass.gov","","","FY19",379165,"FY15",86362]
[302,"0483","04830000","Rising Tide Charter Public (District)","Title I District","59 Armstrong Road","","Plymouth","MA","02360",652,3,0,0,"Colleen Holforty","781-338-3522","colleen.e.holforty@mass.gov","","","FY19",1011782,"FY19",10430.742268041236]
[303,"0482","04820000","River Valley Charter (District)","Title I District","2 Perry Way","","Newburyport","MA","01950",288,1,0,0,"Ellie Rounds-Bloom","781-338-3128","eleanor.rounds@mass.gov","","","FY19",427377,"FY19",8904]
[304,"0250","02500000","Rochester","Title I District","135 Marion Rd","","Mattapoisett","MA","02739",492,2,0,0,"Colleen Holforty","781-338-3522","colleen.e.holforty@mass.gov","","","N/A","N/A","N/A","N/A"]
[305,"0251","02510000","Rockland","Title I District","34 MacKinlay Way","","Rockland","MA","02370",2216,152,30,30,"Ellie Rounds-Bloom","781-338-3128","eleanor.rounds@mass.gov","","","FY19",7391885,"FY17",25341]
[306,"0252","02520000","Rockport","Title I District","24 Jerdens Lane","","Rockport","MA","01966",890,13,2,2,"Colleen Holforty","781-338-3522","colleen.e.holforty@mass.gov","","","FY19",4745182,"FY19",28078]
[307,"0253","02530000","Rowe","Non-Title I District","86 Pond Road","","Rowe","MA","01367",52,0,0,0,"Sue Mazzarella","781-338-3587","susan.mazzarella@mass.gov","","","FY19",169704,"FY15",22277]
[308,"0484","04840000","Roxbury Preparatory Charter (District)","Title I District","120 Fisher Avenue","","Roxbury","MA","02120",1494,305,0,0,"Nancy Labrie","781-338-3536","nancy.h.labrie@mass.gov","","","FY19",2059656,"FY19",8839.7253218884125]
[309,"0441","04410000","Sabis International Charter (District)","Title I District","160 Joan Street","","Springfield","MA","01129",1574,96,0,0,"Alex Lilley","781-338-6212","alex.j.lilley@mass.gov","","","FY19",2152101,"FY19",10601]
[310,"0258","02580000","Salem","Title I District","29 Highland Avenue","","Salem","MA","01970",3730,483,233,230,"Colleen Holforty","781-338-3522","colleen.e.holforty@mass.gov","","","FY19",22584772,"FY18",25912]
[311,"0485","04850000","Salem Academy Charter (District)","Title I District","45 Congress Street","c/o Shetland Pk","Salem","MA","01970",482,21,0,0,"Colleen Holforty","781-338-3522","colleen.e.holforty@mass.gov","","","FY19",932802,"FY19",14133]
[312,"0261","02610000","Sandwich","Title I District","33 Water Street","","Sandwich","MA","02563",2477,30,13,13,"Julia Foodman","781-338-3577","julia.b.foodman@mass.gov","","","FY19",9304525,"FY19",20585]
[313,"0262","02620000","Saugus","Title I District","23 Main Street","","Saugus","MA","01906",2510,168,24,24,"Beth O'Connell","781-338-3132","elizabeth.a.o'connell@mass.gov","","","FY19",9846002,"FY19",22076]
[314,"0263","02630000","Savoy","Non-Title I District","26 Chapel Road","","Savoy","MA","01256",52,0,0,0,"Sue Mazzarella","781-338-3587","susan.mazzarella@mass.gov","","","FY19",116402,"FY19",9700]
[315,"0264","02640000","Scituate","Title I District","606 C J Cushing Hwy","","Scituate","MA","02066",2963,13,10,10,"Alex Lilley","781-338-6212","alex.j.lilley@mass.gov","","","FY19",10312694,"FY18",24815]
[316,"0265","02650000","Seekonk","Title I District","25 Water Lane","","Seekonk","MA","02771",2066,66,0,0,"Ellie Rounds-Bloom","781-338-3128","eleanor.rounds@mass.gov","","","FY19",8392859,"FY18",23977]
[317,"0486","04860000","Seven Hills Charter Public (District)","Title I District","51 Gage Street","","Worcester","MA","01605",666,180,9,9,"Julia Foodman","781-338-3577","julia.b.foodman@mass.gov","","","FY19",934374,"FY19",9836]
[318,"0266","02660000","Sharon","Title I District","75 Mountain Street","","Sharon","MA","02067",3595,145,9,9,"Colleen Holforty","781-338-3522","colleen.e.holforty@mass.gov","","","FY19",12905406,"FY17",26966]
[319,"0871","08710000","Shawsheen Valley Regional Vocational Technical","Title I District","100 Cook Street","","Billerica","MA","01821",1275,1,6,6,"Alex Chiu","781-338-3586","alexandria.w.chiu@mass.gov","","","FY19",1653805,"FY19",5152]
[320,"0269","02690000","Sherborn","Title I District","157 Farm Street","","Dover","MA","02030",385,11,0,0,"Beth O'Connell","781-338-3132","elizabeth.a.o'connell@mass.gov","","","FY19",2330496,"FY16",55599]
[321,"0271","02710000","Shrewsbury","Title I District","100 Maple Avenue","","Shrewsbury","MA","01545",6038,169,20,18,"Russ Fleming","781-338-6259","russellw.fleming@mass.gov","","Yes","FY19",21109995,"FY18",24999]
[322,"0272","02720000","Shutesbury","Title I District","18 Pleasant Street","","Erving","MA","01344",110,1,0,0,"Nancy Labrie","781-338-3536","nancy.h.labrie@mass.gov","","","FY19",638947,"FY19",31947]
[323,"0760","07600000","Silver Lake","Title I District","250 Pembroke Street","","Kingston","MA","02364",1625,10,17,17,"Nancy Labrie","781-338-3536","nancy.h.labrie@mass.gov","","","FY19",1826393,"FY18",6529]
[324,"0474","04740000","Sizer School: A North Central Charter Essential (District)","Title I District","500 Rindge Road","","Fitchburg","MA","01420",359,4,15,15,"Nancy Labrie","781-338-3536","nancy.h.labrie@mass.gov","","","FY19",530171,"FY19",5826]
[325,"0273","02730000","Somerset","Title I District","580 Whetstone Hill Road","","Somerset","MA","02726",1731,17,0,0,"Russ Fleming","781-338-6259","russellw.fleming@mass.gov","","","FY19",6492513,"FY19",21714]
[326,"0763","07630000","Somerset Berkley Regional School District","Title I District","580 Whetstone Hill","","Somerset","MA","02726",1053,2,0,0,"Russ Fleming","781-338-6259","russellw.fleming@mass.gov","","","FY19",3050180,"FY17",22345]
[327,"0274","02740000","Somerville","Title I District","8 Bonair Street","","Somerville","MA","02145",4660,931,0,0,"Colleen Holforty","781-338-3522","colleen.e.holforty@mass.gov","","","FY19",24083738,"FY19",23135]
[328,"0278","02780000","South Hadley","Title I District","116 Main Street","","South Hadley","MA","01075",1852,78,30,28,"Nancy Labrie","781-338-3536","nancy.h.labrie@mass.gov","","","FY19",6945914,"FY16",25873]
[329,"0829","08290000","South Middlesex Regional Vocational Technical","Title I District","750 Winter Street","","Framingham","MA","01702",749,102,11,11,"Russ Fleming","781-338-6259","russellw.fleming@mass.gov","","","FY19",2006922,"FY19",6432]
[330,"0488","04880000","South Shore Charter Public (District)","Title I District","100 Longwater Circle","","Norwell","MA","02061",947,141,0,0,"Sue Mazzarella","781-338-3587","susan.mazzarella@mass.gov","","","FY19",2300959,"FY19",14656]
[331,"0873","08730000","South Shore Regional Vocational Technical","Title I District","476 Webster Street","","Hanover","MA","02339",633,3,0,0,"Beth O'Connell","781-338-3132","elizabeth.a.o'connell@mass.gov","","","FY19",949788,"FY13",5472]
[332,"0275","02750000","Southampton","Title I District","19 Stage Rd","","Westhampton","MA","01027",465,10,0,0,"Nancy Labrie","781-338-3536","nancy.h.labrie@mass.gov","","","FY19",1236985,"FY19",13159]
[333,"0276","02760000","Southborough","Title I District","53 Parkerville Road","","Southborough","MA","01772",1199,76,0,0,"Beth O'Connell","781-338-3132","elizabeth.a.o'connell@mass.gov","","","FY19",6728074,"FY16",37237]
[334,"0277","02770000","Southbridge","Title I District","25 Cole Avenue","","Southbridge","MA","01550",1962,444,56,55,"Ellie Rounds-Bloom","781-338-3128","eleanor.rounds@mass.gov","Yes","","FY19",9030230,"FY19",20952]
[335,"0872","08720000","Southeastern Regional Vocational Technical","Title I District","250 Foundry Street","","South Easton","MA","02375",1435,15,8,8,"Julia Foodman","781-338-3577","julia.b.foodman@mass.gov","","","FY19",3647945,"FY19",17371]
[336,"0765","07650000","Southern Berkshire","Title I District","PO BOX 339","","Sheffield","MA","01257",647,11,6,6,"Alex Lilley","781-338-6212","alex.j.lilley@mass.gov","","","FY19",2638847,"FY18",25466]
[337,"0876","08760000","Southern Worcester County Regional Vocational Technical","Title I District","57 Old Muggett Hill Road","","Charlton","MA","01507",1115,6,0,0,"Alex Chiu","781-338-3586","alexandria.w.chiu@mass.gov","","","FY19",1352911,"FY19",7775]
[338,"0766","07660000","Southwick-Tolland-Granville Regional School District","Title I District","86 Powder Mill Road","","Southwick","MA","01077",1470,49,0,0,"Ellie Rounds-Bloom","781-338-3128","eleanor.rounds@mass.gov","","","FY18",3635757,"FY19",14482]
[339,"0767","07670000","Spencer-E Brookfield","Title I District","306 Main Street","","Spencer","MA","01562",1371,61,16,15,"Colleen Holforty","781-338-3522","colleen.e.holforty@mass.gov","","","FY19",6868687,"FY19",20627]
[340,"0281","02810000","Springfield","Title I District","1550 Main Street","","Springfield","MA","01103",23945,4111,1461,1398,"Alex Lilley","781-338-6212","alex.j.lilley@mass.gov","Yes","","FY19",93427614,"FY19",15576]
[341,"3510","35100000","Springfield Preparatory Charter School (District)","Title I District","594 Converse St.","","Longmeadow","MA","01106",270,55,0,0,"Beth O'Connell","781-338-3132","elizabeth.a.o'connell@mass.gov","","","FY19",816356,"FY18",19656]
[342,"0284","02840000","Stoneham","Title I District","149 Franklin Street","","Stoneham","MA","02180",2322,85,8,8,"Julia Foodman","781-338-3577","julia.b.foodman@mass.gov","","","FY19",9903388,"FY17",21607]
[343,"0285","02850000","Stoughton","Title I District","232 Pearl Street","","Stoughton","MA","02072",3448,257,50,50,"Beth O'Connell","781-338-3132","elizabeth.a.o'connell@mass.gov","","","FY19",13145923,"FY19",22902]
[344,"0287","02870000","Sturbridge","Title I District","320 Brookfield Rd","","Fiskdale","MA","01518",804,12,3,3,"Russ Fleming","781-338-6259","russellw.fleming@mass.gov","","","FY19",4240733,"FY19",38205]
[345,"0489","04890000","Sturgis Charter Public (District)","Non-Title I District","427 Main Street","","Hyannis","MA","02601",840,4,0,0,"Alex Lilley","781-338-6212","alex.j.lilley@mass.gov","","","FY19",997017,"FY15",11060]
[346,"0288","02880000","Sudbury","Title I District","40 Fairbank Road","","Sudbury","MA","01776",2647,58,0,0,"Alex Lilley","781-338-6212","alex.j.lilley@mass.gov","","","FY19",12197091,"FY17",25217]
[347,"0289","02890000","Sunderland","Title I District","113 North Main Street, Office C101","","South Deerfield","MA","01373",210,16,0,0,"Alex Lilley","781-338-6212","alex.j.lilley@mass.gov","","","FY19",814723,"FY14",18279]
[348,"0290","02900000","Sutton","Title I District","383 Boston Rd","","Sutton","MA","01590",1371,14,2,2,"Russ Fleming","781-338-6259","russellw.fleming@mass.gov","","","FY19",4434514,"FY19",18554]
[349,"0291","02910000","Swampscott","Title I District","207 Forest Avenue","","Swampscott","MA","01907",2186,119,8,8,"Nancy Labrie","781-338-3536","nancy.h.labrie@mass.gov","","","FY19",9214316,"FY17",24417]
[350,"0292","02920000","Swansea","Title I District","1 Gardners Neck Road","","Swansea","MA","02777",2035,7,16,16,"Russ Fleming","781-338-6259","russellw.fleming@mass.gov","","","FY19",4628131,"FY18",16549]
[351,"0770","07700000","Tantasqua","Title I District","320A Brookfield Rd","","Fiskdale","MA","01518",1792,7,13,13,"Russ Fleming","781-338-6259","russellw.fleming@mass.gov","","","FY19",2481871,"FY19",12598]
[352,"0293","02930000","Taunton","Title I District","215 Harris Street","","Taunton","MA","02780",7843,413,143,138,"Julia Foodman","781-338-3577","julia.b.foodman@mass.gov","","","FY19",28736517,"FY19",18292]
[353,"3902","39020000","TEC Connections Academy Commonwealth Virtual School District","Title I District","141 Mansion Drive","","East Walpole","MA","02032",2301,40,0,0,"Russ Fleming","781-338-6259","russellw.fleming@mass.gov","Yes","","N/A","N/A","N/A","N/A"]
[354,"0295","02950000","Tewksbury","Title I District","139 Pleasant Street","","Tewksbury","MA","01876",3320,57,16,16,"Beth O'Connell","781-338-3132","elizabeth.a.o'connell@mass.gov","","","FY19",15940190,"FY19",26479]
[355,"0296","02960000","Tisbury","Title I District","4 Pine Street","","Vineyard Haven","MA","02568",300,63,0,0,"Sue Mazzarella","781-338-3587","susan.mazzarella@mass.gov","","","FY19",1719873,"FY18",40503]
[356,"0298","02980000","Topsfield","Title I District","28 Middleton Road","","Boxford","MA","01921",606,2,0,0,"Russ Fleming","781-338-6259","russellw.fleming@mass.gov","","","FY19",2458192,"FY18",23128]
[357,"0878","08780000","Tri-County Regional Vocational Technical","Title I District","147 Pond Street","","Franklin","MA","02038",1008,1,11,11,"Alex Lilley","781-338-6212","alex.j.lilley@mass.gov","","","FY19",1259232,"FY19",3887]
[358,"0773","07730000","Triton","Title I District","112 Elm Street","","Byfield","MA","01922",2332,26,229,225,"Russ Fleming","781-338-6259","russellw.fleming@mass.gov","","","FY19",9631469,"FY19",23042]
[359,"0300","03000000","Truro","Title I District","P O Box 2029","","Truro","MA","02666",92,0,0,0,"Ellie Rounds-Bloom","781-338-3128","eleanor.rounds@mass.gov","","","FY18",1702743,"FY19",84189]
[360,"0301","03010000","Tyngsborough","Title I District","50 Norris Rd","","Tyngsborough","MA","01879",1613,41,5,5,"Colleen Holforty","781-338-3522","colleen.e.holforty@mass.gov","","","FY19",6975522,"FY19",25182]
[361,"0480","04800000","UP Academy Charter School of Boston (District)","Title I District","215 Dorchester Street","","Boston","MA","02127",501,150,0,0,"Ellie Rounds-Bloom","781-338-3128","eleanor.rounds@mass.gov","Yes","","FY19",1358998,"FY19",13455]
[362,"3505","35050000","UP Academy Charter School of Dorchester (District)","Title I District","35 Westville Street","","Boston","MA","02124",666,206,0,0,"Ellie Rounds-Bloom","781-338-3128","eleanor.rounds@mass.gov","Yes","","FY19",1769723,"FY19",14872]
[363,"0774","07740000","Up-Island Regional","Title I District","4 Pine Street","","Vineyard Haven","MA","02568",394,23,0,0,"Sue Mazzarella","781-338-3587","susan.mazzarella@mass.gov","","","FY19",2172902,"FY19",23619]
[364,"0879","08790000","Upper Cape Cod Regional Vocational Technical","Title I District","220 Sandwich Rd","","Bourne","MA","02532",699,0,5,5,"Ellie Rounds-Bloom","781-338-3128","eleanor.rounds@mass.gov","","","FY19",1055645,"FY19",6991]
[365,"0304","03040000","Uxbridge","Title I District","9 North Main Street","","Uxbridge","MA","01569",1651,28,0,0,"Nancy Labrie","781-338-3536","nancy.h.labrie@mass.gov","","","FY19",8069762,"FY18",30919]
[366,"0498","04980000","Veritas Preparatory Charter School (District)","Title I District","370 Pine Street","","Springfield","MA","01105",348,27,0,0,"Sue Mazzarella","781-338-3587","susan.mazzarella@mass.gov","","","FY19",390921,"FY14",11811]
[367,"0775","07750000","Wachusett","Title I District","1745 Main Street","c/o Jefferson School","Jefferson","MA","01522",7030,122,9,7,"Beth O'Connell","781-338-3132","elizabeth.a.o'connell@mass.gov","","","FY19",23916307,"FY18",22118]
[368,"0305","03050000","Wakefield","Title I District","60 Farm Street","","Wakefield","MA","01880",3381,78,0,0,"Russ Fleming","781-338-6259","russellw.fleming@mass.gov","","","FY19",12154802,"FY19",21901]
[369,"0306","03060000","Wales","Title I District","320 Brookfield Rd","","Fiskdale","MA","01518",133,0,1,1,"Russ Fleming","781-338-6259","russellw.fleming@mass.gov","","","FY19",490061,"FY17",25410]
[370,"0307","03070000","Walpole","Title I District","135 School Street","","Walpole","MA","02081",3738,118,0,0,"Beth O'Connell","781-338-3132","elizabeth.a.o'connell@mass.gov","","","FY19",13266955,"FY19",25174]
[371,"0308","03080000","Waltham","Title I District","617 Lexington Street","","Waltham","MA","02452",5566,1312,0,0,"Sue Mazzarella","781-338-3587","susan.mazzarella@mass.gov","","","FY18",23646378,"FY19",26535]
[372,"0309","03090000","Ware","Title I District","P O Box 240","","Ware","MA","01082",1124,12,0,0,"Alex Lilley","781-338-6212","alex.j.lilley@mass.gov","","","FY19",4798398,"FY17",22613]
[373,"0310","03100000","Wareham","Title I District","48 Marion Road","","Wareham","MA","02571",2088,29,44,43,"Ellie Rounds-Bloom","781-338-3128","eleanor.rounds@mass.gov","","","FY18",13778213,"FY19",20771]
[374,"0314","03140000","Watertown","Title I District","30 Common Street","","Watertown","MA","02472",2549,337,9,9,"Colleen Holforty","781-338-3522","colleen.e.holforty@mass.gov","","","FY19",16937416,"FY17",31086.34]
[375,"0315","03150000","Wayland","Title I District","41 Cochituate Rd","","Wayland","MA","01778",2739,109,0,0,"Nancy Labrie","781-338-3536","nancy.h.labrie@mass.gov","","Yes","FY19",10125883,"FY19",19816]
[376,"0316","03160000","Webster","Title I District","77 Poland Street","","Webster","MA","01570",1814,168,46,45,"Russ Fleming","781-338-6259","russellw.fleming@mass.gov","","","FY19",8748216,"FY19",21925]
[377,"0317","03170000","Wellesley","Title I District","40 Kingsbury Street","","Wellesley","MA","02481",4913,116,8,8,"Julia Foodman","781-338-3577","julia.b.foodman@mass.gov","","","FY19",25175533,"FY17",31578]
[378,"0318","03180000","Wellfleet","Title I District","78 Eldredge Pkwy","","Orleans","MA","02653",90,1,1,1,"Julia Foodman","781-338-3577","julia.b.foodman@mass.gov","","","FY18",922007,"FY19",48017]
[379,"0322","03220000","West Boylston","Title I District","125 Crescent Street","","West Boylston","MA","01583",876,30,0,0,"Alex Lilley","781-338-6212","alex.j.lilley@mass.gov","","","FY19",3875798,"FY19",26188]
[380,"0323","03230000","West Bridgewater","Title I District","2 Spring Street","","West Bridgewater","MA","02379",1301,20,4,4,"Ellie Rounds-Bloom","781-338-3128","eleanor.rounds@mass.gov","","","FY19",3384237,"FY19",23833]
[381,"0332","03320000","West Springfield","Title I District","26 Central Street","","West Springfield","MA","01089",4021,436,181,176,"Alex Lilley","781-338-6212","alex.j.lilley@mass.gov","","","FY19",14432432,"FY19",18768]
[382,"0321","03210000","Westborough","Title I District","45 West Main Street","","Westborough","MA","01581",3843,406,0,0,"Sue Mazzarella","781-338-3587","susan.mazzarella@mass.gov","","","FY19",15534566,"FY19",26329.772881355933]
[383,"0325","03250000","Westfield","Title I District","94 North Elm Street","Suite 101","Westfield","MA","01085",5202,313,81,78,"Alex Lilley","781-338-6212","alex.j.lilley@mass.gov","","","FY19",17530893,"FY19",17708]
[384,"0326","03260000","Westford","Non-Title I District","23 Depot Street","","Westford","MA","01886",5003,95,11,11,"Nancy Labrie","781-338-3536","nancy.h.labrie@mass.gov","","Yes","FY19",13617126,"FY18",18469]
[385,"0327","03270000","Westhampton","Non-Title I District","19 Stage Rd","","Westhampton","MA","01027",116,1,0,0,"Nancy Labrie","781-338-3536","nancy.h.labrie@mass.gov","","","FY19",438654,"FY19",16871]
[386,"0330","03300000","Weston","Title I District","89 Wellesley Street","","Weston","MA","02493",2072,69,0,0,"Julia Foodman","781-338-3577","julia.b.foodman@mass.gov","","","FY19",10005526,"FY18",29080]
[387,"0331","03310000","Westport","Title I District","17 Main Rd","","Westport","MA","02790",1388,14,0,0,"Beth O'Connell","781-338-3132","elizabeth.a.o'connell@mass.gov","","","FY19",5131388,"FY19",19812]
[388,"0335","03350000","Westwood","Non-Title I District","220 Nahatan Street","","Westwood","MA","02090",3078,27,0,0,"Alex Lilley","781-338-6212","alex.j.lilley@mass.gov","","","FY19",11283479,"FY19",21492]
[389,"0336","03360000","Weymouth","Title I District","111 Middle Street","","Weymouth","MA","02189",5749,252,122,120,"Ellie Rounds-Bloom","781-338-3128","eleanor.rounds@mass.gov","","Yes","FY19",23131449,"FY19",20237]
[390,"0337","03370000","Whately","Non-Title I District","113 North Main Street, Office C101","","South Deerfield","MA","01373",114,3,0,0,"Alex Lilley","781-338-6212","alex.j.lilley@mass.gov","","","FY19",276062.48,"FY19",16238.969411764705]
[391,"0780","07800000","Whitman-Hanson","Title I District","610 Franklin Street","","Whitman","MA","02382",3763,38,14,14,"Alex Lilley","781-338-6212","alex.j.lilley@mass.gov","","","FY19",10132031,"FY19",17379]
[392,"0885","08850000","Whittier Regional Vocational Technical","Title I District","115 Amesbury Line Rd","","Haverhill","MA","01830",1237,14,18,18,"Colleen Holforty","781-338-3522","colleen.e.holforty@mass.gov","","","FY19",1367244,"FY19",4814]
[393,"0340","03400000","Williamsburg","Title I District","19 Stage Rd","","Westhampton","MA","01027",137,5,0,0,"Nancy Labrie","781-338-3536","nancy.h.labrie@mass.gov","","","FY19",484416,"FY17",21894]
[394,"0342","03420000","Wilmington","Title I District","161 Church Street","","Wilmington","MA","01887",3179,36,23,23,"Alex Chiu","781-338-3586","alexandria.w.chiu@mass.gov","","","FY19",14834580,"FY19",24043]
[395,"0343","03430000","Winchendon","Title I District","175 Grove Street","","Winchendon","MA","01475",1200,8,29,28,"Beth O'Connell","781-338-3132","elizabeth.a.o'connell@mass.gov","","","FY13",5220263,"FY19",19069]
[396,"0344","03440000","Winchester","Title I District","40 Samoset Road","","Winchester","MA","01890",4625,125,17,16,"Sue Mazzarella","781-338-3587","susan.mazzarella@mass.gov","","","FY19",15935008,"FY19",19649]
[397,"0346","03460000","Winthrop","Title I District","1 Metcalf Square","","Winthrop","MA","02152",1953,162,15,15,"Alex Lilley","781-338-6212","alex.j.lilley@mass.gov","","","FY19",6425848,"FY19",20335]
[398,"0347","03470000","Woburn","Title I District","55 Locust Street","","Woburn","MA","01801",4412,321,0,0,"Ellie Rounds-Bloom","781-338-3128","eleanor.rounds@mass.gov","","","FY19",19266449,"FY19",25620]
[399,"0348","03480000","Worcester","Title I District","20 Irving Street","","Worcester","MA","01609",24625,7794,3228,3178,"Russ Fleming","781-338-6259","russellw.fleming@mass.gov","","","FY19",83698908,"FY18",16877]
[400,"0349","03490000","Worthington","Title I District","147 Huntington Road","","Worthington","MA","01098",58,0,0,0,"Nancy Labrie","781-338-3536","nancy.h.labrie@mass.gov","","","FY19",488952,"FY16",80341]
[401,"0350","03500000","Wrentham","Title I District","120 Taunton Street","","Wrentham","MA","02093",918,23,0,0,"Russ Fleming","781-338-6259","russellw.fleming@mass.gov","","","FY19",3114813,"FY19",18652]

{"sheet":"dropdowns","index":18,"n_rows":70,"n_cols":7,"rows_kept":70,"cut":false,"hidden":true,"merged":[]}
["Yes or No","Budget Categories","Primary Functions - 240","Primary Functions - 262","ProShare Opt Out","M3 State of Implementation","Excess Costs"]
["Select One","Administrator Salaries","Select One","Select One","Select One","Select One","Select One"]
["Yes","Select One","Assessment","Assessment","Charter School District","Continuing to implement FY20 actions in FY21 ","Estimated or preliminary expenditures"]
["No","Grant Program Manager/Coordinator ","Instruction-School day (public, K-12) ","Instruction-early childhood, school day  ","Virtual School District","Implementing new actions in FY21","Final expenditures"]
[null,"Other ","Instruction - Extended day/year (public, K-12) ","Instruction - early childhood, extended day/year","Career/vocational technical school district","New needs assessment cycle"]
[null,"InstructionalProf Staff Salaries","High quality PD","High quality PD","Not Applicable","Both continuing to implement intervention activities and beginning a new needs assessment"]
[null,"Select One","Data collection/management","Data collection/management"]
[null,"Classroom Teachers  ","Behavioral supports","Behavioral supports"]
[null,"Instructional Coaches ","Instructional technology/digital learning","Instructional technology/digital learning"]
[null,"Certified Specialist Teachers (providing individualized instruction)  ","Inclusion practices","Inclusion practices"]
[null,"Instructional Coordinators and Team Leaders  ","Parent, family and community engagement","Parent, family and community engagement"]
[null,"Medical / Therapeutic Services ","Planning and evaluation","Planning and evaluation"]
[null,"Librarians and Media Center Directors ","Identification and placement practices","Identification and placement practices"]
[null,"Professional Development Directors/Coordinators  ","Program administration","Program administration"]
[null,"Guidance or School Adjustment Counselors, Social Workers  ","Related services","Related services"]
[null,"Psychological Service Providers ","Student transportation","Early Childhood Activities"]
[null,"School Physicians and School Nurses  ","Other","Student transportation"]
[null,"Other  ",null,"Other"]
[null,"Support Staff Salaries"]
[null,"Select One"]
[null,"Non-Clerical Paraprofessionals/Instructional Assistants "]
[null,"Secretary/Bookkeeper/Clerical Support  "]
[null,"Parent Liaisons"]
[null," Other "]
[null,"Stipends"]
[null,"Select One"]
[null,"Teacher/ Instructional Staff Professional Days"]
[null,"Administrators "]
[null,"Other "]
[null,"Support Staff"]
[null,"Travel"]
[null,"Select One"]
[null,"Grant Program Manager/Coordinator (supervisory)"]
[null,"Certified Classroom Teachers (providing group instruction) "]
[null,"Certified Specialist Teachers (providing individualized instruction)"]
[null,"Non-Clerical Paraprofessionals/Instructional Assistants"]
[null,"Other "]
[null,"Contractual Services"]
[null,"Select One"]
[null,"Instructional Services "]
[null,"Consultants/Professional  Development for Teachers & Support Staff "]
[null,"Substitutes (long and/or short term)"]
[null,"Non-Clerical Paraprofessionals/Instructional Assistants"]
[null,"Secretary/Bookkeeper/Clerical Support "]
[null,"Contracted Service Providers -- Private School Services "]
[null,"Contracted Services Providers -- Other Student Services "]
[null,"Other "]
[null,"Supplies and Materials"]
[null,"Select One"]
[null,"Textbooks and Related Software/Media/Materials "]
[null,"Instructional Technology"]
[null,"Other Instructional Materials (non-testing/assessment)"]
[null,"Testing and Assessment Materials"]
[null,"General Classroom Supplies "]
[null,"Office Supplies  "]
[null,"Other "]
[null,"Other costs"]
[null,"Select One"]
[null,"Memberships/Subscriptions"]
[null,"Advertising  "]
[null,"Student Transportation Services "]
[null," Rental/Lease of Equipment"]
[null,"Maintenance of Equipment"]
[null,"Maintenance of Technology "]
[null,"Tuition to Non-Public Schools "]
[null,"Tuition to Out-of-State Schools "]
[null,"Tuition to Collaboratives"]
[null,"Rental Lease of Buildings  "]
[null,"Utility Services/ Telephone "]
[null,"Other  "]